Workbook

Sheet January
A1: Gas Day: | E1: 2021-01-31
A2: Receipt Point | B2: Delivery Point | C2: Operating Capacity (DTHS) | D2: Schedule Volume (DTHS) | E2: Estimated Available Capacity
A3: Kelso/Beaver | B3: Port Westward | C3: 64000 | D3: 0 | E3: =C3-D3 -> 64000
A4: Kelso/Beaver | B4: Port Westward II | C4: 44000 | D4: 0 | E4: 44000
A5: Kelso/Beaver | B5: N. Mist Storage | C5: 61000 | D5: 50108 | E5: 10892
A6: Kelso/Beaver | B6: Beaver Unit 8 | C6: 7326 | D6: 0 | E6: 7326
A7: Kelso/Beaver | B7: Beaver 1 - 6 | C7: 152400 | D7: 0 | E7: 152400
A8: Mist Port Westward | B8: Port Westward | C8: 70000 | D8: 0 | E8: 70000
A9: Mist Port Westward II | B9: Port Westward II | C9: 70000 | D9: 0 | E9: 70000
A10: Mist Beaver | B10: Beaver | C10: 70000 | D10: 0 | E10: =C10-D10 -> 70000
A11: Gas Day: | E11: 2021-01-30
A12: Receipt Point | B12: Delivery Point | C12: Operating Capacity (DTHS) | D12: Schedule Volume (DTHS) | E12: Estimated Available Capacity
A13: Kelso/Beaver | B13: Port Westward | C13: 64000 | D13: 0 | E13: =C13-D13 -> 64000
A14: Kelso/Beaver | B14: Port Westward II | C14: 44000 | D14: 0 | E14: 44000
A15: Kelso/Beaver | B15: N. Mist Storage | C15: 61000 | D15: 50108 | E15: 10892
A16: Kelso/Beaver | B16: Beaver Unit 8 | C16: 7326 | D16: 0 | E16: 7326
A17: Kelso/Beaver | B17: Beaver 1 - 6 | C17: 152400 | D17: 0 | E17: 152400
A18: Mist Port Westward | B18: Port Westward | C18: 70000 | D18: 0 | E18: 70000
A19: Mist Port Westward II | B19: Port Westward II | C19: 70000 | D19: 0 | E19: 70000
A20: Mist Beaver | B20: Beaver | C20: 70000 | D20: 0 | E20: =C20-D20 -> 70000
A21: Gas Day: | E21: 2021-01-29
A22: Receipt Point | B22: Delivery Point | C22: Operating Capacity (DTHS) | D22: Schedule Volume (DTHS) | E22: Estimated Available Capacity
A23: Kelso/Beaver | B23: Port Westward | C23: 64000 | D23: 0 | E23: =C23-D23 -> 64000
A24: Kelso/Beaver | B24: Port Westward II | C24: 44000 | D24: 0 | E24: 44000
A25: Kelso/Beaver | B25: N. Mist Storage | C25: 61000 | D25: 40108 | E25: 20892
A26: Kelso/Beaver | B26: Beaver Unit 8 | C26: 7326 | D26: 0 | E26: 7326
A27: Kelso/Beaver | B27: Beaver 1 - 6 | C27: 152400 | D27: 10000 | E27: 142400
A28: Mist Port Westward | B28: Port Westward | C28: 70000 | D28: 0 | E28: 70000
A29: Mist Port Westward II | B29: Port Westward II | C29: 70000 | D29: 0 | E29: 70000
A30: Mist Beaver | B30: Beaver | C30: 70000 | D30: 0 | E30: =C30-D30 -> 70000
A31: Gas Day: | E31: 2021-01-28
A32: Receipt Point | B32: Delivery Point | C32: Operating Capacity (DTHS) | D32: Schedule Volume (DTHS) | E32: Estimated Available Capacity
A33: Kelso/Beaver | B33: Port Westward | C33: 64000 | D33: 0 | E33: =C33-D33 -> 64000
A34: Kelso/Beaver | B34: Port Westward II | C34: 44000 | D34: 0 | E34: 44000
A35: Kelso/Beaver | B35: N. Mist Storage | C35: 61000 | D35: 30108 | E35: 30892
A36: Kelso/Beaver | B36: Beaver Unit 8 | C36: 7326 | D36: 0 | E36: 7326
A37: Kelso/Beaver | B37: Beaver 1 - 6 | C37: 152400 | D37: 20000 | E37: 132400
A38: Mist Port Westward | B38: Port Westward | C38: 70000 | D38: 0 | E38: 70000
A39: Mist Port Westward II | B39: Port Westward II | C39: 70000 | D39: 0 | E39: 70000
A40: Mist Beaver | B40: Beaver | C40: 70000 | D40: 0 | E40: =C40-D40 -> 70000
A41: Gas Day: | E41: 2021-01-27
A42: Receipt Point | B42: Delivery Point | C42: Operating Capacity (DTHS) | D42: Schedule Volume (DTHS) | E42: Estimated Available Capacity
A43: Kelso/Beaver | B43: Port Westward | C43: 64000 | D43: 0 | E43: =C43-D43 -> 64000
A44: Kelso/Beaver | B44: Port Westward II | C44: 44000 | D44: 0 | E44: 44000
A45: Kelso/Beaver | B45: N. Mist Storage | C45: 61000 | D45: 10108 | E45: 50892
A46: Kelso/Beaver | B46: Beaver Unit 8 | C46: 7326 | D46: 0 | E46: 7326
A47: Kelso/Beaver | B47: Beaver 1 - 6 | C47: 152400 | D47: 40000 | E47: 112400
A48: Mist Port Westward | B48: Port Westward | C48: 70000 | D48: 0 | E48: 70000
A49: Mist Port Westward II | B49: Port Westward II | C49: 70000 | D49: 0 | E49: 70000
A50: Mist Beaver | B50: Beaver | C50: 70000 | D50: 0 | E50: =C50-D50 -> 70000
A51: Gas Day: | E51: 2021-01-26
A52: Receipt Point | B52: Delivery Point | C52: Operating Capacity (DTHS) | D52: Schedule Volume (DTHS) | E52: Estimated Available Capacity
A53: Kelso/Beaver | B53: Port Westward | C53: 64000 | D53: 0 | E53: =C53-D53 -> 64000
A54: Kelso/Beaver | B54: Port Westward II | C54: 44000 | D54: 0 | E54: 44000
A55: Kelso/Beaver | B55: N. Mist Storage | C55: 61000 | D55: 5108 | E55: 55892
A56: Kelso/Beaver | B56: Beaver Unit 8 | C56: 7326 | D56: 0 | E56: 7326
A57: Kelso/Beaver | B57: Beaver 1 - 6 | C57: 152400 | D57: 45000 | E57: 107400
A58: Mist Port Westward | B58: Port Westward | C58: 70000 | D58: 0 | E58: 70000
A59: Mist Port Westward II | B59: Port Westward II | C59: 70000 | D59: 0 | E59: 70000
A60: Mist Beaver | B60: Beaver | C60: 70000 | D60: 0 | E60: =C60-D60 -> 70000
A61: Gas Day: | E61: 2021-01-25
A62: Receipt Point | B62: Delivery Point | C62: Operating Capacity (DTHS) | D62: Schedule Volume (DTHS) | E62: Estimated Available Capacity
A63: Kelso/Beaver | B63: Port Westward | C63: 64000 | D63: 0 | E63: =C63-D63 -> 64000
A64: Kelso/Beaver | B64: Port Westward II | C64: 44000 | D64: 0 | E64: 44000
A65: Kelso/Beaver | B65: N. Mist Storage | C65: 61000 | D65: 40000 | E65: 21000
A66: Kelso/Beaver | B66: Beaver Unit 8 | C66: 7326 | D66: 0 | E66: 7326
A67: Kelso/Beaver | B67: Beaver 1 - 6 | C67: 152400 | D67: 10108 | E67: 142292
A68: Mist Port Westward | B68: Port Westward | C68: 70000 | D68: 0 | E68: 70000
A69: Mist Port Westward II | B69: Port Westward II | C69: 70000 | D69: 0 | E69: 70000
A70: Mist Beaver | B70: Beaver | C70: 70000 | D70: 0 | E70: =C70-D70 -> 70000
A71: Gas Day: | E71: 2021-01-24
A72: Receipt Point | B72: Delivery Point | C72: Operating Capacity (DTHS) | D72: Schedule Volume (DTHS) | E72: Estimated Available Capacity
A73: Kelso/Beaver | B73: Port Westward | C73: 64000 | D73: 0 | E73: =C73-D73 -> 64000
A74: Kelso/Beaver | B74: Port Westward II | C74: 44000 | D74: 0 | E74: 44000
A75: Kelso/Beaver | B75: N. Mist Storage | C75: 61000 | D75: 40000 | E75: 21000
A76: Kelso/Beaver | B76: Beaver Unit 8 | C76: 7326 | D76: 0 | E76: 7326
A77: Kelso/Beaver | B77: Beaver 1 - 6 | C77: 152400 | D77: 10108 | E77: 142292
A78: Mist Port Westward | B78: Port Westward | C78: 70000 | D78: 0 | E78: 70000
A79: Mist Port Westward II | B79: Port Westward II | C79: 70000 | D79: 0 | E79: 70000
A80: Mist Beaver | B80: Beaver | C80: 70000 | D80: 0 | E80: =C80-D80 -> 70000
A81: Gas Day: | E81: 2021-01-23
A82: Receipt Point | B82: Delivery Point | C82: Operating Capacity (DTHS) | D82: Schedule Volume (DTHS) | E82: Estimated Available Capacity
A83: Kelso/Beaver | B83: Port Westward | C83: 64000 | D83: 0 | E83: =C83-D83 -> 64000
A84: Kelso/Beaver | B84: Port Westward II | C84: 44000 | D84: 0 | E84: 44000
A85: Kelso/Beaver | B85: N. Mist Storage | C85: 61000 | D85: 40000 | E85: 21000
A86: Kelso/Beaver | B86: Beaver Unit 8 | C86: 7326 | D86: 0 | E86: 7326
A87: Kelso/Beaver | B87: Beaver 1 - 6 | C87: 152400 | D87: 10108 | E87: 142292
A88: Mist Port Westward | B88: Port Westward | C88: 70000 | D88: 0 | E88: 70000
A89: Mist Port Westward II | B89: Port Westward II | C89: 70000 | D89: 0 | E89: 70000
A90: Mist Beaver | B90: Beaver | C90: 70000 | D90: 0 | E90: =C90-D90 -> 70000
A91: Gas Day: | E91: 2021-01-22
A92: Receipt Point | B92: Delivery Point | C92: Operating Capacity (DTHS) | D92: Schedule Volume (DTHS) | E92: Estimated Available Capacity
A93: Kelso/Beaver | B93: Port Westward | C93: 64000 | D93: 0 | E93: =C93-D93 -> 64000
A94: Kelso/Beaver | B94: Port Westward II | C94: 44000 | D94: 0 | E94: 44000
A95: Kelso/Beaver | B95: N. Mist Storage | C95: 61000 | D95: 40000 | E95: 21000
A96: Kelso/Beaver | B96: Beaver Unit 8 | C96: 7326 | D96: 0 | E96: 7326
A97: Kelso/Beaver | B97: Beaver 1 - 6 | C97: 152400 | D97: 10108 | E97: 142292
A98: Mist Port Westward | B98: Port Westward | C98: 70000 | D98: 0 | E98: 70000
A99: Mist Port Westward II | B99: Port Westward II | C99: 70000 | D99: 0 | E99: 70000
A100: Mist Beaver | B100: Beaver | C100: 70000 | D100: 0 | E100: =C100-D100 -> 70000
A101: Gas Day: | E101: 2021-01-21
A102: Receipt Point | B102: Delivery Point | C102: Operating Capacity (DTHS) | D102: Schedule Volume (DTHS) | E102: Estimated Available Capacity
A103: Kelso/Beaver | B103: Port Westward | C103: 64000 | D103: 0 | E103: =C103-D103 -> 64000
A104: Kelso/Beaver | B104: Port Westward II | C104: 44000 | D104: 2108 | E104: 41892
A105: Kelso/Beaver | B105: N. Mist Storage | C105: 61000 | D105: 48000 | E105: 13000
A106: Kelso/Beaver | B106: Beaver Unit 8 | C106: 7326 | D106: 0 | E106: 7326
A107: Kelso/Beaver | B107: Beaver 1 - 6 | C107: 152400 | D107: 0 | E107: 152400
A108: Mist Port Westward | B108: Port Westward | C108: 70000 | D108: 0 | E108: 70000
A109: Mist Port Westward II | B109: Port Westward II | C109: 70000 | D109: 0 | E109: 70000
A110: Mist Beaver | B110: Beaver | C110: 70000 | D110: 0 | E110: =C110-D110 -> 70000
A111: Gas Day: | E111: 2021-01-20
A112: Receipt Point | B112: Delivery Point | C112: Operating Capacity (DTHS) | D112: Schedule Volume (DTHS) | E112: Estimated Available Capacity
A113: Kelso/Beaver | B113: Port Westward | C113: 64000 | D113: 0 | E113: =C113-D113 -> 64000
A114: Kelso/Beaver | B114: Port Westward II | C114: 44000 | D114: 2108 | E114: 41892
A115: Kelso/Beaver | B115: N. Mist Storage | C115: 61000 | D115: 48000 | E115: 13000
A116: Kelso/Beaver | B116: Beaver Unit 8 | C116: 7326 | D116: 0 | E116: 7326
A117: Kelso/Beaver | B117: Beaver 1 - 6 | C117: 152400 | D117: 0 | E117: 152400
A118: Mist Port Westward | B118: Port Westward | C118: 70000 | D118: 0 | E118: 70000
A119: Mist Port Westward II | B119: Port Westward II | C119: 70000 | D119: 0 | E119: 70000
A120: Mist Beaver | B120: Beaver | C120: 70000 | D120: 0 | E120: =C120-D120 -> 70000
A121: Gas Day: | E121: 2021-01-19
A122: Receipt Point | B122: Delivery Point | C122: Operating Capacity (DTHS) | D122: Schedule Volume (DTHS) | E122: Estimated Available Capacity
A123: Kelso/Beaver | B123: Port Westward | C123: 64000 | D123: 0 | E123: =C123-D123 -> 64000
A124: Kelso/Beaver | B124: Port Westward II | C124: 44000 | D124: 2108 | E124: 41892
A125: Kelso/Beaver | B125: N. Mist Storage | C125: 61000 | D125: 48000 | E125: 13000
A126: Kelso/Beaver | B126: Beaver Unit 8 | C126: 7326 | D126: 0 | E126: 7326
A127: Kelso/Beaver | B127: Beaver 1 - 6 | C127: 152400 | D127: 0 | E127: 152400
A128: Mist Port Westward | B128: Port Westward | C128: 70000 | D128: 0 | E128: 70000
A129: Mist Port Westward II | B129: Port Westward II | C129: 70000 | D129: 0 | E129: 70000
A130: Mist Beaver | B130: Beaver | C130: 70000 | D130: 0 | E130: =C130-D130 -> 70000
A131: Gas Day: | E131: 2021-01-18
A132: Receipt Point | B132: Delivery Point | C132: Operating Capacity (DTHS) | D132: Schedule Volume (DTHS) | E132: Estimated Available Capacity
A133: Kelso/Beaver | B133: Port Westward | C133: 64000 | D133: 0 | E133: =C133-D133 -> 64000
A134: Kelso/Beaver | B134: Port Westward II | C134: 44000 | D134: 2108 | E134: 41892
A135: Kelso/Beaver | B135: N. Mist Storage | C135: 61000 | D135: 48000 | E135: 13000
A136: Kelso/Beaver | B136: Beaver Unit 8 | C136: 7326 | D136: 0 | E136: 7326
A137: Kelso/Beaver | B137: Beaver 1 - 6 | C137: 152400 | D137: 0 | E137: 152400
A138: Mist Port Westward | B138: Port Westward | C138: 70000 | D138: 0 | E138: 70000
A139: Mist Port Westward II | B139: Port Westward II | C139: 70000 | D139: 0 | E139: 70000
A140: Mist Beaver | B140: Beaver | C140: 70000 | D140: 0 | E140: =C140-D140 -> 70000
A141: Gas Day: | E141: 2021-01-17
A142: Receipt Point | B142: Delivery Point | C142: Operating Capacity (DTHS) | D142: Schedule Volume (DTHS) | E142: Estimated Available Capacity
A143: Kelso/Beaver | B143: Port Westward | C143: 64000 | D143: 0 | E143: =C143-D143 -> 64000
A144: Kelso/Beaver | B144: Port Westward II | C144: 44000 | D144: 2108 | E144: 41892
A145: Kelso/Beaver | B145: N. Mist Storage | C145: 61000 | D145: 48000 | E145: 13000
A146: Kelso/Beaver | B146: Beaver Unit 8 | C146: 7326 | D146: 0 | E146: 7326
A147: Kelso/Beaver | B147: Beaver 1 - 6 | C147: 152400 | D147: 0 | E147: 152400
A148: Mist Port Westward | B148: Port Westward | C148: 70000 | D148: 0 | E148: 70000
A149: Mist Port Westward II | B149: Port Westward II | C149: 70000 | D149: 0 | E149: 70000
A150: Mist Beaver | B150: Beaver | C150: 70000 | D150: 0 | E150: =C150-D150 -> 70000
A151: Gas Day: | E151: 2021-01-16
A152: Receipt Point | B152: Delivery Point | C152: Operating Capacity (DTHS) | D152: Schedule Volume (DTHS) | E152: Estimated Available Capacity
A153: Kelso/Beaver | B153: Port Westward | C153: 64000 | D153: 0 | E153: =C153-D153 -> 64000
A154: Kelso/Beaver | B154: Port Westward II | C154: 44000 | D154: 2108 | E154: 41892
A155: Kelso/Beaver | B155: N. Mist Storage | C155: 61000 | D155: 48000 | E155: 13000
A156: Kelso/Beaver | B156: Beaver Unit 8 | C156: 7326 | D156: 0 | E156: 7326
A157: Kelso/Beaver | B157: Beaver 1 - 6 | C157: 152400 | D157: 0 | E157: 152400
A158: Mist Port Westward | B158: Port Westward | C158: 70000 | D158: 0 | E158: 70000
A159: Mist Port Westward II | B159: Port Westward II | C159: 70000 | D159: 0 | E159: 70000
A160: Mist Beaver | B160: Beaver | C160: 70000 | D160: 0 | E160: =C160-D160 -> 70000
A161: Gas Day: | E161: 2021-01-15
A162: Receipt Point | B162: Delivery Point | C162: Operating Capacity (DTHS) | D162: Schedule Volume (DTHS) | E162: Estimated Available Capacity
A163: Kelso/Beaver | B163: Port Westward | C163: 64000 | D163: 0 | E163: =C163-D163 -> 64000
A164: Kelso/Beaver | B164: Port Westward II | C164: 44000 | D164: 2108 | E164: 41892
A165: Kelso/Beaver | B165: N. Mist Storage | C165: 61000 | D165: 48000 | E165: 13000
A166: Kelso/Beaver | B166: Beaver Unit 8 | C166: 7326 | D166: 0 | E166: 7326
A167: Kelso/Beaver | B167: Beaver 1 - 6 | C167: 152400 | D167: 0 | E167: 152400
A168: Mist Port Westward | B168: Port Westward | C168: 70000 | D168: 0 | E168: 70000
A169: Mist Port Westward II | B169: Port Westward II | C169: 70000 | D169: 0 | E169: 70000
A170: Mist Beaver | B170: Beaver | C170: 70000 | D170: 0 | E170: =C170-D170 -> 70000
A171: Gas Day: | E171: 2021-01-14
A172: Receipt Point | B172: Delivery Point | C172: Operating Capacity (DTHS) | D172: Schedule Volume (DTHS) | E172: Estimated Available Capacity
A173: Kelso/Beaver | B173: Port Westward | C173: 64000 | D173: 0 | E173: =C173-D173 -> 64000
A174: Kelso/Beaver | B174: Port Westward II | C174: 44000 | D174: 2108 | E174: 41892
A175: Kelso/Beaver | B175: N. Mist Storage | C175: 61000 | D175: 48000 | E175: 13000
A176: Kelso/Beaver | B176: Beaver Unit 8 | C176: 7326 | D176: 0 | E176: 7326
A177: Kelso/Beaver | B177: Beaver 1 - 6 | C177: 152400 | D177: 0 | E177: 152400
A178: Mist Port Westward | B178: Port Westward | C178: 70000 | D178: 0 | E178: 70000
A179: Mist Port Westward II | B179: Port Westward II | C179: 70000 | D179: 0 | E179: 70000
A180: Mist Beaver | B180: Beaver | C180: 70000 | D180: 0 | E180: =C180-D180 -> 70000
A181: Gas Day: | E181: 2021-01-13
A182: Receipt Point | B182: Delivery Point | C182: Operating Capacity (DTHS) | D182: Schedule Volume (DTHS) | E182: Estimated Available Capacity
A183: Kelso/Beaver | B183: Port Westward | C183: 64000 | D183: 0 | E183: =C183-D183 -> 64000
A184: Kelso/Beaver | B184: Port Westward II | C184: 44000 | D184: 2108 | E184: 41892
A185: Kelso/Beaver | B185: N. Mist Storage | C185: 61000 | D185: 48000 | E185: 13000
A186: Kelso/Beaver | B186: Beaver Unit 8 | C186: 7326 | D186: 0 | E186: 7326
A187: Kelso/Beaver | B187: Beaver 1 - 6 | C187: 152400 | D187: 0 | E187: 152400
A188: Mist Port Westward | B188: Port Westward | C188: 70000 | D188: 0 | E188: 70000
A189: Mist Port Westward II | B189: Port Westward II | C189: 70000 | D189: 0 | E189: 70000
A190: Mist Beaver | B190: Beaver | C190: 70000 | D190: 0 | E190: =C190-D190 -> 70000
A191: Gas Day: | E191: 2021-01-12
A192: Receipt Point | B192: Delivery Point | C192: Operating Capacity (DTHS) | D192: Schedule Volume (DTHS) | E192: Estimated Available Capacity
A193: Kelso/Beaver | B193: Port Westward | C193: 64000 | D193: 0 | E193: =C193-D193 -> 64000
A194: Kelso/Beaver | B194: Port Westward II | C194: 44000 | D194: 2108 | E194: 41892
A195: Kelso/Beaver | B195: N. Mist Storage | C195: 61000 | D195: 48000 | E195: 13000
A196: Kelso/Beaver | B196: Beaver Unit 8 | C196: 7326 | D196: 0 | E196: 7326
A197: Kelso/Beaver | B197: Beaver 1 - 6 | C197: 152400 | D197: 0 | E197: 152400
A198: Mist Port Westward | B198: Port Westward | C198: 70000 | D198: 0 | E198: 70000
A199: Mist Port Westward II | B199: Port Westward II | C199: 70000 | D199: 0 | E199: 70000
A200: Mist Beaver | B200: Beaver | C200: 70000 | D200: 0 | E200: =C200-D200 -> 70000
... 110 more rows

Sheet February
A1: Gas Day: | E1: 2021-02-28
A2: Receipt Point | B2: Delivery Point | C2: Operating Capacity (DTHS) | D2: Schedule Volume (DTHS) | E2: Estimated Available Capacity
A3: Kelso/Beaver | B3: Port Westward | C3: 64000 | D3: 60000 | E3: =C3-D3 -> 4000
A4: Kelso/Beaver | B4: Port Westward II | C4: 44000 | D4: 3984 | E4: 40016
A5: Kelso/Beaver | B5: N. Mist Storage | C5: 61000 | D5: 0 | E5: 61000
A6: Kelso/Beaver | B6: Beaver Unit 8 | C6: 7326 | D6: 0 | E6: 7326
A7: Kelso/Beaver | B7: Beaver 1 - 6 | C7: 152400 | D7: 0 | E7: 152400
A8: Mist Port Westward | B8: Port Westward | C8: 70000 | D8: 0 | E8: 70000
A9: Mist Port Westward II | B9: Port Westward II | C9: 70000 | D9: 0 | E9: 70000
A10: Mist Beaver | B10: Beaver | C10: 70000 | D10: 0 | E10: =C10-D10 -> 70000
A11: Gas Day: | E11: 2021-02-27
A12: Receipt Point | B12: Delivery Point | C12: Operating Capacity (DTHS) | D12: Schedule Volume (DTHS) | E12: Estimated Available Capacity
A13: Kelso/Beaver | B13: Port Westward | C13: 64000 | D13: 60000 | E13: =C13-D13 -> 4000
A14: Kelso/Beaver | B14: Port Westward II | C14: 44000 | D14: 3984 | E14: 40016
A15: Kelso/Beaver | B15: N. Mist Storage | C15: 61000 | D15: 0 | E15: 61000
A16: Kelso/Beaver | B16: Beaver Unit 8 | C16: 7326 | D16: 0 | E16: 7326
A17: Kelso/Beaver | B17: Beaver 1 - 6 | C17: 152400 | D17: 0 | E17: 152400
A18: Mist Port Westward | B18: Port Westward | C18: 70000 | D18: 0 | E18: 70000
A19: Mist Port Westward II | B19: Port Westward II | C19: 70000 | D19: 0 | E19: 70000
A20: Mist Beaver | B20: Beaver | C20: 70000 | D20: 0 | E20: =C20-D20 -> 70000
A21: Gas Day: | E21: 2021-02-26
A22: Receipt Point | B22: Delivery Point | C22: Operating Capacity (DTHS) | D22: Schedule Volume (DTHS) | E22: Estimated Available Capacity
A23: Kelso/Beaver | B23: Port Westward | C23: 64000 | D23: 60000 | E23: =C23-D23 -> 4000
A24: Kelso/Beaver | B24: Port Westward II | C24: 44000 | D24: 3984 | E24: 40016
A25: Kelso/Beaver | B25: N. Mist Storage | C25: 61000 | D25: 0 | E25: 61000
A26: Kelso/Beaver | B26: Beaver Unit 8 | C26: 7326 | D26: 0 | E26: 7326
A27: Kelso/Beaver | B27: Beaver 1 - 6 | C27: 152400 | D27: 0 | E27: 152400
A28: Mist Port Westward | B28: Port Westward | C28: 70000 | D28: 0 | E28: 70000
A29: Mist Port Westward II | B29: Port Westward II | C29: 70000 | D29: 0 | E29: 70000
A30: Mist Beaver | B30: Beaver | C30: 70000 | D30: 0 | E30: =C30-D30 -> 70000
A31: Gas Day: | E31: 2021-02-25
A32: Receipt Point | B32: Delivery Point | C32: Operating Capacity (DTHS) | D32: Schedule Volume (DTHS) | E32: Estimated Available Capacity
A33: Kelso/Beaver | B33: Port Westward | C33: 64000 | D33: 59028 | E33: =C33-D33 -> 4972
A34: Kelso/Beaver | B34: Port Westward II | C34: 44000 | D34: 0 | E34: 44000
A35: Kelso/Beaver | B35: N. Mist Storage | C35: 61000 | D35: 0 | E35: 61000
A36: Kelso/Beaver | B36: Beaver Unit 8 | C36: 7326 | D36: 0 | E36: 7326
A37: Kelso/Beaver | B37: Beaver 1 - 6 | C37: 152400 | D37: 0 | E37: 152400
A38: Mist Port Westward | B38: Port Westward | C38: 70000 | D38: 0 | E38: 70000
A39: Mist Port Westward II | B39: Port Westward II | C39: 70000 | D39: 0 | E39: 70000
A40: Mist Beaver | B40: Beaver | C40: 70000 | D40: 0 | E40: =C40-D40 -> 70000
A41: Gas Day: | E41: 2021-02-24
A42: Receipt Point | B42: Delivery Point | C42: Operating Capacity (DTHS) | D42: Schedule Volume (DTHS) | E42: Estimated Available Capacity
A43: Kelso/Beaver | B43: Port Westward | C43: 64000 | D43: 58000 | E43: =C43-D43 -> 6000
A44: Kelso/Beaver | B44: Port Westward II | C44: 44000 | D44: 5985 | E44: 38015
A45: Kelso/Beaver | B45: N. Mist Storage | C45: 61000 | D45: 0 | E45: 61000
A46: Kelso/Beaver | B46: Beaver Unit 8 | C46: 7326 | D46: 0 | E46: 7326
A47: Kelso/Beaver | B47: Beaver 1 - 6 | C47: 152400 | D47: 0 | E47: 152400
A48: Mist Port Westward | B48: Port Westward | C48: 70000 | D48: 0 | E48: 70000
A49: Mist Port Westward II | B49: Port Westward II | C49: 70000 | D49: 0 | E49: 70000
A50: Mist Beaver | B50: Beaver | C50: 70000 | D50: 0 | E50: =C50-D50 -> 70000
A51: Gas Day: | E51: 2021-02-23
A52: Receipt Point | B52: Delivery Point | C52: Operating Capacity (DTHS) | D52: Schedule Volume (DTHS) | E52: Estimated Available Capacity
A53: Kelso/Beaver | B53: Port Westward | C53: 64000 | D53: 57045 | E53: =C53-D53 -> 6955
A54: Kelso/Beaver | B54: Port Westward II | C54: 44000 | D54: 0 | E54: 44000
A55: Kelso/Beaver | B55: N. Mist Storage | C55: 61000 | D55: 0 | E55: 61000
A56: Kelso/Beaver | B56: Beaver Unit 8 | C56: 7326 | D56: 0 | E56: 7326
A57: Kelso/Beaver | B57: Beaver 1 - 6 | C57: 152400 | D57: 0 | E57: 152400
A58: Mist Port Westward | B58: Port Westward | C58: 70000 | D58: 0 | E58: 70000
A59: Mist Port Westward II | B59: Port Westward II | C59: 70000 | D59: 0 | E59: 70000
A60: Mist Beaver | B60: Beaver | C60: 70000 | D60: 0 | E60: =C60-D60 -> 70000
A61: Gas Day: | E61: 2021-02-22
A62: Receipt Point | B62: Delivery Point | C62: Operating Capacity (DTHS) | D62: Schedule Volume (DTHS) | E62: Estimated Available Capacity
A63: Kelso/Beaver | B63: Port Westward | C63: 64000 | D63: 60020 | E63: =C63-D63 -> 3980
A64: Kelso/Beaver | B64: Port Westward II | C64: 44000 | D64: 0 | E64: 44000
A65: Kelso/Beaver | B65: N. Mist Storage | C65: 61000 | D65: 0 | E65: 61000
A66: Kelso/Beaver | B66: Beaver Unit 8 | C66: 7326 | D66: 0 | E66: 7326
A67: Kelso/Beaver | B67: Beaver 1 - 6 | C67: 152400 | D67: 0 | E67: 152400
A68: Mist Port Westward | B68: Port Westward | C68: 70000 | D68: 0 | E68: 70000
A69: Mist Port Westward II | B69: Port Westward II | C69: 70000 | D69: 0 | E69: 70000
A70: Mist Beaver | B70: Beaver | C70: 70000 | D70: 0 | E70: =C70-D70 -> 70000
A71: Gas Day: | E71: 2021-02-21
A72: Receipt Point | B72: Delivery Point | C72: Operating Capacity (DTHS) | D72: Schedule Volume (DTHS) | E72: Estimated Available Capacity
A73: Kelso/Beaver | B73: Port Westward | C73: 64000 | D73: 60020 | E73: =C73-D73 -> 3980
A74: Kelso/Beaver | B74: Port Westward II | C74: 44000 | D74: 0 | E74: 44000
A75: Kelso/Beaver | B75: N. Mist Storage | C75: 61000 | D75: 0 | E75: 61000
A76: Kelso/Beaver | B76: Beaver Unit 8 | C76: 7326 | D76: 0 | E76: 7326
A77: Kelso/Beaver | B77: Beaver 1 - 6 | C77: 152400 | D77: 0 | E77: 152400
A78: Mist Port Westward | B78: Port Westward | C78: 70000 | D78: 0 | E78: 70000
A79: Mist Port Westward II | B79: Port Westward II | C79: 70000 | D79: 0 | E79: 70000
A80: Mist Beaver | B80: Beaver | C80: 70000 | D80: 0 | E80: =C80-D80 -> 70000
A81: Gas Day: | E81: 2021-02-20
A82: Receipt Point | B82: Delivery Point | C82: Operating Capacity (DTHS) | D82: Schedule Volume (DTHS) | E82: Estimated Available Capacity
A83: Kelso/Beaver | B83: Port Westward | C83: 64000 | D83: 60020 | E83: =C83-D83 -> 3980
A84: Kelso/Beaver | B84: Port Westward II | C84: 44000 | D84: 0 | E84: 44000
A85: Kelso/Beaver | B85: N. Mist Storage | C85: 61000 | D85: 0 | E85: 61000
A86: Kelso/Beaver | B86: Beaver Unit 8 | C86: 7326 | D86: 0 | E86: 7326
A87: Kelso/Beaver | B87: Beaver 1 - 6 | C87: 152400 | D87: 0 | E87: 152400
A88: Mist Port Westward | B88: Port Westward | C88: 70000 | D88: 0 | E88: 70000
A89: Mist Port Westward II | B89: Port Westward II | C89: 70000 | D89: 0 | E89: 70000
A90: Mist Beaver | B90: Beaver | C90: 70000 | D90: 0 | E90: =C90-D90 -> 70000
A91: Gas Day: | E91: 2021-02-19
A92: Receipt Point | B92: Delivery Point | C92: Operating Capacity (DTHS) | D92: Schedule Volume (DTHS) | E92: Estimated Available Capacity
A93: Kelso/Beaver | B93: Port Westward | C93: 64000 | D93: 0 | E93: =C93-D93 -> 64000
A94: Kelso/Beaver | B94: Port Westward II | C94: 44000 | D94: 20000 | E94: 24000
A95: Kelso/Beaver | B95: N. Mist Storage | C95: 61000 | D95: 15885 | E95: 45115
A96: Kelso/Beaver | B96: Beaver Unit 8 | C96: 7326 | D96: 0 | E96: 7326
A97: Kelso/Beaver | B97: Beaver 1 - 6 | C97: 152400 | D97: 28000 | E97: 124400
A98: Mist Port Westward | B98: Port Westward | C98: 70000 | D98: 0 | E98: 70000
A99: Mist Port Westward II | B99: Port Westward II | C99: 70000 | D99: 0 | E99: 70000
A100: Mist Beaver | B100: Beaver | C100: 70000 | D100: 0 | E100: =C100-D100 -> 70000
A101: Gas Day: | E101: 2021-02-18
A102: Receipt Point | B102: Delivery Point | C102: Operating Capacity (DTHS) | D102: Schedule Volume (DTHS) | E102: Estimated Available Capacity
A103: Kelso/Beaver | B103: Port Westward | C103: 64000 | D103: 0 | E103: =C103-D103 -> 64000
A104: Kelso/Beaver | B104: Port Westward II | C104: 44000 | D104: 20000 | E104: 24000
A105: Kelso/Beaver | B105: N. Mist Storage | C105: 61000 | D105: 15371 | E105: 45629
A106: Kelso/Beaver | B106: Beaver Unit 8 | C106: 7326 | D106: 0 | E106: 7326
A107: Kelso/Beaver | B107: Beaver 1 - 6 | C107: 152400 | D107: 30000 | E107: 122400
A108: Mist Port Westward | B108: Port Westward | C108: 70000 | D108: 0 | E108: 70000
A109: Mist Port Westward II | B109: Port Westward II | C109: 70000 | D109: 0 | E109: 70000
A110: Mist Beaver | B110: Beaver | C110: 70000 | D110: 0 | E110: =C110-D110 -> 70000
A111: Gas Day: | E111: 2021-02-17
A112: Receipt Point | B112: Delivery Point | C112: Operating Capacity (DTHS) | D112: Schedule Volume (DTHS) | E112: Estimated Available Capacity
A113: Kelso/Beaver | B113: Port Westward | C113: 64000 | D113: 0 | E113: =C113-D113 -> 64000
A114: Kelso/Beaver | B114: Port Westward II | C114: 44000 | D114: 22166 | E114: 21834
A115: Kelso/Beaver | B115: N. Mist Storage | C115: 61000 | D115: 15000 | E115: 46000
A116: Kelso/Beaver | B116: Beaver Unit 8 | C116: 7326 | D116: 0 | E116: 7326
A117: Kelso/Beaver | B117: Beaver 1 - 6 | C117: 152400 | D117: 40000 | E117: 112400
A118: Mist Port Westward | B118: Port Westward | C118: 70000 | D118: 0 | E118: 70000
A119: Mist Port Westward II | B119: Port Westward II | C119: 70000 | D119: 0 | E119: 70000
A120: Mist Beaver | B120: Beaver | C120: 70000 | D120: 0 | E120: =C120-D120 -> 70000
A121: Gas Day: | E121: 2021-02-16
A122: Receipt Point | B122: Delivery Point | C122: Operating Capacity (DTHS) | D122: Schedule Volume (DTHS) | E122: Estimated Available Capacity
A123: Kelso/Beaver | B123: Port Westward | C123: 64000 | D123: 0 | E123: =C123-D123 -> 64000
A124: Kelso/Beaver | B124: Port Westward II | C124: 44000 | D124: 14098 | E124: 29902
A125: Kelso/Beaver | B125: N. Mist Storage | C125: 61000 | D125: 0 | E125: 61000
A126: Kelso/Beaver | B126: Beaver Unit 8 | C126: 7326 | D126: 0 | E126: 7326
A127: Kelso/Beaver | B127: Beaver 1 - 6 | C127: 152400 | D127: 35000 | E127: 117400
A128: Mist Port Westward | B128: Port Westward | C128: 70000 | D128: 0 | E128: 70000
A129: Mist Port Westward II | B129: Port Westward II | C129: 70000 | D129: 0 | E129: 70000
A130: Mist Beaver | B130: Beaver | C130: 70000 | D130: 0 | E130: =C130-D130 -> 70000
A131: Gas Day: | E131: 2021-02-15
A132: Receipt Point | B132: Delivery Point | C132: Operating Capacity (DTHS) | D132: Schedule Volume (DTHS) | E132: Estimated Available Capacity
A133: Kelso/Beaver | B133: Port Westward | C133: 64000 | D133: 0 | E133: =C133-D133 -> 64000
A134: Kelso/Beaver | B134: Port Westward II | C134: 44000 | D134: 14098 | E134: 29902
A135: Kelso/Beaver | B135: N. Mist Storage | C135: 61000 | D135: 0 | E135: 61000
A136: Kelso/Beaver | B136: Beaver Unit 8 | C136: 7326 | D136: 0 | E136: 7326
A137: Kelso/Beaver | B137: Beaver 1 - 6 | C137: 152400 | D137: 35000 | E137: 117400
A138: Mist Port Westward | B138: Port Westward | C138: 70000 | D138: 0 | E138: 70000
A139: Mist Port Westward II | B139: Port Westward II | C139: 70000 | D139: 0 | E139: 70000
A140: Mist Beaver | B140: Beaver | C140: 70000 | D140: 0 | E140: =C140-D140 -> 70000
A141: Gas Day: | E141: 2021-02-14
A142: Receipt Point | B142: Delivery Point | C142: Operating Capacity (DTHS) | D142: Schedule Volume (DTHS) | E142: Estimated Available Capacity
A143: Kelso/Beaver | B143: Port Westward | C143: 64000 | D143: 0 | E143: =C143-D143 -> 64000
A144: Kelso/Beaver | B144: Port Westward II | C144: 44000 | D144: 14098 | E144: 29902
A145: Kelso/Beaver | B145: N. Mist Storage | C145: 61000 | D145: 0 | E145: 61000
A146: Kelso/Beaver | B146: Beaver Unit 8 | C146: 7326 | D146: 0 | E146: 7326
A147: Kelso/Beaver | B147: Beaver 1 - 6 | C147: 152400 | D147: 35000 | E147: 117400
A148: Mist Port Westward | B148: Port Westward | C148: 70000 | D148: 0 | E148: 70000
A149: Mist Port Westward II | B149: Port Westward II | C149: 70000 | D149: 0 | E149: 70000
A150: Mist Beaver | B150: Beaver | C150: 70000 | D150: 0 | E150: =C150-D150 -> 70000
A151: Gas Day: | E151: 2021-02-13
A152: Receipt Point | B152: Delivery Point | C152: Operating Capacity (DTHS) | D152: Schedule Volume (DTHS) | E152: Estimated Available Capacity
A153: Kelso/Beaver | B153: Port Westward | C153: 64000 | D153: 0 | E153: =C153-D153 -> 64000
A154: Kelso/Beaver | B154: Port Westward II | C154: 44000 | D154: 14098 | E154: 29902
A155: Kelso/Beaver | B155: N. Mist Storage | C155: 61000 | D155: 0 | E155: 61000
A156: Kelso/Beaver | B156: Beaver Unit 8 | C156: 7326 | D156: 0 | E156: 7326
A157: Kelso/Beaver | B157: Beaver 1 - 6 | C157: 152400 | D157: 35000 | E157: 117400
A158: Mist Port Westward | B158: Port Westward | C158: 70000 | D158: 0 | E158: 70000
A159: Mist Port Westward II | B159: Port Westward II | C159: 70000 | D159: 0 | E159: 70000
A160: Mist Beaver | B160: Beaver | C160: 70000 | D160: 0 | E160: =C160-D160 -> 70000
A161: Gas Day: | E161: 2021-02-12
A162: Receipt Point | B162: Delivery Point | C162: Operating Capacity (DTHS) | D162: Schedule Volume (DTHS) | E162: Estimated Available Capacity
A163: Kelso/Beaver | B163: Port Westward | C163: 64000 | D163: 0 | E163: =C163-D163 -> 64000
A164: Kelso/Beaver | B164: Port Westward II | C164: 44000 | D164: 20089 | E164: 23911
A165: Kelso/Beaver | B165: N. Mist Storage | C165: 61000 | D165: 0 | E165: 61000
A166: Kelso/Beaver | B166: Beaver Unit 8 | C166: 7326 | D166: 0 | E166: 7326
A167: Kelso/Beaver | B167: Beaver 1 - 6 | C167: 152400 | D167: 30000 | E167: 122400
A168: Mist Port Westward | B168: Port Westward | C168: 70000 | D168: 0 | E168: 70000
A169: Mist Port Westward II | B169: Port Westward II | C169: 70000 | D169: 0 | E169: 70000
A170: Mist Beaver | B170: Beaver | C170: 70000 | D170: 0 | E170: =C170-D170 -> 70000
A171: Gas Day: | E171: 2021-02-11
A172: Receipt Point | B172: Delivery Point | C172: Operating Capacity (DTHS) | D172: Schedule Volume (DTHS) | E172: Estimated Available Capacity
A173: Kelso/Beaver | B173: Port Westward | C173: 64000 | D173: 0 | E173: =C173-D173 -> 64000
A174: Kelso/Beaver | B174: Port Westward II | C174: 44000 | D174: 0 | E174: 44000
A175: Kelso/Beaver | B175: N. Mist Storage | C175: 61000 | D175: 10000 | E175: 51000
A176: Kelso/Beaver | B176: Beaver Unit 8 | C176: 7326 | D176: 0 | E176: 7326
A177: Kelso/Beaver | B177: Beaver 1 - 6 | C177: 152400 | D177: 50000 | E177: 102400
A178: Mist Port Westward | B178: Port Westward | C178: 70000 | D178: 0 | E178: 70000
A179: Mist Port Westward II | B179: Port Westward II | C179: 70000 | D179: 0 | E179: 70000
A180: Mist Beaver | B180: Beaver | C180: 70000 | D180: 0 | E180: =C180-D180 -> 70000
A181: Gas Day: | E181: 2021-02-10
A182: Receipt Point | B182: Delivery Point | C182: Operating Capacity (DTHS) | D182: Schedule Volume (DTHS) | E182: Estimated Available Capacity
A183: Kelso/Beaver | B183: Port Westward | C183: 64000 | D183: 0 | E183: =C183-D183 -> 64000
A184: Kelso/Beaver | B184: Port Westward II | C184: 44000 | D184: 0 | E184: 44000
A185: Kelso/Beaver | B185: N. Mist Storage | C185: 61000 | D185: 10001 | E185: 50999
A186: Kelso/Beaver | B186: Beaver Unit 8 | C186: 7326 | D186: 0 | E186: 7326
A187: Kelso/Beaver | B187: Beaver 1 - 6 | C187: 152400 | D187: 50000 | E187: 102400
A188: Mist Port Westward | B188: Port Westward | C188: 70000 | D188: 0 | E188: 70000
A189: Mist Port Westward II | B189: Port Westward II | C189: 70000 | D189: 0 | E189: 70000
A190: Mist Beaver | B190: Beaver | C190: 70000 | D190: 0 | E190: =C190-D190 -> 70000
A191: Gas Day: | E191: 2021-02-09
A192: Receipt Point | B192: Delivery Point | C192: Operating Capacity (DTHS) | D192: Schedule Volume (DTHS) | E192: Estimated Available Capacity
A193: Kelso/Beaver | B193: Port Westward | C193: 64000 | D193: 0 | E193: =C193-D193 -> 64000
A194: Kelso/Beaver | B194: Port Westward II | C194: 44000 | D194: 0 | E194: 44000
A195: Kelso/Beaver | B195: N. Mist Storage | C195: 61000 | D195: 9998 | E195: 51002
A196: Kelso/Beaver | B196: Beaver Unit 8 | C196: 7326 | D196: 0 | E196: 7326
A197: Kelso/Beaver | B197: Beaver 1 - 6 | C197: 152400 | D197: 40000 | E197: 112400
A198: Mist Port Westward | B198: Port Westward | C198: 70000 | D198: 0 | E198: 70000
A199: Mist Port Westward II | B199: Port Westward II | C199: 70000 | D199: 0 | E199: 70000
A200: Mist Beaver | B200: Beaver | C200: 70000 | D200: 0 | E200: =C200-D200 -> 70000
... 80 more rows

Sheet March
A1: Gas Day: | E1: 2021-03-31
A2: Receipt Point | B2: Delivery Point | C2: Operating Capacity (DTHS) | D2: Schedule Volume (DTHS) | E2: Estimated Available Capacity
A3: Kelso/Beaver | B3: Port Westward | C3: 64000 | D3: 64000 | E3: =C3-D3 -> 0
A4: Kelso/Beaver | B4: Port Westward II | C4: 44000 | D4: 24038 | E4: 19962
A5: Kelso/Beaver | B5: N. Mist Storage | C5: 61000 | D5: 35000 | E5: 26000
A6: Kelso/Beaver | B6: Beaver Unit 8 | C6: 7326 | D6: 0 | E6: 7326
A7: Kelso/Beaver | B7: Beaver 1 - 6 | C7: 152400 | D7: 0 | E7: 152400
A8: Mist Port Westward | B8: Port Westward | C8: 70000 | D8: 0 | E8: 70000
A9: Mist Port Westward II | B9: Port Westward II | C9: 70000 | D9: 0 | E9: 70000
A10: Mist Beaver | B10: Beaver | C10: 70000 | D10: 0 | E10: =C10-D10 -> 70000
A11: Gas Day: | E11: 2021-03-30
A12: Receipt Point | B12: Delivery Point | C12: Operating Capacity (DTHS) | D12: Schedule Volume (DTHS) | E12: Estimated Available Capacity
A13: Kelso/Beaver | B13: Port Westward | C13: 64000 | D13: 64000 | E13: =C13-D13 -> 0
A14: Kelso/Beaver | B14: Port Westward II | C14: 44000 | D14: 24643 | E14: 19357
A15: Kelso/Beaver | B15: N. Mist Storage | C15: 61000 | D15: 35000 | E15: 26000
A16: Kelso/Beaver | B16: Beaver Unit 8 | C16: 7326 | D16: 0 | E16: 7326
A17: Kelso/Beaver | B17: Beaver 1 - 6 | C17: 152400 | D17: 0 | E17: 152400
A18: Mist Port Westward | B18: Port Westward | C18: 70000 | D18: 0 | E18: 70000
A19: Mist Port Westward II | B19: Port Westward II | C19: 70000 | D19: 0 | E19: 70000
A20: Mist Beaver | B20: Beaver | C20: 70000 | D20: 0 | E20: =C20-D20 -> 70000
A21: Gas Day: | E21: 2021-03-29
A22: Receipt Point | B22: Delivery Point | C22: Operating Capacity (DTHS) | D22: Schedule Volume (DTHS) | E22: Estimated Available Capacity
A23: Kelso/Beaver | B23: Port Westward | C23: 64000 | D23: 60000 | E23: =C23-D23 -> 4000
A24: Kelso/Beaver | B24: Port Westward II | C24: 44000 | D24: 0 | E24: 44000
A25: Kelso/Beaver | B25: N. Mist Storage | C25: 61000 | D25: 35294 | E25: 25706
A26: Kelso/Beaver | B26: Beaver Unit 8 | C26: 7326 | D26: 0 | E26: 7326
A27: Kelso/Beaver | B27: Beaver 1 - 6 | C27: 152400 | D27: 0 | E27: 152400
A28: Mist Port Westward | B28: Port Westward | C28: 70000 | D28: 0 | E28: 70000
A29: Mist Port Westward II | B29: Port Westward II | C29: 70000 | D29: 0 | E29: 70000
A30: Mist Beaver | B30: Beaver | C30: 70000 | D30: 0 | E30: =C30-D30 -> 70000
A31: Gas Day: | E31: 2021-03-28
A32: Receipt Point | B32: Delivery Point | C32: Operating Capacity (DTHS) | D32: Schedule Volume (DTHS) | E32: Estimated Available Capacity
A33: Kelso/Beaver | B33: Port Westward | C33: 64000 | D33: 60000 | E33: =C33-D33 -> 4000
A34: Kelso/Beaver | B34: Port Westward II | C34: 44000 | D34: 0 | E34: 44000
A35: Kelso/Beaver | B35: N. Mist Storage | C35: 61000 | D35: 35294 | E35: 25706
A36: Kelso/Beaver | B36: Beaver Unit 8 | C36: 7326 | D36: 0 | E36: 7326
A37: Kelso/Beaver | B37: Beaver 1 - 6 | C37: 152400 | D37: 0 | E37: 152400
A38: Mist Port Westward | B38: Port Westward | C38: 70000 | D38: 0 | E38: 70000
A39: Mist Port Westward II | B39: Port Westward II | C39: 70000 | D39: 0 | E39: 70000
A40: Mist Beaver | B40: Beaver | C40: 70000 | D40: 0 | E40: =C40-D40 -> 70000
A41: Gas Day: | E41: 2021-03-27
A42: Receipt Point | B42: Delivery Point | C42: Operating Capacity (DTHS) | D42: Schedule Volume (DTHS) | E42: Estimated Available Capacity
A43: Kelso/Beaver | B43: Port Westward | C43: 64000 | D43: 60000 | E43: =C43-D43 -> 4000
A44: Kelso/Beaver | B44: Port Westward II | C44: 44000 | D44: 0 | E44: 44000
A45: Kelso/Beaver | B45: N. Mist Storage | C45: 61000 | D45: 35294 | E45: 25706
A46: Kelso/Beaver | B46: Beaver Unit 8 | C46: 7326 | D46: 0 | E46: 7326
A47: Kelso/Beaver | B47: Beaver 1 - 6 | C47: 152400 | D47: 0 | E47: 152400
A48: Mist Port Westward | B48: Port Westward | C48: 70000 | D48: 0 | E48: 70000
A49: Mist Port Westward II | B49: Port Westward II | C49: 70000 | D49: 0 | E49: 70000
A50: Mist Beaver | B50: Beaver | C50: 70000 | D50: 0 | E50: =C50-D50 -> 70000
A51: Gas Day: | E51: 2021-03-26
A52: Receipt Point | B52: Delivery Point | C52: Operating Capacity (DTHS) | D52: Schedule Volume (DTHS) | E52: Estimated Available Capacity
A53: Kelso/Beaver | B53: Port Westward | C53: 64000 | D53: 60000 | E53: =C53-D53 -> 4000
A54: Kelso/Beaver | B54: Port Westward II | C54: 44000 | D54: 4974 | E54: 39026
A55: Kelso/Beaver | B55: N. Mist Storage | C55: 61000 | D55: 0 | E55: 61000
A56: Kelso/Beaver | B56: Beaver Unit 8 | C56: 7326 | D56: 0 | E56: 7326
A57: Kelso/Beaver | B57: Beaver 1 - 6 | C57: 152400 | D57: 0 | E57: 152400
A58: Mist Port Westward | B58: Port Westward | C58: 70000 | D58: 0 | E58: 70000
A59: Mist Port Westward II | B59: Port Westward II | C59: 70000 | D59: 0 | E59: 70000
A60: Mist Beaver | B60: Beaver | C60: 70000 | D60: 0 | E60: =C60-D60 -> 70000
A61: Gas Day: | E61: 2021-03-25
A62: Receipt Point | B62: Delivery Point | C62: Operating Capacity (DTHS) | D62: Schedule Volume (DTHS) | E62: Estimated Available Capacity
A63: Kelso/Beaver | B63: Port Westward | C63: 64000 | D63: 60000 | E63: =C63-D63 -> 4000
A64: Kelso/Beaver | B64: Port Westward II | C64: 44000 | D64: 4974 | E64: 39026
A65: Kelso/Beaver | B65: N. Mist Storage | C65: 61000 | D65: 0 | E65: 61000
A66: Kelso/Beaver | B66: Beaver Unit 8 | C66: 7326 | D66: 0 | E66: 7326
A67: Kelso/Beaver | B67: Beaver 1 - 6 | C67: 152400 | D67: 0 | E67: 152400
A68: Mist Port Westward | B68: Port Westward | C68: 70000 | D68: 0 | E68: 70000
A69: Mist Port Westward II | B69: Port Westward II | C69: 70000 | D69: 0 | E69: 70000
A70: Mist Beaver | B70: Beaver | C70: 70000 | D70: 0 | E70: =C70-D70 -> 70000
A71: Gas Day: | E71: 2021-03-24
A72: Receipt Point | B72: Delivery Point | C72: Operating Capacity (DTHS) | D72: Schedule Volume (DTHS) | E72: Estimated Available Capacity
A73: Kelso/Beaver | B73: Port Westward | C73: 64000 | D73: 64000 | E73: =C73-D73 -> 0
A74: Kelso/Beaver | B74: Port Westward II | C74: 44000 | D74: 10886 | E74: 33114
A75: Kelso/Beaver | B75: N. Mist Storage | C75: 61000 | D75: 0 | E75: 61000
A76: Kelso/Beaver | B76: Beaver Unit 8 | C76: 7326 | D76: 0 | E76: 7326
A77: Kelso/Beaver | B77: Beaver 1 - 6 | C77: 152400 | D77: 0 | E77: 152400
A78: Mist Port Westward | B78: Port Westward | C78: 70000 | D78: 0 | E78: 70000
A79: Mist Port Westward II | B79: Port Westward II | C79: 70000 | D79: 0 | E79: 70000
A80: Mist Beaver | B80: Beaver | C80: 70000 | D80: 0 | E80: =C80-D80 -> 70000
A81: Gas Day: | E81: 2021-03-23
A82: Receipt Point | B82: Delivery Point | C82: Operating Capacity (DTHS) | D82: Schedule Volume (DTHS) | E82: Estimated Available Capacity
A83: Kelso/Beaver | B83: Port Westward | C83: 64000 | D83: 64000 | E83: =C83-D83 -> 0
A84: Kelso/Beaver | B84: Port Westward II | C84: 44000 | D84: 19036 | E84: 24964
A85: Kelso/Beaver | B85: N. Mist Storage | C85: 61000 | D85: 0 | E85: 61000
A86: Kelso/Beaver | B86: Beaver Unit 8 | C86: 7326 | D86: 0 | E86: 7326
A87: Kelso/Beaver | B87: Beaver 1 - 6 | C87: 152400 | D87: 20000 | E87: 132400
A88: Mist Port Westward | B88: Port Westward | C88: 70000 | D88: 0 | E88: 70000
A89: Mist Port Westward II | B89: Port Westward II | C89: 70000 | D89: 0 | E89: 70000
A90: Mist Beaver | B90: Beaver | C90: 70000 | D90: 0 | E90: =C90-D90 -> 70000
A91: Gas Day: | E91: 2021-03-22
A92: Receipt Point | B92: Delivery Point | C92: Operating Capacity (DTHS) | D92: Schedule Volume (DTHS) | E92: Estimated Available Capacity
A93: Kelso/Beaver | B93: Port Westward | C93: 64000 | D93: 64000 | E93: =C93-D93 -> 0
A94: Kelso/Beaver | B94: Port Westward II | C94: 44000 | D94: 15842 | E94: 28158
A95: Kelso/Beaver | B95: N. Mist Storage | C95: 61000 | D95: 0 | E95: 61000
A96: Kelso/Beaver | B96: Beaver Unit 8 | C96: 7326 | D96: 0 | E96: 7326
A97: Kelso/Beaver | B97: Beaver 1 - 6 | C97: 152400 | D97: 0 | E97: 152400
A98: Mist Port Westward | B98: Port Westward | C98: 70000 | D98: 0 | E98: 70000
A99: Mist Port Westward II | B99: Port Westward II | C99: 70000 | D99: 0 | E99: 70000
A100: Mist Beaver | B100: Beaver | C100: 70000 | D100: 0 | E100: =C100-D100 -> 70000
A101: Gas Day: | E101: 2021-03-21
A102: Receipt Point | B102: Delivery Point | C102: Operating Capacity (DTHS) | D102: Schedule Volume (DTHS) | E102: Estimated Available Capacity
A103: Kelso/Beaver | B103: Port Westward | C103: 64000 | D103: 64000 | E103: =C103-D103 -> 0
A104: Kelso/Beaver | B104: Port Westward II | C104: 44000 | D104: 15842 | E104: 28158
A105: Kelso/Beaver | B105: N. Mist Storage | C105: 61000 | D105: 0 | E105: 61000
A106: Kelso/Beaver | B106: Beaver Unit 8 | C106: 7326 | D106: 0 | E106: 7326
A107: Kelso/Beaver | B107: Beaver 1 - 6 | C107: 152400 | D107: 0 | E107: 152400
A108: Mist Port Westward | B108: Port Westward | C108: 70000 | D108: 0 | E108: 70000
A109: Mist Port Westward II | B109: Port Westward II | C109: 70000 | D109: 0 | E109: 70000
A110: Mist Beaver | B110: Beaver | C110: 70000 | D110: 0 | E110: =C110-D110 -> 70000
A111: Gas Day: | E111: 2021-03-20
A112: Receipt Point | B112: Delivery Point | C112: Operating Capacity (DTHS) | D112: Schedule Volume (DTHS) | E112: Estimated Available Capacity
A113: Kelso/Beaver | B113: Port Westward | C113: 64000 | D113: 64000 | E113: =C113-D113 -> 0
A114: Kelso/Beaver | B114: Port Westward II | C114: 44000 | D114: 15842 | E114: 28158
A115: Kelso/Beaver | B115: N. Mist Storage | C115: 61000 | D115: 0 | E115: 61000
A116: Kelso/Beaver | B116: Beaver Unit 8 | C116: 7326 | D116: 0 | E116: 7326
A117: Kelso/Beaver | B117: Beaver 1 - 6 | C117: 152400 | D117: 0 | E117: 152400
A118: Mist Port Westward | B118: Port Westward | C118: 70000 | D118: 0 | E118: 70000
A119: Mist Port Westward II | B119: Port Westward II | C119: 70000 | D119: 0 | E119: 70000
A120: Mist Beaver | B120: Beaver | C120: 70000 | D120: 0 | E120: =C120-D120 -> 70000
A121: Gas Day: | E121: 2021-03-19
A122: Receipt Point | B122: Delivery Point | C122: Operating Capacity (DTHS) | D122: Schedule Volume (DTHS) | E122: Estimated Available Capacity
A123: Kelso/Beaver | B123: Port Westward | C123: 64000 | D123: 64000 | E123: =C123-D123 -> 0
A124: Kelso/Beaver | B124: Port Westward II | C124: 44000 | D124: 19036 | E124: 24964
A125: Kelso/Beaver | B125: N. Mist Storage | C125: 61000 | D125: 0 | E125: 61000
A126: Kelso/Beaver | B126: Beaver Unit 8 | C126: 7326 | D126: 0 | E126: 7326
A127: Kelso/Beaver | B127: Beaver 1 - 6 | C127: 152400 | D127: 20000 | E127: 132400
A128: Mist Port Westward | B128: Port Westward | C128: 70000 | D128: 0 | E128: 70000
A129: Mist Port Westward II | B129: Port Westward II | C129: 70000 | D129: 0 | E129: 70000
A130: Mist Beaver | B130: Beaver | C130: 70000 | D130: 0 | E130: =C130-D130 -> 70000
A131: Gas Day: | E131: 2021-03-18
A132: Receipt Point | B132: Delivery Point | C132: Operating Capacity (DTHS) | D132: Schedule Volume (DTHS) | E132: Estimated Available Capacity
A133: Kelso/Beaver | B133: Port Westward | C133: 64000 | D133: 64000 | E133: =C133-D133 -> 0
A134: Kelso/Beaver | B134: Port Westward II | C134: 44000 | D134: 0 | E134: 44000
A135: Kelso/Beaver | B135: N. Mist Storage | C135: 61000 | D135: 0 | E135: 61000
A136: Kelso/Beaver | B136: Beaver Unit 8 | C136: 7326 | D136: 0 | E136: 7326
A137: Kelso/Beaver | B137: Beaver 1 - 6 | C137: 152400 | D137: 39036 | E137: 113364
A138: Mist Port Westward | B138: Port Westward | C138: 70000 | D138: 0 | E138: 70000
A139: Mist Port Westward II | B139: Port Westward II | C139: 70000 | D139: 0 | E139: 70000
A140: Mist Beaver | B140: Beaver | C140: 70000 | D140: 0 | E140: =C140-D140 -> 70000
A141: Gas Day: | E141: 2021-03-17
A142: Receipt Point | B142: Delivery Point | C142: Operating Capacity (DTHS) | D142: Schedule Volume (DTHS) | E142: Estimated Available Capacity
A143: Kelso/Beaver | B143: Port Westward | C143: 64000 | D143: 64000 | E143: =C143-D143 -> 0
A144: Kelso/Beaver | B144: Port Westward II | C144: 44000 | D144: 38166 | E144: 5834
A145: Kelso/Beaver | B145: N. Mist Storage | C145: 61000 | D145: 0 | E145: 61000
A146: Kelso/Beaver | B146: Beaver Unit 8 | C146: 7326 | D146: 0 | E146: 7326
A147: Kelso/Beaver | B147: Beaver 1 - 6 | C147: 152400 | D147: 0 | E147: 152400
A148: Mist Port Westward | B148: Port Westward | C148: 70000 | D148: 0 | E148: 70000
A149: Mist Port Westward II | B149: Port Westward II | C149: 70000 | D149: 0 | E149: 70000
A150: Mist Beaver | B150: Beaver | C150: 70000 | D150: 0 | E150: =C150-D150 -> 70000
A151: Gas Day: | E151: 2021-03-16
A152: Receipt Point | B152: Delivery Point | C152: Operating Capacity (DTHS) | D152: Schedule Volume (DTHS) | E152: Estimated Available Capacity
A153: Kelso/Beaver | B153: Port Westward | C153: 64000 | D153: 64000 | E153: =C153-D153 -> 0
A154: Kelso/Beaver | B154: Port Westward II | C154: 44000 | D154: 38661 | E154: 5339
A155: Kelso/Beaver | B155: N. Mist Storage | C155: 61000 | D155: 0 | E155: 61000
A156: Kelso/Beaver | B156: Beaver Unit 8 | C156: 7326 | D156: 0 | E156: 7326
A157: Kelso/Beaver | B157: Beaver 1 - 6 | C157: 152400 | D157: 0 | E157: 152400
A158: Mist Port Westward | B158: Port Westward | C158: 70000 | D158: 0 | E158: 70000
A159: Mist Port Westward II | B159: Port Westward II | C159: 70000 | D159: 0 | E159: 70000
A160: Mist Beaver | B160: Beaver | C160: 70000 | D160: 0 | E160: =C160-D160 -> 70000
A161: Gas Day: | E161: 2021-03-15
A162: Receipt Point | B162: Delivery Point | C162: Operating Capacity (DTHS) | D162: Schedule Volume (DTHS) | E162: Estimated Available Capacity
A163: Kelso/Beaver | B163: Port Westward | C163: 64000 | D163: 64000 | E163: =C163-D163 -> 0
A164: Kelso/Beaver | B164: Port Westward II | C164: 44000 | D164: 38165 | E164: 5835
A165: Kelso/Beaver | B165: N. Mist Storage | C165: 61000 | D165: 0 | E165: 61000
A166: Kelso/Beaver | B166: Beaver Unit 8 | C166: 7326 | D166: 0 | E166: 7326
A167: Kelso/Beaver | B167: Beaver 1 - 6 | C167: 152400 | D167: 0 | E167: 152400
A168: Mist Port Westward | B168: Port Westward | C168: 70000 | D168: 0 | E168: 70000
A169: Mist Port Westward II | B169: Port Westward II | C169: 70000 | D169: 0 | E169: 70000
A170: Mist Beaver | B170: Beaver | C170: 70000 | D170: 0 | E170: =C170-D170 -> 70000
A171: Gas Day: | E171: 2021-03-14
A172: Receipt Point | B172: Delivery Point | C172: Operating Capacity (DTHS) | D172: Schedule Volume (DTHS) | E172: Estimated Available Capacity
A173: Kelso/Beaver | B173: Port Westward | C173: 64000 | D173: 64000 | E173: =C173-D173 -> 0
A174: Kelso/Beaver | B174: Port Westward II | C174: 44000 | D174: 38165 | E174: 5835
A175: Kelso/Beaver | B175: N. Mist Storage | C175: 61000 | D175: 0 | E175: 61000
A176: Kelso/Beaver | B176: Beaver Unit 8 | C176: 7326 | D176: 0 | E176: 7326
A177: Kelso/Beaver | B177: Beaver 1 - 6 | C177: 152400 | D177: 0 | E177: 152400
A178: Mist Port Westward | B178: Port Westward | C178: 70000 | D178: 0 | E178: 70000
A179: Mist Port Westward II | B179: Port Westward II | C179: 70000 | D179: 0 | E179: 70000
A180: Mist Beaver | B180: Beaver | C180: 70000 | D180: 0 | E180: =C180-D180 -> 70000
A181: Gas Day: | E181: 2021-03-13
A182: Receipt Point | B182: Delivery Point | C182: Operating Capacity (DTHS) | D182: Schedule Volume (DTHS) | E182: Estimated Available Capacity
A183: Kelso/Beaver | B183: Port Westward | C183: 64000 | D183: 64000 | E183: =C183-D183 -> 0
A184: Kelso/Beaver | B184: Port Westward II | C184: 44000 | D184: 38165 | E184: 5835
A185: Kelso/Beaver | B185: N. Mist Storage | C185: 61000 | D185: 0 | E185: 61000
A186: Kelso/Beaver | B186: Beaver Unit 8 | C186: 7326 | D186: 0 | E186: 7326
A187: Kelso/Beaver | B187: Beaver 1 - 6 | C187: 152400 | D187: 0 | E187: 152400
A188: Mist Port Westward | B188: Port Westward | C188: 70000 | D188: 0 | E188: 70000
A189: Mist Port Westward II | B189: Port Westward II | C189: 70000 | D189: 0 | E189: 70000
A190: Mist Beaver | B190: Beaver | C190: 70000 | D190: 0 | E190: =C190-D190 -> 70000
A191: Gas Day: | E191: 2021-03-12
A192: Receipt Point | B192: Delivery Point | C192: Operating Capacity (DTHS) | D192: Schedule Volume (DTHS) | E192: Estimated Available Capacity
A193: Kelso/Beaver | B193: Port Westward | C193: 64000 | D193: 64000 | E193: =C193-D193 -> 0
A194: Kelso/Beaver | B194: Port Westward II | C194: 44000 | D194: 39346 | E194: 4654
A195: Kelso/Beaver | B195: N. Mist Storage | C195: 61000 | D195: 0 | E195: 61000
A196: Kelso/Beaver | B196: Beaver Unit 8 | C196: 7326 | D196: 0 | E196: 7326
A197: Kelso/Beaver | B197: Beaver 1 - 6 | C197: 152400 | D197: 0 | E197: 152400
A198: Mist Port Westward | B198: Port Westward | C198: 70000 | D198: 0 | E198: 70000
A199: Mist Port Westward II | B199: Port Westward II | C199: 70000 | D199: 0 | E199: 70000
A200: Mist Beaver | B200: Beaver | C200: 70000 | D200: 0 | E200: =C200-D200 -> 70000
... 110 more rows

Sheet April
A1: Gas Day: | E1: 2021-04-30
A2: Receipt Point | B2: Delivery Point | C2: Operating Capacity (DTHS) | D2: Schedule Volume (DTHS) | E2: Estimated Available Capacity
A3: Kelso/Beaver | B3: Port Westward | C3: 64000 | D3: 64000 | E3: =C3-D3 -> 0
A4: Kelso/Beaver | B4: Port Westward II | C4: 44000 | D4: 23660 | E4: 20340
A5: Kelso/Beaver | B5: N. Mist Storage | C5: 61000 | D5: 55000 | E5: 6000
A6: Kelso/Beaver | B6: Beaver Unit 8 | C6: 7326 | D6: 0 | E6: 7326
A7: Kelso/Beaver | B7: Beaver 1 - 6 | C7: 152400 | D7: 0 | E7: 152400
A8: Mist Port Westward | B8: Port Westward | C8: 70000 | D8: 0 | E8: 70000
A9: Mist Port Westward II | B9: Port Westward II | C9: 70000 | D9: 0 | E9: 70000
A10: Mist Beaver | B10: Beaver | C10: 70000 | D10: 0 | E10: =C10-D10 -> 70000
A11: Gas Day: | E11: 2021-04-29
A12: Receipt Point | B12: Delivery Point | C12: Operating Capacity (DTHS) | D12: Schedule Volume (DTHS) | E12: Estimated Available Capacity
A13: Kelso/Beaver | B13: Port Westward | C13: 64000 | D13: 64000 | E13: =C13-D13 -> 0
A14: Kelso/Beaver | B14: Port Westward II | C14: 44000 | D14: 23632 | E14: 20368
A15: Kelso/Beaver | B15: N. Mist Storage | C15: 61000 | D15: 55000 | E15: 6000
A16: Kelso/Beaver | B16: Beaver Unit 8 | C16: 7326 | D16: 0 | E16: 7326
A17: Kelso/Beaver | B17: Beaver 1 - 6 | C17: 152400 | D17: 0 | E17: 152400
A18: Mist Port Westward | B18: Port Westward | C18: 70000 | D18: 0 | E18: 70000
A19: Mist Port Westward II | B19: Port Westward II | C19: 70000 | D19: 0 | E19: 70000
A20: Mist Beaver | B20: Beaver | C20: 70000 | D20: 0 | E20: =C20-D20 -> 70000
A21: Gas Day: | E21: 2021-04-28
A22: Receipt Point | B22: Delivery Point | C22: Operating Capacity (DTHS) | D22: Schedule Volume (DTHS) | E22: Estimated Available Capacity
A23: Kelso/Beaver | B23: Port Westward | C23: 64000 | D23: 64000 | E23: =C23-D23 -> 0
A24: Kelso/Beaver | B24: Port Westward II | C24: 44000 | D24: 28646 | E24: 15354
A25: Kelso/Beaver | B25: N. Mist Storage | C25: 61000 | D25: 50000 | E25: 11000
A26: Kelso/Beaver | B26: Beaver Unit 8 | C26: 7326 | D26: 0 | E26: 7326
A27: Kelso/Beaver | B27: Beaver 1 - 6 | C27: 152400 | D27: 0 | E27: 152400
A28: Mist Port Westward | B28: Port Westward | C28: 70000 | D28: 0 | E28: 70000
A29: Mist Port Westward II | B29: Port Westward II | C29: 70000 | D29: 0 | E29: 70000
A30: Mist Beaver | B30: Beaver | C30: 70000 | D30: 0 | E30: =C30-D30 -> 70000
A31: Gas Day: | E31: 2021-04-27
A32: Receipt Point | B32: Delivery Point | C32: Operating Capacity (DTHS) | D32: Schedule Volume (DTHS) | E32: Estimated Available Capacity
A33: Kelso/Beaver | B33: Port Westward | C33: 64000 | D33: 64000 | E33: =C33-D33 -> 0
A34: Kelso/Beaver | B34: Port Westward II | C34: 44000 | D34: 28646 | E34: 15354
A35: Kelso/Beaver | B35: N. Mist Storage | C35: 61000 | D35: 50000 | E35: 11000
A36: Kelso/Beaver | B36: Beaver Unit 8 | C36: 7326 | D36: 0 | E36: 7326
A37: Kelso/Beaver | B37: Beaver 1 - 6 | C37: 152400 | D37: 0 | E37: 152400
A38: Mist Port Westward | B38: Port Westward | C38: 70000 | D38: 0 | E38: 70000
A39: Mist Port Westward II | B39: Port Westward II | C39: 70000 | D39: 0 | E39: 70000
A40: Mist Beaver | B40: Beaver | C40: 70000 | D40: 0 | E40: =C40-D40 -> 70000
A41: Gas Day: | E41: 2021-04-26
A42: Receipt Point | B42: Delivery Point | C42: Operating Capacity (DTHS) | D42: Schedule Volume (DTHS) | E42: Estimated Available Capacity
A43: Kelso/Beaver | B43: Port Westward | C43: 64000 | D43: 64000 | E43: =C43-D43 -> 0
A44: Kelso/Beaver | B44: Port Westward II | C44: 44000 | D44: 14157 | E44: 29843
A45: Kelso/Beaver | B45: N. Mist Storage | C45: 61000 | D45: 55000 | E45: 6000
A46: Kelso/Beaver | B46: Beaver Unit 8 | C46: 7326 | D46: 0 | E46: 7326
A47: Kelso/Beaver | B47: Beaver 1 - 6 | C47: 152400 | D47: 0 | E47: 152400
A48: Mist Port Westward | B48: Port Westward | C48: 70000 | D48: 0 | E48: 70000
A49: Mist Port Westward II | B49: Port Westward II | C49: 70000 | D49: 0 | E49: 70000
A50: Mist Beaver | B50: Beaver | C50: 70000 | D50: 0 | E50: =C50-D50 -> 70000
A51: Gas Day: | E51: 2021-04-25
A52: Receipt Point | B52: Delivery Point | C52: Operating Capacity (DTHS) | D52: Schedule Volume (DTHS) | E52: Estimated Available Capacity
A53: Kelso/Beaver | B53: Port Westward | C53: 64000 | D53: 64000 | E53: =C53-D53 -> 0
A54: Kelso/Beaver | B54: Port Westward II | C54: 44000 | D54: 14157 | E54: 29843
A55: Kelso/Beaver | B55: N. Mist Storage | C55: 61000 | D55: 55000 | E55: 6000
A56: Kelso/Beaver | B56: Beaver Unit 8 | C56: 7326 | D56: 0 | E56: 7326
A57: Kelso/Beaver | B57: Beaver 1 - 6 | C57: 152400 | D57: 0 | E57: 152400
A58: Mist Port Westward | B58: Port Westward | C58: 70000 | D58: 0 | E58: 70000
A59: Mist Port Westward II | B59: Port Westward II | C59: 70000 | D59: 0 | E59: 70000
A60: Mist Beaver | B60: Beaver | C60: 70000 | D60: 0 | E60: =C60-D60 -> 70000
A61: Gas Day: | E61: 2021-04-24
A62: Receipt Point | B62: Delivery Point | C62: Operating Capacity (DTHS) | D62: Schedule Volume (DTHS) | E62: Estimated Available Capacity
A63: Kelso/Beaver | B63: Port Westward | C63: 64000 | D63: 64000 | E63: =C63-D63 -> 0
A64: Kelso/Beaver | B64: Port Westward II | C64: 44000 | D64: 14157 | E64: 29843
A65: Kelso/Beaver | B65: N. Mist Storage | C65: 61000 | D65: 55000 | E65: 6000
A66: Kelso/Beaver | B66: Beaver Unit 8 | C66: 7326 | D66: 0 | E66: 7326
A67: Kelso/Beaver | B67: Beaver 1 - 6 | C67: 152400 | D67: 0 | E67: 152400
A68: Mist Port Westward | B68: Port Westward | C68: 70000 | D68: 0 | E68: 70000
A69: Mist Port Westward II | B69: Port Westward II | C69: 70000 | D69: 0 | E69: 70000
A70: Mist Beaver | B70: Beaver | C70: 70000 | D70: 0 | E70: =C70-D70 -> 70000
A71: Gas Day: | E71: 2021-04-23
A72: Receipt Point | B72: Delivery Point | C72: Operating Capacity (DTHS) | D72: Schedule Volume (DTHS) | E72: Estimated Available Capacity
A73: Kelso/Beaver | B73: Port Westward | C73: 64000 | D73: 64000 | E73: =C73-D73 -> 0
A74: Kelso/Beaver | B74: Port Westward II | C74: 44000 | D74: 8646 | E74: 35354
A75: Kelso/Beaver | B75: N. Mist Storage | C75: 61000 | D75: 55000 | E75: 6000
A76: Kelso/Beaver | B76: Beaver Unit 8 | C76: 7326 | D76: 0 | E76: 7326
A77: Kelso/Beaver | B77: Beaver 1 - 6 | C77: 152400 | D77: 0 | E77: 152400
A78: Mist Port Westward | B78: Port Westward | C78: 70000 | D78: 0 | E78: 70000
A79: Mist Port Westward II | B79: Port Westward II | C79: 70000 | D79: 0 | E79: 70000
A80: Mist Beaver | B80: Beaver | C80: 70000 | D80: 0 | E80: =C80-D80 -> 70000
A81: Gas Day: | E81: 2021-04-22
A82: Receipt Point | B82: Delivery Point | C82: Operating Capacity (DTHS) | D82: Schedule Volume (DTHS) | E82: Estimated Available Capacity
A83: Kelso/Beaver | B83: Port Westward | C83: 64000 | D83: 64000 | E83: =C83-D83 -> 0
A84: Kelso/Beaver | B84: Port Westward II | C84: 44000 | D84: 13646 | E84: 30354
A85: Kelso/Beaver | B85: N. Mist Storage | C85: 61000 | D85: 50000 | E85: 11000
A86: Kelso/Beaver | B86: Beaver Unit 8 | C86: 7326 | D86: 0 | E86: 7326
A87: Kelso/Beaver | B87: Beaver 1 - 6 | C87: 152400 | D87: 0 | E87: 152400
A88: Mist Port Westward | B88: Port Westward | C88: 70000 | D88: 0 | E88: 70000
A89: Mist Port Westward II | B89: Port Westward II | C89: 70000 | D89: 0 | E89: 70000
A90: Mist Beaver | B90: Beaver | C90: 70000 | D90: 0 | E90: =C90-D90 -> 70000
A91: Gas Day: | E91: 2021-04-21
A92: Receipt Point | B92: Delivery Point | C92: Operating Capacity (DTHS) | D92: Schedule Volume (DTHS) | E92: Estimated Available Capacity
A93: Kelso/Beaver | B93: Port Westward | C93: 64000 | D93: 64000 | E93: =C93-D93 -> 0
A94: Kelso/Beaver | B94: Port Westward II | C94: 44000 | D94: 18648 | E94: 25352
A95: Kelso/Beaver | B95: N. Mist Storage | C95: 61000 | D95: 50000 | E95: 11000
A96: Kelso/Beaver | B96: Beaver Unit 8 | C96: 7326 | D96: 0 | E96: 7326
A97: Kelso/Beaver | B97: Beaver 1 - 6 | C97: 152400 | D97: 0 | E97: 152400
A98: Mist Port Westward | B98: Port Westward | C98: 70000 | D98: 0 | E98: 70000
A99: Mist Port Westward II | B99: Port Westward II | C99: 70000 | D99: 0 | E99: 70000
A100: Mist Beaver | B100: Beaver | C100: 70000 | D100: 0 | E100: =C100-D100 -> 70000
A101: Gas Day: | E101: 2021-04-20
A102: Receipt Point | B102: Delivery Point | C102: Operating Capacity (DTHS) | D102: Schedule Volume (DTHS) | E102: Estimated Available Capacity
A103: Kelso/Beaver | B103: Port Westward | C103: 64000 | D103: 64000 | E103: =C103-D103 -> 0
A104: Kelso/Beaver | B104: Port Westward II | C104: 44000 | D104: 24567 | E104: 19433
A105: Kelso/Beaver | B105: N. Mist Storage | C105: 61000 | D105: 45000 | E105: 16000
A106: Kelso/Beaver | B106: Beaver Unit 8 | C106: 7326 | D106: 0 | E106: 7326
A107: Kelso/Beaver | B107: Beaver 1 - 6 | C107: 152400 | D107: 0 | E107: 152400
A108: Mist Port Westward | B108: Port Westward | C108: 70000 | D108: 0 | E108: 70000
A109: Mist Port Westward II | B109: Port Westward II | C109: 70000 | D109: 0 | E109: 70000
A110: Mist Beaver | B110: Beaver | C110: 70000 | D110: 0 | E110: =C110-D110 -> 70000
A111: Gas Day: | E111: 2021-04-19
A112: Receipt Point | B112: Delivery Point | C112: Operating Capacity (DTHS) | D112: Schedule Volume (DTHS) | E112: Estimated Available Capacity
A113: Kelso/Beaver | B113: Port Westward | C113: 64000 | D113: 64000 | E113: =C113-D113 -> 0
A114: Kelso/Beaver | B114: Port Westward II | C114: 44000 | D114: 0 | E114: 44000
A115: Kelso/Beaver | B115: N. Mist Storage | C115: 61000 | D115: 0 | E115: 61000
A116: Kelso/Beaver | B116: Beaver Unit 8 | C116: 7326 | D116: 0 | E116: 7326
A117: Kelso/Beaver | B117: Beaver 1 - 6 | C117: 152400 | D117: 79119 | E117: 73281
A118: Mist Port Westward | B118: Port Westward | C118: 70000 | D118: 0 | E118: 70000
A119: Mist Port Westward II | B119: Port Westward II | C119: 70000 | D119: 0 | E119: 70000
A120: Mist Beaver | B120: Beaver | C120: 70000 | D120: 0 | E120: =C120-D120 -> 70000
A121: Gas Day: | E121: 2021-04-18
A122: Receipt Point | B122: Delivery Point | C122: Operating Capacity (DTHS) | D122: Schedule Volume (DTHS) | E122: Estimated Available Capacity
A123: Kelso/Beaver | B123: Port Westward | C123: 64000 | D123: 64000 | E123: =C123-D123 -> 0
A124: Kelso/Beaver | B124: Port Westward II | C124: 44000 | D124: 0 | E124: 44000
A125: Kelso/Beaver | B125: N. Mist Storage | C125: 61000 | D125: 0 | E125: 61000
A126: Kelso/Beaver | B126: Beaver Unit 8 | C126: 7326 | D126: 0 | E126: 7326
A127: Kelso/Beaver | B127: Beaver 1 - 6 | C127: 152400 | D127: 79119 | E127: 73281
A128: Mist Port Westward | B128: Port Westward | C128: 70000 | D128: 0 | E128: 70000
A129: Mist Port Westward II | B129: Port Westward II | C129: 70000 | D129: 0 | E129: 70000
A130: Mist Beaver | B130: Beaver | C130: 70000 | D130: 0 | E130: =C130-D130 -> 70000
A131: Gas Day: | E131: 2021-04-17
A132: Receipt Point | B132: Delivery Point | C132: Operating Capacity (DTHS) | D132: Schedule Volume (DTHS) | E132: Estimated Available Capacity
A133: Kelso/Beaver | B133: Port Westward | C133: 64000 | D133: 64000 | E133: =C133-D133 -> 0
A134: Kelso/Beaver | B134: Port Westward II | C134: 44000 | D134: 0 | E134: 44000
A135: Kelso/Beaver | B135: N. Mist Storage | C135: 61000 | D135: 0 | E135: 61000
A136: Kelso/Beaver | B136: Beaver Unit 8 | C136: 7326 | D136: 0 | E136: 7326
A137: Kelso/Beaver | B137: Beaver 1 - 6 | C137: 152400 | D137: 79119 | E137: 73281
A138: Mist Port Westward | B138: Port Westward | C138: 70000 | D138: 0 | E138: 70000
A139: Mist Port Westward II | B139: Port Westward II | C139: 70000 | D139: 0 | E139: 70000
A140: Mist Beaver | B140: Beaver | C140: 70000 | D140: 0 | E140: =C140-D140 -> 70000
A141: Gas Day: | E141: 2021-04-16
A142: Receipt Point | B142: Delivery Point | C142: Operating Capacity (DTHS) | D142: Schedule Volume (DTHS) | E142: Estimated Available Capacity
A143: Kelso/Beaver | B143: Port Westward | C143: 64000 | D143: 64000 | E143: =C143-D143 -> 0
A144: Kelso/Beaver | B144: Port Westward II | C144: 44000 | D144: 0 | E144: 44000
A145: Kelso/Beaver | B145: N. Mist Storage | C145: 61000 | D145: 0 | E145: 61000
A146: Kelso/Beaver | B146: Beaver Unit 8 | C146: 7326 | D146: 0 | E146: 7326
A147: Kelso/Beaver | B147: Beaver 1 - 6 | C147: 152400 | D147: 73693 | E147: 78707
A148: Mist Port Westward | B148: Port Westward | C148: 70000 | D148: 0 | E148: 70000
A149: Mist Port Westward II | B149: Port Westward II | C149: 70000 | D149: 0 | E149: 70000
A150: Mist Beaver | B150: Beaver | C150: 70000 | D150: 0 | E150: =C150-D150 -> 70000
A151: Gas Day: | E151: 2021-04-15
A152: Receipt Point | B152: Delivery Point | C152: Operating Capacity (DTHS) | D152: Schedule Volume (DTHS) | E152: Estimated Available Capacity
A153: Kelso/Beaver | B153: Port Westward | C153: 64000 | D153: 64000 | E153: =C153-D153 -> 0
A154: Kelso/Beaver | B154: Port Westward II | C154: 44000 | D154: 28646 | E154: 15354
A155: Kelso/Beaver | B155: N. Mist Storage | C155: 61000 | D155: 0 | E155: 61000
A156: Kelso/Beaver | B156: Beaver Unit 8 | C156: 7326 | D156: 0 | E156: 7326
A157: Kelso/Beaver | B157: Beaver 1 - 6 | C157: 152400 | D157: 45000 | E157: 107400
A158: Mist Port Westward | B158: Port Westward | C158: 70000 | D158: 0 | E158: 70000
A159: Mist Port Westward II | B159: Port Westward II | C159: 70000 | D159: 0 | E159: 70000
A160: Mist Beaver | B160: Beaver | C160: 70000 | D160: 0 | E160: =C160-D160 -> 70000
A161: Gas Day: | E161: 2021-04-14
A162: Receipt Point | B162: Delivery Point | C162: Operating Capacity (DTHS) | D162: Schedule Volume (DTHS) | E162: Estimated Available Capacity
A163: Kelso/Beaver | B163: Port Westward | C163: 64000 | D163: 64000 | E163: =C163-D163 -> 0
A164: Kelso/Beaver | B164: Port Westward II | C164: 44000 | D164: 16651 | E164: 27349
A165: Kelso/Beaver | B165: N. Mist Storage | C165: 61000 | D165: 42000 | E165: 19000
A166: Kelso/Beaver | B166: Beaver Unit 8 | C166: 7326 | D166: 0 | E166: 7326
A167: Kelso/Beaver | B167: Beaver 1 - 6 | C167: 152400 | D167: 0 | E167: 152400
A168: Mist Port Westward | B168: Port Westward | C168: 70000 | D168: 0 | E168: 70000
A169: Mist Port Westward II | B169: Port Westward II | C169: 70000 | D169: 0 | E169: 70000
A170: Mist Beaver | B170: Beaver | C170: 70000 | D170: 0 | E170: =C170-D170 -> 70000
A171: Gas Day: | E171: 2021-04-13
A172: Receipt Point | B172: Delivery Point | C172: Operating Capacity (DTHS) | D172: Schedule Volume (DTHS) | E172: Estimated Available Capacity
A173: Kelso/Beaver | B173: Port Westward | C173: 64000 | D173: 64000 | E173: =C173-D173 -> 0
A174: Kelso/Beaver | B174: Port Westward II | C174: 44000 | D174: 28602 | E174: 15398
A175: Kelso/Beaver | B175: N. Mist Storage | C175: 61000 | D175: 40000 | E175: 21000
A176: Kelso/Beaver | B176: Beaver Unit 8 | C176: 7326 | D176: 0 | E176: 7326
A177: Kelso/Beaver | B177: Beaver 1 - 6 | C177: 152400 | D177: 0 | E177: 152400
A178: Mist Port Westward | B178: Port Westward | C178: 70000 | D178: 0 | E178: 70000
A179: Mist Port Westward II | B179: Port Westward II | C179: 70000 | D179: 0 | E179: 70000
A180: Mist Beaver | B180: Beaver | C180: 70000 | D180: 0 | E180: =C180-D180 -> 70000
A181: Gas Day: | E181: 2021-04-12
A182: Receipt Point | B182: Delivery Point | C182: Operating Capacity (DTHS) | D182: Schedule Volume (DTHS) | E182: Estimated Available Capacity
A183: Kelso/Beaver | B183: Port Westward | C183: 64000 | D183: 60000 | E183: =C183-D183 -> 4000
A184: Kelso/Beaver | B184: Port Westward II | C184: 44000 | D184: 15000 | E184: 29000
A185: Kelso/Beaver | B185: N. Mist Storage | C185: 61000 | D185: 35000 | E185: 26000
A186: Kelso/Beaver | B186: Beaver Unit 8 | C186: 7326 | D186: 0 | E186: 7326
A187: Kelso/Beaver | B187: Beaver 1 - 6 | C187: 152400 | D187: 23147 | E187: 129253
A188: Mist Port Westward | B188: Port Westward | C188: 70000 | D188: 0 | E188: 70000
A189: Mist Port Westward II | B189: Port Westward II | C189: 70000 | D189: 0 | E189: 70000
A190: Mist Beaver | B190: Beaver | C190: 70000 | D190: 0 | E190: =C190-D190 -> 70000
A191: Gas Day: | E191: 2021-04-11
A192: Receipt Point | B192: Delivery Point | C192: Operating Capacity (DTHS) | D192: Schedule Volume (DTHS) | E192: Estimated Available Capacity
A193: Kelso/Beaver | B193: Port Westward | C193: 64000 | D193: 60000 | E193: =C193-D193 -> 4000
A194: Kelso/Beaver | B194: Port Westward II | C194: 44000 | D194: 15000 | E194: 29000
A195: Kelso/Beaver | B195: N. Mist Storage | C195: 61000 | D195: 35000 | E195: 26000
A196: Kelso/Beaver | B196: Beaver Unit 8 | C196: 7326 | D196: 0 | E196: 7326
A197: Kelso/Beaver | B197: Beaver 1 - 6 | C197: 152400 | D197: 23147 | E197: 129253
A198: Mist Port Westward | B198: Port Westward | C198: 70000 | D198: 0 | E198: 70000
A199: Mist Port Westward II | B199: Port Westward II | C199: 70000 | D199: 0 | E199: 70000
A200: Mist Beaver | B200: Beaver | C200: 70000 | D200: 0 | E200: =C200-D200 -> 70000
... 100 more rows

Sheet May
A1: Gas Day: | E1: 2021-05-31
A2: Receipt Point | B2: Delivery Point | C2: Operating Capacity (DTHS) | D2: Schedule Volume (DTHS) | E2: Estimated Available Capacity
A3: Kelso/Beaver | B3: Port Westward | C3: 64000 | D3: 0 | E3: =C3-D3 -> 64000
A4: Kelso/Beaver | B4: Port Westward II | C4: 44000 | D4: 44000 | E4: 0
A5: Kelso/Beaver | B5: N. Mist Storage | C5: 61000 | D5: 0 | E5: 61000
A6: Kelso/Beaver | B6: Beaver Unit 8 | C6: 7326 | D6: 0 | E6: 7326
A7: Kelso/Beaver | B7: Beaver 1 - 6 | C7: 152400 | D7: 70576 | E7: 81824
A8: Mist Port Westward | B8: Port Westward | C8: 70000 | D8: 0 | E8: 70000
A9: Mist Port Westward II | B9: Port Westward II | C9: 70000 | D9: 0 | E9: 70000
A10: Mist Beaver | B10: Beaver | C10: 70000 | D10: 0 | E10: =C10-D10 -> 70000
A11: Gas Day: | E11: 2021-05-30
A12: Receipt Point | B12: Delivery Point | C12: Operating Capacity (DTHS) | D12: Schedule Volume (DTHS) | E12: Estimated Available Capacity
A13: Kelso/Beaver | B13: Port Westward | C13: 64000 | D13: 0 | E13: =C13-D13 -> 64000
A14: Kelso/Beaver | B14: Port Westward II | C14: 44000 | D14: 44000 | E14: 0
A15: Kelso/Beaver | B15: N. Mist Storage | C15: 61000 | D15: 0 | E15: 61000
A16: Kelso/Beaver | B16: Beaver Unit 8 | C16: 7326 | D16: 0 | E16: 7326
A17: Kelso/Beaver | B17: Beaver 1 - 6 | C17: 152400 | D17: 70576 | E17: 81824
A18: Mist Port Westward | B18: Port Westward | C18: 70000 | D18: 0 | E18: 70000
A19: Mist Port Westward II | B19: Port Westward II | C19: 70000 | D19: 0 | E19: 70000
A20: Mist Beaver | B20: Beaver | C20: 70000 | D20: 0 | E20: =C20-D20 -> 70000
A21: Gas Day: | E21: 2021-05-29
A22: Receipt Point | B22: Delivery Point | C22: Operating Capacity (DTHS) | D22: Schedule Volume (DTHS) | E22: Estimated Available Capacity
A23: Kelso/Beaver | B23: Port Westward | C23: 64000 | D23: 0 | E23: =C23-D23 -> 64000
A24: Kelso/Beaver | B24: Port Westward II | C24: 44000 | D24: 44000 | E24: 0
A25: Kelso/Beaver | B25: N. Mist Storage | C25: 61000 | D25: 0 | E25: 61000
A26: Kelso/Beaver | B26: Beaver Unit 8 | C26: 7326 | D26: 0 | E26: 7326
A27: Kelso/Beaver | B27: Beaver 1 - 6 | C27: 152400 | D27: 70576 | E27: 81824
A28: Mist Port Westward | B28: Port Westward | C28: 70000 | D28: 0 | E28: 70000
A29: Mist Port Westward II | B29: Port Westward II | C29: 70000 | D29: 0 | E29: 70000
A30: Mist Beaver | B30: Beaver | C30: 70000 | D30: 0 | E30: =C30-D30 -> 70000
A31: Gas Day: | E31: 2021-05-28
A32: Receipt Point | B32: Delivery Point | C32: Operating Capacity (DTHS) | D32: Schedule Volume (DTHS) | E32: Estimated Available Capacity
A33: Kelso/Beaver | B33: Port Westward | C33: 64000 | D33: 0 | E33: =C33-D33 -> 64000
A34: Kelso/Beaver | B34: Port Westward II | C34: 44000 | D34: 44000 | E34: 0
A35: Kelso/Beaver | B35: N. Mist Storage | C35: 61000 | D35: 0 | E35: 61000
A36: Kelso/Beaver | B36: Beaver Unit 8 | C36: 7326 | D36: 0 | E36: 7326
A37: Kelso/Beaver | B37: Beaver 1 - 6 | C37: 152400 | D37: 70576 | E37: 81824
A38: Mist Port Westward | B38: Port Westward | C38: 70000 | D38: 0 | E38: 70000
A39: Mist Port Westward II | B39: Port Westward II | C39: 70000 | D39: 0 | E39: 70000
A40: Mist Beaver | B40: Beaver | C40: 70000 | D40: 0 | E40: =C40-D40 -> 70000
A41: Gas Day: | E41: 2021-05-27
A42: Receipt Point | B42: Delivery Point | C42: Operating Capacity (DTHS) | D42: Schedule Volume (DTHS) | E42: Estimated Available Capacity
A43: Kelso/Beaver | B43: Port Westward | C43: 64000 | D43: 0 | E43: =C43-D43 -> 64000
A44: Kelso/Beaver | B44: Port Westward II | C44: 44000 | D44: 31531 | E44: 12469
A45: Kelso/Beaver | B45: N. Mist Storage | C45: 61000 | D45: 61000 | E45: 0
A46: Kelso/Beaver | B46: Beaver Unit 8 | C46: 7326 | D46: 0 | E46: 7326
A47: Kelso/Beaver | B47: Beaver 1 - 6 | C47: 152400 | D47: 20000 | E47: 132400
A48: Mist Port Westward | B48: Port Westward | C48: 70000 | D48: 0 | E48: 70000
A49: Mist Port Westward II | B49: Port Westward II | C49: 70000 | D49: 0 | E49: 70000
A50: Mist Beaver | B50: Beaver | C50: 70000 | D50: 0 | E50: =C50-D50 -> 70000
A51: Gas Day: | E51: 2021-05-26
A52: Receipt Point | B52: Delivery Point | C52: Operating Capacity (DTHS) | D52: Schedule Volume (DTHS) | E52: Estimated Available Capacity
A53: Kelso/Beaver | B53: Port Westward | C53: 64000 | D53: 0 | E53: =C53-D53 -> 64000
A54: Kelso/Beaver | B54: Port Westward II | C54: 44000 | D54: 36023 | E54: 7977
A55: Kelso/Beaver | B55: N. Mist Storage | C55: 61000 | D55: 61000 | E55: 0
A56: Kelso/Beaver | B56: Beaver Unit 8 | C56: 7326 | D56: 0 | E56: 7326
A57: Kelso/Beaver | B57: Beaver 1 - 6 | C57: 152400 | D57: 50000 | E57: 102400
A58: Mist Port Westward | B58: Port Westward | C58: 70000 | D58: 0 | E58: 70000
A59: Mist Port Westward II | B59: Port Westward II | C59: 70000 | D59: 0 | E59: 70000
A60: Mist Beaver | B60: Beaver | C60: 70000 | D60: 0 | E60: =C60-D60 -> 70000
A61: Gas Day: | E61: 2021-05-25
A62: Receipt Point | B62: Delivery Point | C62: Operating Capacity (DTHS) | D62: Schedule Volume (DTHS) | E62: Estimated Available Capacity
A63: Kelso/Beaver | B63: Port Westward | C63: 64000 | D63: 0 | E63: =C63-D63 -> 64000
A64: Kelso/Beaver | B64: Port Westward II | C64: 44000 | D64: 27359 | E64: 16641
A65: Kelso/Beaver | B65: N. Mist Storage | C65: 61000 | D65: 55000 | E65: 6000
A66: Kelso/Beaver | B66: Beaver Unit 8 | C66: 7326 | D66: 0 | E66: 7326
A67: Kelso/Beaver | B67: Beaver 1 - 6 | C67: 152400 | D67: 0 | E67: 152400
A68: Mist Port Westward | B68: Port Westward | C68: 70000 | D68: 0 | E68: 70000
A69: Mist Port Westward II | B69: Port Westward II | C69: 70000 | D69: 0 | E69: 70000
A70: Mist Beaver | B70: Beaver | C70: 70000 | D70: 0 | E70: =C70-D70 -> 70000
A71: Gas Day: | E71: 2021-05-24
A72: Receipt Point | B72: Delivery Point | C72: Operating Capacity (DTHS) | D72: Schedule Volume (DTHS) | E72: Estimated Available Capacity
A73: Kelso/Beaver | B73: Port Westward | C73: 64000 | D73: 0 | E73: =C73-D73 -> 64000
A74: Kelso/Beaver | B74: Port Westward II | C74: 44000 | D74: 27357 | E74: 16643
A75: Kelso/Beaver | B75: N. Mist Storage | C75: 61000 | D75: 55000 | E75: 6000
A76: Kelso/Beaver | B76: Beaver Unit 8 | C76: 7326 | D76: 0 | E76: 7326
A77: Kelso/Beaver | B77: Beaver 1 - 6 | C77: 152400 | D77: 0 | E77: 152400
A78: Mist Port Westward | B78: Port Westward | C78: 70000 | D78: 0 | E78: 70000
A79: Mist Port Westward II | B79: Port Westward II | C79: 70000 | D79: 0 | E79: 70000
A80: Mist Beaver | B80: Beaver | C80: 70000 | D80: 0 | E80: =C80-D80 -> 70000
A81: Gas Day: | E81: 2021-05-23
A82: Receipt Point | B82: Delivery Point | C82: Operating Capacity (DTHS) | D82: Schedule Volume (DTHS) | E82: Estimated Available Capacity
A83: Kelso/Beaver | B83: Port Westward | C83: 64000 | D83: 0 | E83: =C83-D83 -> 64000
A84: Kelso/Beaver | B84: Port Westward II | C84: 44000 | D84: 27357 | E84: 16643
A85: Kelso/Beaver | B85: N. Mist Storage | C85: 61000 | D85: 55000 | E85: 6000
A86: Kelso/Beaver | B86: Beaver Unit 8 | C86: 7326 | D86: 0 | E86: 7326
A87: Kelso/Beaver | B87: Beaver 1 - 6 | C87: 152400 | D87: 0 | E87: 152400
A88: Mist Port Westward | B88: Port Westward | C88: 70000 | D88: 0 | E88: 70000
A89: Mist Port Westward II | B89: Port Westward II | C89: 70000 | D89: 0 | E89: 70000
A90: Mist Beaver | B90: Beaver | C90: 70000 | D90: 0 | E90: =C90-D90 -> 70000
A91: Gas Day: | E91: 2021-05-22
A92: Receipt Point | B92: Delivery Point | C92: Operating Capacity (DTHS) | D92: Schedule Volume (DTHS) | E92: Estimated Available Capacity
A93: Kelso/Beaver | B93: Port Westward | C93: 64000 | D93: 0 | E93: =C93-D93 -> 64000
A94: Kelso/Beaver | B94: Port Westward II | C94: 44000 | D94: 22357 | E94: 21643
A95: Kelso/Beaver | B95: N. Mist Storage | C95: 61000 | D95: 55000 | E95: 6000
A96: Kelso/Beaver | B96: Beaver Unit 8 | C96: 7326 | D96: 0 | E96: 7326
A97: Kelso/Beaver | B97: Beaver 1 - 6 | C97: 152400 | D97: 35000 | E97: 117400
A98: Mist Port Westward | B98: Port Westward | C98: 70000 | D98: 0 | E98: 70000
A99: Mist Port Westward II | B99: Port Westward II | C99: 70000 | D99: 0 | E99: 70000
A100: Mist Beaver | B100: Beaver | C100: 70000 | D100: 0 | E100: =C100-D100 -> 70000
A101: Gas Day: | E101: 2021-05-21
A102: Receipt Point | B102: Delivery Point | C102: Operating Capacity (DTHS) | D102: Schedule Volume (DTHS) | E102: Estimated Available Capacity
A103: Kelso/Beaver | B103: Port Westward | C103: 64000 | D103: 64000 | E103: =C103-D103 -> 0
A104: Kelso/Beaver | B104: Port Westward II | C104: 44000 | D104: 23639 | E104: 20361
A105: Kelso/Beaver | B105: N. Mist Storage | C105: 61000 | D105: 55000 | E105: 6000
A106: Kelso/Beaver | B106: Beaver Unit 8 | C106: 7326 | D106: 0 | E106: 7326
A107: Kelso/Beaver | B107: Beaver 1 - 6 | C107: 152400 | D107: 0 | E107: 152400
A108: Mist Port Westward | B108: Port Westward | C108: 70000 | D108: 0 | E108: 70000
A109: Mist Port Westward II | B109: Port Westward II | C109: 70000 | D109: 0 | E109: 70000
A110: Mist Beaver | B110: Beaver | C110: 70000 | D110: 0 | E110: =C110-D110 -> 70000
A111: Gas Day: | E111: 2021-05-20
A112: Receipt Point | B112: Delivery Point | C112: Operating Capacity (DTHS) | D112: Schedule Volume (DTHS) | E112: Estimated Available Capacity
A113: Kelso/Beaver | B113: Port Westward | C113: 64000 | D113: 64000 | E113: =C113-D113 -> 0
A114: Kelso/Beaver | B114: Port Westward II | C114: 44000 | D114: 23639 | E114: 20361
A115: Kelso/Beaver | B115: N. Mist Storage | C115: 61000 | D115: 55000 | E115: 6000
A116: Kelso/Beaver | B116: Beaver Unit 8 | C116: 7326 | D116: 0 | E116: 7326
A117: Kelso/Beaver | B117: Beaver 1 - 6 | C117: 152400 | D117: 0 | E117: 152400
A118: Mist Port Westward | B118: Port Westward | C118: 70000 | D118: 0 | E118: 70000
A119: Mist Port Westward II | B119: Port Westward II | C119: 70000 | D119: 0 | E119: 70000
A120: Mist Beaver | B120: Beaver | C120: 70000 | D120: 0 | E120: =C120-D120 -> 70000
A121: Gas Day: | E121: 2021-05-19
A122: Receipt Point | B122: Delivery Point | C122: Operating Capacity (DTHS) | D122: Schedule Volume (DTHS) | E122: Estimated Available Capacity
A123: Kelso/Beaver | B123: Port Westward | C123: 64000 | D123: 64000 | E123: =C123-D123 -> 0
A124: Kelso/Beaver | B124: Port Westward II | C124: 44000 | D124: 23599 | E124: 20401
A125: Kelso/Beaver | B125: N. Mist Storage | C125: 61000 | D125: 55000 | E125: 6000
A126: Kelso/Beaver | B126: Beaver Unit 8 | C126: 7326 | D126: 0 | E126: 7326
A127: Kelso/Beaver | B127: Beaver 1 - 6 | C127: 152400 | D127: 0 | E127: 152400
A128: Mist Port Westward | B128: Port Westward | C128: 70000 | D128: 0 | E128: 70000
A129: Mist Port Westward II | B129: Port Westward II | C129: 70000 | D129: 0 | E129: 70000
A130: Mist Beaver | B130: Beaver | C130: 70000 | D130: 0 | E130: =C130-D130 -> 70000
A131: Gas Day: | E131: 2021-05-18
A132: Receipt Point | B132: Delivery Point | C132: Operating Capacity (DTHS) | D132: Schedule Volume (DTHS) | E132: Estimated Available Capacity
A133: Kelso/Beaver | B133: Port Westward | C133: 64000 | D133: 64000 | E133: =C133-D133 -> 0
A134: Kelso/Beaver | B134: Port Westward II | C134: 44000 | D134: 23639 | E134: 20361
A135: Kelso/Beaver | B135: N. Mist Storage | C135: 61000 | D135: 55000 | E135: 6000
A136: Kelso/Beaver | B136: Beaver Unit 8 | C136: 7326 | D136: 0 | E136: 7326
A137: Kelso/Beaver | B137: Beaver 1 - 6 | C137: 152400 | D137: 0 | E137: 152400
A138: Mist Port Westward | B138: Port Westward | C138: 70000 | D138: 0 | E138: 70000
A139: Mist Port Westward II | B139: Port Westward II | C139: 70000 | D139: 0 | E139: 70000
A140: Mist Beaver | B140: Beaver | C140: 70000 | D140: 0 | E140: =C140-D140 -> 70000
A141: Gas Day: | E141: 2021-05-17
A142: Receipt Point | B142: Delivery Point | C142: Operating Capacity (DTHS) | D142: Schedule Volume (DTHS) | E142: Estimated Available Capacity
A143: Kelso/Beaver | B143: Port Westward | C143: 64000 | D143: 64000 | E143: =C143-D143 -> 0
A144: Kelso/Beaver | B144: Port Westward II | C144: 44000 | D144: 23651 | E144: 20349
A145: Kelso/Beaver | B145: N. Mist Storage | C145: 61000 | D145: 55000 | E145: 6000
A146: Kelso/Beaver | B146: Beaver Unit 8 | C146: 7326 | D146: 0 | E146: 7326
A147: Kelso/Beaver | B147: Beaver 1 - 6 | C147: 152400 | D147: 0 | E147: 152400
A148: Mist Port Westward | B148: Port Westward | C148: 70000 | D148: 0 | E148: 70000
A149: Mist Port Westward II | B149: Port Westward II | C149: 70000 | D149: 0 | E149: 70000
A150: Mist Beaver | B150: Beaver | C150: 70000 | D150: 0 | E150: =C150-D150 -> 70000
A151: Gas Day: | E151: 2021-05-16
A152: Receipt Point | B152: Delivery Point | C152: Operating Capacity (DTHS) | D152: Schedule Volume (DTHS) | E152: Estimated Available Capacity
A153: Kelso/Beaver | B153: Port Westward | C153: 64000 | D153: 64000 | E153: =C153-D153 -> 0
A154: Kelso/Beaver | B154: Port Westward II | C154: 44000 | D154: 23651 | E154: 20349
A155: Kelso/Beaver | B155: N. Mist Storage | C155: 61000 | D155: 55000 | E155: 6000
A156: Kelso/Beaver | B156: Beaver Unit 8 | C156: 7326 | D156: 0 | E156: 7326
A157: Kelso/Beaver | B157: Beaver 1 - 6 | C157: 152400 | D157: 0 | E157: 152400
A158: Mist Port Westward | B158: Port Westward | C158: 70000 | D158: 0 | E158: 70000
A159: Mist Port Westward II | B159: Port Westward II | C159: 70000 | D159: 0 | E159: 70000
A160: Mist Beaver | B160: Beaver | C160: 70000 | D160: 0 | E160: =C160-D160 -> 70000
A161: Gas Day: | E161: 2021-05-15
A162: Receipt Point | B162: Delivery Point | C162: Operating Capacity (DTHS) | D162: Schedule Volume (DTHS) | E162: Estimated Available Capacity
A163: Kelso/Beaver | B163: Port Westward | C163: 64000 | D163: 64000 | E163: =C163-D163 -> 0
A164: Kelso/Beaver | B164: Port Westward II | C164: 44000 | D164: 23651 | E164: 20349
A165: Kelso/Beaver | B165: N. Mist Storage | C165: 61000 | D165: 55000 | E165: 6000
A166: Kelso/Beaver | B166: Beaver Unit 8 | C166: 7326 | D166: 0 | E166: 7326
A167: Kelso/Beaver | B167: Beaver 1 - 6 | C167: 152400 | D167: 0 | E167: 152400
A168: Mist Port Westward | B168: Port Westward | C168: 70000 | D168: 0 | E168: 70000
A169: Mist Port Westward II | B169: Port Westward II | C169: 70000 | D169: 0 | E169: 70000
A170: Mist Beaver | B170: Beaver | C170: 70000 | D170: 0 | E170: =C170-D170 -> 70000
A171: Gas Day: | E171: 2021-05-14
A172: Receipt Point | B172: Delivery Point | C172: Operating Capacity (DTHS) | D172: Schedule Volume (DTHS) | E172: Estimated Available Capacity
A173: Kelso/Beaver | B173: Port Westward | C173: 64000 | D173: 64000 | E173: =C173-D173 -> 0
A174: Kelso/Beaver | B174: Port Westward II | C174: 44000 | D174: 18664 | E174: 25336
A175: Kelso/Beaver | B175: N. Mist Storage | C175: 61000 | D175: 55000 | E175: 6000
A176: Kelso/Beaver | B176: Beaver Unit 8 | C176: 7326 | D176: 0 | E176: 7326
A177: Kelso/Beaver | B177: Beaver 1 - 6 | C177: 152400 | D177: 0 | E177: 152400
A178: Mist Port Westward | B178: Port Westward | C178: 70000 | D178: 0 | E178: 70000
A179: Mist Port Westward II | B179: Port Westward II | C179: 70000 | D179: 0 | E179: 70000
A180: Mist Beaver | B180: Beaver | C180: 70000 | D180: 0 | E180: =C180-D180 -> 70000
A181: Gas Day: | E181: 2021-05-13
A182: Receipt Point | B182: Delivery Point | C182: Operating Capacity (DTHS) | D182: Schedule Volume (DTHS) | E182: Estimated Available Capacity
A183: Kelso/Beaver | B183: Port Westward | C183: 64000 | D183: 64000 | E183: =C183-D183 -> 0
A184: Kelso/Beaver | B184: Port Westward II | C184: 44000 | D184: 23663 | E184: 20337
A185: Kelso/Beaver | B185: N. Mist Storage | C185: 61000 | D185: 55000 | E185: 6000
A186: Kelso/Beaver | B186: Beaver Unit 8 | C186: 7326 | D186: 0 | E186: 7326
A187: Kelso/Beaver | B187: Beaver 1 - 6 | C187: 152400 | D187: 0 | E187: 152400
A188: Mist Port Westward | B188: Port Westward | C188: 70000 | D188: 0 | E188: 70000
A189: Mist Port Westward II | B189: Port Westward II | C189: 70000 | D189: 0 | E189: 70000
A190: Mist Beaver | B190: Beaver | C190: 70000 | D190: 0 | E190: =C190-D190 -> 70000
A191: Gas Day: | E191: 2021-05-12
A192: Receipt Point | B192: Delivery Point | C192: Operating Capacity (DTHS) | D192: Schedule Volume (DTHS) | E192: Estimated Available Capacity
A193: Kelso/Beaver | B193: Port Westward | C193: 64000 | D193: 64000 | E193: =C193-D193 -> 0
A194: Kelso/Beaver | B194: Port Westward II | C194: 44000 | D194: 33663 | E194: 10337
A195: Kelso/Beaver | B195: N. Mist Storage | C195: 61000 | D195: 50000 | E195: 11000
A196: Kelso/Beaver | B196: Beaver Unit 8 | C196: 7326 | D196: 0 | E196: 7326
A197: Kelso/Beaver | B197: Beaver 1 - 6 | C197: 152400 | D197: 0 | E197: 152400
A198: Mist Port Westward | B198: Port Westward | C198: 70000 | D198: 0 | E198: 70000
A199: Mist Port Westward II | B199: Port Westward II | C199: 70000 | D199: 0 | E199: 70000
A200: Mist Beaver | B200: Beaver | C200: 70000 | D200: 0 | E200: =C200-D200 -> 70000
... 110 more rows

Sheet June
A1: Gas Day: | E1: 2021-06-30
A2: Receipt Point | B2: Delivery Point | C2: Operating Capacity (DTHS) | D2: Schedule Volume (DTHS) | E2: Estimated Available Capacity
A3: Kelso/Beaver | B3: Port Westward | C3: 64000 | D3: 64000 | E3: =C3-D3 -> 0
A4: Kelso/Beaver | B4: Port Westward II | C4: 44000 | D4: 32865 | E4: 11135
A5: Kelso/Beaver | B5: N. Mist Storage | C5: 61000 | D5: 50000 | E5: 11000
A6: Kelso/Beaver | B6: Beaver Unit 8 | C6: 7326 | D6: 0 | E6: 7326
A7: Kelso/Beaver | B7: Beaver 1 - 6 | C7: 152400 | D7: 0 | E7: 152400
A8: Mist Port Westward | B8: Port Westward | C8: 70000 | D8: 0 | E8: 70000
A9: Mist Port Westward II | B9: Port Westward II | C9: 70000 | D9: 0 | E9: 70000
A10: Mist Beaver | B10: Beaver | C10: 70000 | D10: 0 | E10: =C10-D10 -> 70000
A11: Gas Day: | E11: 2021-06-29
A12: Receipt Point | B12: Delivery Point | C12: Operating Capacity (DTHS) | D12: Schedule Volume (DTHS) | E12: Estimated Available Capacity
A13: Kelso/Beaver | B13: Port Westward | C13: 64000 | D13: 64000 | E13: =C13-D13 -> 0
A14: Kelso/Beaver | B14: Port Westward II | C14: 44000 | D14: 22869 | E14: 21131
A15: Kelso/Beaver | B15: N. Mist Storage | C15: 61000 | D15: 0 | E15: 61000
A16: Kelso/Beaver | B16: Beaver Unit 8 | C16: 7326 | D16: 0 | E16: 7326
A17: Kelso/Beaver | B17: Beaver 1 - 6 | C17: 152400 | D17: 60000 | E17: 92400
A18: Mist Port Westward | B18: Port Westward | C18: 70000 | D18: 0 | E18: 70000
A19: Mist Port Westward II | B19: Port Westward II | C19: 70000 | D19: 0 | E19: 70000
A20: Mist Beaver | B20: Beaver | C20: 70000 | D20: 0 | E20: =C20-D20 -> 70000
A21: Gas Day: | E21: 2021-06-28
A22: Receipt Point | B22: Delivery Point | C22: Operating Capacity (DTHS) | D22: Schedule Volume (DTHS) | E22: Estimated Available Capacity
A23: Kelso/Beaver | B23: Port Westward | C23: 64000 | D23: 64000 | E23: =C23-D23 -> 0
A24: Kelso/Beaver | B24: Port Westward II | C24: 44000 | D24: 22868 | E24: 21132
A25: Kelso/Beaver | B25: N. Mist Storage | C25: 61000 | D25: 0 | E25: 61000
A26: Kelso/Beaver | B26: Beaver Unit 8 | C26: 7326 | D26: 0 | E26: 7326
A27: Kelso/Beaver | B27: Beaver 1 - 6 | C27: 152400 | D27: 60000 | E27: 92400
A28: Mist Port Westward | B28: Port Westward | C28: 70000 | D28: 0 | E28: 70000
A29: Mist Port Westward II | B29: Port Westward II | C29: 70000 | D29: 0 | E29: 70000
A30: Mist Beaver | B30: Beaver | C30: 70000 | D30: 0 | E30: =C30-D30 -> 70000
A31: Gas Day: | E31: 2021-06-27
A32: Receipt Point | B32: Delivery Point | C32: Operating Capacity (DTHS) | D32: Schedule Volume (DTHS) | E32: Estimated Available Capacity
A33: Kelso/Beaver | B33: Port Westward | C33: 64000 | D33: 64000 | E33: =C33-D33 -> 0
A34: Kelso/Beaver | B34: Port Westward II | C34: 44000 | D34: 22868 | E34: 21132
A35: Kelso/Beaver | B35: N. Mist Storage | C35: 61000 | D35: 0 | E35: 61000
A36: Kelso/Beaver | B36: Beaver Unit 8 | C36: 7326 | D36: 0 | E36: 7326
A37: Kelso/Beaver | B37: Beaver 1 - 6 | C37: 152400 | D37: 60000 | E37: 92400
A38: Mist Port Westward | B38: Port Westward | C38: 70000 | D38: 0 | E38: 70000
A39: Mist Port Westward II | B39: Port Westward II | C39: 70000 | D39: 0 | E39: 70000
A40: Mist Beaver | B40: Beaver | C40: 70000 | D40: 0 | E40: =C40-D40 -> 70000
A41: Gas Day: | E41: 2021-06-26
A42: Receipt Point | B42: Delivery Point | C42: Operating Capacity (DTHS) | D42: Schedule Volume (DTHS) | E42: Estimated Available Capacity
A43: Kelso/Beaver | B43: Port Westward | C43: 64000 | D43: 64000 | E43: =C43-D43 -> 0
A44: Kelso/Beaver | B44: Port Westward II | C44: 44000 | D44: 22868 | E44: 21132
A45: Kelso/Beaver | B45: N. Mist Storage | C45: 61000 | D45: 0 | E45: 61000
A46: Kelso/Beaver | B46: Beaver Unit 8 | C46: 7326 | D46: 0 | E46: 7326
A47: Kelso/Beaver | B47: Beaver 1 - 6 | C47: 152400 | D47: 60000 | E47: 92400
A48: Mist Port Westward | B48: Port Westward | C48: 70000 | D48: 0 | E48: 70000
A49: Mist Port Westward II | B49: Port Westward II | C49: 70000 | D49: 0 | E49: 70000
A50: Mist Beaver | B50: Beaver | C50: 70000 | D50: 0 | E50: =C50-D50 -> 70000
A51: Gas Day: | E51: 2021-06-25
A52: Receipt Point | B52: Delivery Point | C52: Operating Capacity (DTHS) | D52: Schedule Volume (DTHS) | E52: Estimated Available Capacity
A53: Kelso/Beaver | B53: Port Westward | C53: 64000 | D53: 60000 | E53: =C53-D53 -> 4000
A54: Kelso/Beaver | B54: Port Westward II | C54: 44000 | D54: 14869 | E54: 29131
A55: Kelso/Beaver | B55: N. Mist Storage | C55: 61000 | D55: 36000 | E55: 25000
A56: Kelso/Beaver | B56: Beaver Unit 8 | C56: 7326 | D56: 0 | E56: 7326
A57: Kelso/Beaver | B57: Beaver 1 - 6 | C57: 152400 | D57: 36000 | E57: 116400
A58: Mist Port Westward | B58: Port Westward | C58: 70000 | D58: 0 | E58: 70000
A59: Mist Port Westward II | B59: Port Westward II | C59: 70000 | D59: 0 | E59: 70000
A60: Mist Beaver | B60: Beaver | C60: 70000 | D60: 0 | E60: =C60-D60 -> 70000
A61: Gas Day: | E61: 2021-06-24
A62: Receipt Point | B62: Delivery Point | C62: Operating Capacity (DTHS) | D62: Schedule Volume (DTHS) | E62: Estimated Available Capacity
A63: Kelso/Beaver | B63: Port Westward | C63: 64000 | D63: 64000 | E63: =C63-D63 -> 0
A64: Kelso/Beaver | B64: Port Westward II | C64: 44000 | D64: 26869 | E64: 17131
A65: Kelso/Beaver | B65: N. Mist Storage | C65: 61000 | D65: 56000 | E65: 5000
A66: Kelso/Beaver | B66: Beaver Unit 8 | C66: 7326 | D66: 0 | E66: 7326
A67: Kelso/Beaver | B67: Beaver 1 - 6 | C67: 152400 | D67: 0 | E67: 152400
A68: Mist Port Westward | B68: Port Westward | C68: 70000 | D68: 0 | E68: 70000
A69: Mist Port Westward II | B69: Port Westward II | C69: 70000 | D69: 0 | E69: 70000
A70: Mist Beaver | B70: Beaver | C70: 70000 | D70: 0 | E70: =C70-D70 -> 70000
A71: Gas Day: | E71: 2021-06-23
A72: Receipt Point | B72: Delivery Point | C72: Operating Capacity (DTHS) | D72: Schedule Volume (DTHS) | E72: Estimated Available Capacity
A73: Kelso/Beaver | B73: Port Westward | C73: 64000 | D73: 64000 | E73: =C73-D73 -> 0
A74: Kelso/Beaver | B74: Port Westward II | C74: 44000 | D74: 26870 | E74: 17130
A75: Kelso/Beaver | B75: N. Mist Storage | C75: 61000 | D75: 56000 | E75: 5000
A76: Kelso/Beaver | B76: Beaver Unit 8 | C76: 7326 | D76: 0 | E76: 7326
A77: Kelso/Beaver | B77: Beaver 1 - 6 | C77: 152400 | D77: 0 | E77: 152400
A78: Mist Port Westward | B78: Port Westward | C78: 70000 | D78: 0 | E78: 70000
A79: Mist Port Westward II | B79: Port Westward II | C79: 70000 | D79: 0 | E79: 70000
A80: Mist Beaver | B80: Beaver | C80: 70000 | D80: 0 | E80: =C80-D80 -> 70000
A81: Gas Day: | E81: 2021-06-22
A82: Receipt Point | B82: Delivery Point | C82: Operating Capacity (DTHS) | D82: Schedule Volume (DTHS) | E82: Estimated Available Capacity
A83: Kelso/Beaver | B83: Port Westward | C83: 64000 | D83: 60000 | E83: =C83-D83 -> 4000
A84: Kelso/Beaver | B84: Port Westward II | C84: 44000 | D84: 31910 | E84: 12090
A85: Kelso/Beaver | B85: N. Mist Storage | C85: 61000 | D85: 55000 | E85: 6000
A86: Kelso/Beaver | B86: Beaver Unit 8 | C86: 7326 | D86: 0 | E86: 7326
A87: Kelso/Beaver | B87: Beaver 1 - 6 | C87: 152400 | D87: 0 | E87: 152400
A88: Mist Port Westward | B88: Port Westward | C88: 70000 | D88: 0 | E88: 70000
A89: Mist Port Westward II | B89: Port Westward II | C89: 70000 | D89: 0 | E89: 70000
A90: Mist Beaver | B90: Beaver | C90: 70000 | D90: 0 | E90: =C90-D90 -> 70000
A91: Gas Day: | E91: 2021-06-21
A92: Receipt Point | B92: Delivery Point | C92: Operating Capacity (DTHS) | D92: Schedule Volume (DTHS) | E92: Estimated Available Capacity
A93: Kelso/Beaver | B93: Port Westward | C93: 64000 | D93: 64000 | E93: =C93-D93 -> 0
A94: Kelso/Beaver | B94: Port Westward II | C94: 44000 | D94: 23008 | E94: 20992
A95: Kelso/Beaver | B95: N. Mist Storage | C95: 61000 | D95: 0 | E95: 61000
A96: Kelso/Beaver | B96: Beaver Unit 8 | C96: 7326 | D96: 0 | E96: 7326
A97: Kelso/Beaver | B97: Beaver 1 - 6 | C97: 152400 | D97: 60000 | E97: 92400
A98: Mist Port Westward | B98: Port Westward | C98: 70000 | D98: 0 | E98: 70000
A99: Mist Port Westward II | B99: Port Westward II | C99: 70000 | D99: 0 | E99: 70000
A100: Mist Beaver | B100: Beaver | C100: 70000 | D100: 0 | E100: =C100-D100 -> 70000
A101: Gas Day: | E101: 2021-06-20
A102: Receipt Point | B102: Delivery Point | C102: Operating Capacity (DTHS) | D102: Schedule Volume (DTHS) | E102: Estimated Available Capacity
A103: Kelso/Beaver | B103: Port Westward | C103: 64000 | D103: 64000 | E103: =C103-D103 -> 0
A104: Kelso/Beaver | B104: Port Westward II | C104: 44000 | D104: 23008 | E104: 20992
A105: Kelso/Beaver | B105: N. Mist Storage | C105: 61000 | D105: 0 | E105: 61000
A106: Kelso/Beaver | B106: Beaver Unit 8 | C106: 7326 | D106: 0 | E106: 7326
A107: Kelso/Beaver | B107: Beaver 1 - 6 | C107: 152400 | D107: 60000 | E107: 92400
A108: Mist Port Westward | B108: Port Westward | C108: 70000 | D108: 0 | E108: 70000
A109: Mist Port Westward II | B109: Port Westward II | C109: 70000 | D109: 0 | E109: 70000
A110: Mist Beaver | B110: Beaver | C110: 70000 | D110: 0 | E110: =C110-D110 -> 70000
A111: Gas Day: | E111: 2021-06-19
A112: Receipt Point | B112: Delivery Point | C112: Operating Capacity (DTHS) | D112: Schedule Volume (DTHS) | E112: Estimated Available Capacity
A113: Kelso/Beaver | B113: Port Westward | C113: 64000 | D113: 64000 | E113: =C113-D113 -> 0
A114: Kelso/Beaver | B114: Port Westward II | C114: 44000 | D114: 23008 | E114: 20992
A115: Kelso/Beaver | B115: N. Mist Storage | C115: 61000 | D115: 0 | E115: 61000
A116: Kelso/Beaver | B116: Beaver Unit 8 | C116: 7326 | D116: 0 | E116: 7326
A117: Kelso/Beaver | B117: Beaver 1 - 6 | C117: 152400 | D117: 60000 | E117: 92400
A118: Mist Port Westward | B118: Port Westward | C118: 70000 | D118: 0 | E118: 70000
A119: Mist Port Westward II | B119: Port Westward II | C119: 70000 | D119: 0 | E119: 70000
A120: Mist Beaver | B120: Beaver | C120: 70000 | D120: 0 | E120: =C120-D120 -> 70000
A121: Gas Day: | E121: 2021-06-18
A122: Receipt Point | B122: Delivery Point | C122: Operating Capacity (DTHS) | D122: Schedule Volume (DTHS) | E122: Estimated Available Capacity
A123: Kelso/Beaver | B123: Port Westward | C123: 64000 | D123: 64000 | E123: =C123-D123 -> 0
A124: Kelso/Beaver | B124: Port Westward II | C124: 44000 | D124: 32873 | E124: 11127
A125: Kelso/Beaver | B125: N. Mist Storage | C125: 61000 | D125: 0 | E125: 61000
A126: Kelso/Beaver | B126: Beaver Unit 8 | C126: 7326 | D126: 0 | E126: 7326
A127: Kelso/Beaver | B127: Beaver 1 - 6 | C127: 152400 | D127: 50000 | E127: 102400
A128: Mist Port Westward | B128: Port Westward | C128: 70000 | D128: 0 | E128: 70000
A129: Mist Port Westward II | B129: Port Westward II | C129: 70000 | D129: 0 | E129: 70000
A130: Mist Beaver | B130: Beaver | C130: 70000 | D130: 0 | E130: =C130-D130 -> 70000
A131: Gas Day: | E131: 2021-06-17
A132: Receipt Point | B132: Delivery Point | C132: Operating Capacity (DTHS) | D132: Schedule Volume (DTHS) | E132: Estimated Available Capacity
A133: Kelso/Beaver | B133: Port Westward | C133: 64000 | D133: 64000 | E133: =C133-D133 -> 0
A134: Kelso/Beaver | B134: Port Westward II | C134: 44000 | D134: 32931 | E134: 11069
A135: Kelso/Beaver | B135: N. Mist Storage | C135: 61000 | D135: 0 | E135: 61000
A136: Kelso/Beaver | B136: Beaver Unit 8 | C136: 7326 | D136: 0 | E136: 7326
A137: Kelso/Beaver | B137: Beaver 1 - 6 | C137: 152400 | D137: 50000 | E137: 102400
A138: Mist Port Westward | B138: Port Westward | C138: 70000 | D138: 0 | E138: 70000
A139: Mist Port Westward II | B139: Port Westward II | C139: 70000 | D139: 0 | E139: 70000
A140: Mist Beaver | B140: Beaver | C140: 70000 | D140: 0 | E140: =C140-D140 -> 70000
A141: Gas Day: | E141: 2021-06-16
A142: Receipt Point | B142: Delivery Point | C142: Operating Capacity (DTHS) | D142: Schedule Volume (DTHS) | E142: Estimated Available Capacity
A143: Kelso/Beaver | B143: Port Westward | C143: 64000 | D143: 64000 | E143: =C143-D143 -> 0
A144: Kelso/Beaver | B144: Port Westward II | C144: 44000 | D144: 32874 | E144: 11126
A145: Kelso/Beaver | B145: N. Mist Storage | C145: 61000 | D145: 0 | E145: 61000
A146: Kelso/Beaver | B146: Beaver Unit 8 | C146: 7326 | D146: 0 | E146: 7326
A147: Kelso/Beaver | B147: Beaver 1 - 6 | C147: 152400 | D147: 50000 | E147: 102400
A148: Mist Port Westward | B148: Port Westward | C148: 70000 | D148: 0 | E148: 70000
A149: Mist Port Westward II | B149: Port Westward II | C149: 70000 | D149: 0 | E149: 70000
A150: Mist Beaver | B150: Beaver | C150: 70000 | D150: 0 | E150: =C150-D150 -> 70000
A151: Gas Day: | E151: 2021-06-15
A152: Receipt Point | B152: Delivery Point | C152: Operating Capacity (DTHS) | D152: Schedule Volume (DTHS) | E152: Estimated Available Capacity
A153: Kelso/Beaver | B153: Port Westward | C153: 64000 | D153: 64000 | E153: =C153-D153 -> 0
A154: Kelso/Beaver | B154: Port Westward II | C154: 44000 | D154: 17913 | E154: 26087
A155: Kelso/Beaver | B155: N. Mist Storage | C155: 61000 | D155: 0 | E155: 61000
A156: Kelso/Beaver | B156: Beaver Unit 8 | C156: 7326 | D156: 0 | E156: 7326
A157: Kelso/Beaver | B157: Beaver 1 - 6 | C157: 152400 | D157: 50000 | E157: 102400
A158: Mist Port Westward | B158: Port Westward | C158: 70000 | D158: 0 | E158: 70000
A159: Mist Port Westward II | B159: Port Westward II | C159: 70000 | D159: 0 | E159: 70000
A160: Mist Beaver | B160: Beaver | C160: 70000 | D160: 0 | E160: =C160-D160 -> 70000
A161: Gas Day: | E161: 2021-06-14
A162: Receipt Point | B162: Delivery Point | C162: Operating Capacity (DTHS) | D162: Schedule Volume (DTHS) | E162: Estimated Available Capacity
A163: Kelso/Beaver | B163: Port Westward | C163: 64000 | D163: 64000 | E163: =C163-D163 -> 0
A164: Kelso/Beaver | B164: Port Westward II | C164: 44000 | D164: 18134 | E164: 25866
A165: Kelso/Beaver | B165: N. Mist Storage | C165: 61000 | D165: 0 | E165: 61000
A166: Kelso/Beaver | B166: Beaver Unit 8 | C166: 7326 | D166: 0 | E166: 7326
A167: Kelso/Beaver | B167: Beaver 1 - 6 | C167: 152400 | D167: 50000 | E167: 102400
A168: Mist Port Westward | B168: Port Westward | C168: 70000 | D168: 0 | E168: 70000
A169: Mist Port Westward II | B169: Port Westward II | C169: 70000 | D169: 0 | E169: 70000
A170: Mist Beaver | B170: Beaver | C170: 70000 | D170: 0 | E170: =C170-D170 -> 70000
A171: Gas Day: | E171: 2021-06-13
A172: Receipt Point | B172: Delivery Point | C172: Operating Capacity (DTHS) | D172: Schedule Volume (DTHS) | E172: Estimated Available Capacity
A173: Kelso/Beaver | B173: Port Westward | C173: 64000 | D173: 64000 | E173: =C173-D173 -> 0
A174: Kelso/Beaver | B174: Port Westward II | C174: 44000 | D174: 18134 | E174: 25866
A175: Kelso/Beaver | B175: N. Mist Storage | C175: 61000 | D175: 0 | E175: 61000
A176: Kelso/Beaver | B176: Beaver Unit 8 | C176: 7326 | D176: 0 | E176: 7326
A177: Kelso/Beaver | B177: Beaver 1 - 6 | C177: 152400 | D177: 50000 | E177: 102400
A178: Mist Port Westward | B178: Port Westward | C178: 70000 | D178: 0 | E178: 70000
A179: Mist Port Westward II | B179: Port Westward II | C179: 70000 | D179: 0 | E179: 70000
A180: Mist Beaver | B180: Beaver | C180: 70000 | D180: 0 | E180: =C180-D180 -> 70000
A181: Gas Day: | E181: 2021-06-12
A182: Receipt Point | B182: Delivery Point | C182: Operating Capacity (DTHS) | D182: Schedule Volume (DTHS) | E182: Estimated Available Capacity
A183: Kelso/Beaver | B183: Port Westward | C183: 64000 | D183: 64000 | E183: =C183-D183 -> 0
A184: Kelso/Beaver | B184: Port Westward II | C184: 44000 | D184: 18134 | E184: 25866
A185: Kelso/Beaver | B185: N. Mist Storage | C185: 61000 | D185: 0 | E185: 61000
A186: Kelso/Beaver | B186: Beaver Unit 8 | C186: 7326 | D186: 0 | E186: 7326
A187: Kelso/Beaver | B187: Beaver 1 - 6 | C187: 152400 | D187: 20000 | E187: 132400
A188: Mist Port Westward | B188: Port Westward | C188: 70000 | D188: 0 | E188: 70000
A189: Mist Port Westward II | B189: Port Westward II | C189: 70000 | D189: 0 | E189: 70000
A190: Mist Beaver | B190: Beaver | C190: 70000 | D190: 0 | E190: =C190-D190 -> 70000
A191: Gas Day: | E191: 2021-06-11
A192: Receipt Point | B192: Delivery Point | C192: Operating Capacity (DTHS) | D192: Schedule Volume (DTHS) | E192: Estimated Available Capacity
A193: Kelso/Beaver | B193: Port Westward | C193: 64000 | D193: 64000 | E193: =C193-D193 -> 0
A194: Kelso/Beaver | B194: Port Westward II | C194: 44000 | D194: 34141 | E194: 9859
A195: Kelso/Beaver | B195: N. Mist Storage | C195: 61000 | D195: 0 | E195: 61000
A196: Kelso/Beaver | B196: Beaver Unit 8 | C196: 7326 | D196: 0 | E196: 7326
A197: Kelso/Beaver | B197: Beaver 1 - 6 | C197: 152400 | D197: 0 | E197: 152400
A198: Mist Port Westward | B198: Port Westward | C198: 70000 | D198: 0 | E198: 70000
A199: Mist Port Westward II | B199: Port Westward II | C199: 70000 | D199: 0 | E199: 70000
A200: Mist Beaver | B200: Beaver | C200: 70000 | D200: 0 | E200: =C200-D200 -> 70000
... 100 more rows

Sheet July
A1: Gas Day: | E1: 2021-07-31
A2: Receipt Point | B2: Delivery Point | C2: Operating Capacity (DTHS) | D2: Schedule Volume (DTHS) | E2: Estimated Available Capacity
A3: Kelso/Beaver | B3: Port Westward | C3: 64000 | D3: 64000 | E3: =C3-D3 -> 0
A4: Kelso/Beaver | B4: Port Westward II | C4: 44000 | D4: 0 | E4: 44000
A5: Kelso/Beaver | B5: N. Mist Storage | C5: 61000 | D5: 0 | E5: 61000
A6: Kelso/Beaver | B6: Beaver Unit 8 | C6: 7326 | D6: 0 | E6: 7326
A7: Kelso/Beaver | B7: Beaver 1 - 6 | C7: 152400 | D7: 85875 | E7: 66525
A8: Mist Port Westward | B8: Port Westward | C8: 70000 | D8: 0 | E8: 70000
A9: Mist Port Westward II | B9: Port Westward II | C9: 70000 | D9: 0 | E9: 70000
A10: Mist Beaver | B10: Beaver | C10: 70000 | D10: 0 | E10: =C10-D10 -> 70000
A11: Gas Day: | E11: 2021-07-30
A12: Receipt Point | B12: Delivery Point | C12: Operating Capacity (DTHS) | D12: Schedule Volume (DTHS) | E12: Estimated Available Capacity
A13: Kelso/Beaver | B13: Port Westward | C13: 64000 | D13: 64000 | E13: =C13-D13 -> 0
A14: Kelso/Beaver | B14: Port Westward II | C14: 44000 | D14: 0 | E14: 44000
A15: Kelso/Beaver | B15: N. Mist Storage | C15: 61000 | D15: 0 | E15: 61000
A16: Kelso/Beaver | B16: Beaver Unit 8 | C16: 7326 | D16: 0 | E16: 7326
A17: Kelso/Beaver | B17: Beaver 1 - 6 | C17: 152400 | D17: 85875 | E17: 66525
A18: Mist Port Westward | B18: Port Westward | C18: 70000 | D18: 0 | E18: 70000
A19: Mist Port Westward II | B19: Port Westward II | C19: 70000 | D19: 0 | E19: 70000
A20: Mist Beaver | B20: Beaver | C20: 70000 | D20: 0 | E20: =C20-D20 -> 70000
A21: Gas Day: | E21: 2021-07-29
A22: Receipt Point | B22: Delivery Point | C22: Operating Capacity (DTHS) | D22: Schedule Volume (DTHS) | E22: Estimated Available Capacity
A23: Kelso/Beaver | B23: Port Westward | C23: 64000 | D23: 64000 | E23: =C23-D23 -> 0
A24: Kelso/Beaver | B24: Port Westward II | C24: 44000 | D24: 0 | E24: 44000
A25: Kelso/Beaver | B25: N. Mist Storage | C25: 61000 | D25: 0 | E25: 61000
A26: Kelso/Beaver | B26: Beaver Unit 8 | C26: 7326 | D26: 0 | E26: 7326
A27: Kelso/Beaver | B27: Beaver 1 - 6 | C27: 152400 | D27: 85876 | E27: 66524
A28: Mist Port Westward | B28: Port Westward | C28: 70000 | D28: 0 | E28: 70000
A29: Mist Port Westward II | B29: Port Westward II | C29: 70000 | D29: 0 | E29: 70000
A30: Mist Beaver | B30: Beaver | C30: 70000 | D30: 0 | E30: =C30-D30 -> 70000
A31: Gas Day: | E31: 2021-07-28
A32: Receipt Point | B32: Delivery Point | C32: Operating Capacity (DTHS) | D32: Schedule Volume (DTHS) | E32: Estimated Available Capacity
A33: Kelso/Beaver | B33: Port Westward | C33: 64000 | D33: 64000 | E33: =C33-D33 -> 0
A34: Kelso/Beaver | B34: Port Westward II | C34: 44000 | D34: 0 | E34: 44000
A35: Kelso/Beaver | B35: N. Mist Storage | C35: 61000 | D35: 0 | E35: 61000
A36: Kelso/Beaver | B36: Beaver Unit 8 | C36: 7326 | D36: 0 | E36: 7326
A37: Kelso/Beaver | B37: Beaver 1 - 6 | C37: 152400 | D37: 85875 | E37: 66525
A38: Mist Port Westward | B38: Port Westward | C38: 70000 | D38: 0 | E38: 70000
A39: Mist Port Westward II | B39: Port Westward II | C39: 70000 | D39: 0 | E39: 70000
A40: Mist Beaver | B40: Beaver | C40: 70000 | D40: 0 | E40: =C40-D40 -> 70000
A41: Gas Day: | E41: 2021-07-27
A42: Receipt Point | B42: Delivery Point | C42: Operating Capacity (DTHS) | D42: Schedule Volume (DTHS) | E42: Estimated Available Capacity
A43: Kelso/Beaver | B43: Port Westward | C43: 64000 | D43: 64000 | E43: =C43-D43 -> 0
A44: Kelso/Beaver | B44: Port Westward II | C44: 44000 | D44: 25886 | E44: 18114
A45: Kelso/Beaver | B45: N. Mist Storage | C45: 61000 | D45: 0 | E45: 61000
A46: Kelso/Beaver | B46: Beaver Unit 8 | C46: 7326 | D46: 0 | E46: 7326
A47: Kelso/Beaver | B47: Beaver 1 - 6 | C47: 152400 | D47: 60000 | E47: 92400
A48: Mist Port Westward | B48: Port Westward | C48: 70000 | D48: 0 | E48: 70000
A49: Mist Port Westward II | B49: Port Westward II | C49: 70000 | D49: 0 | E49: 70000
A50: Mist Beaver | B50: Beaver | C50: 70000 | D50: 0 | E50: =C50-D50 -> 70000
A51: Gas Day: | E51: 2021-07-26
A52: Receipt Point | B52: Delivery Point | C52: Operating Capacity (DTHS) | D52: Schedule Volume (DTHS) | E52: Estimated Available Capacity
A53: Kelso/Beaver | B53: Port Westward | C53: 64000 | D53: 60000 | E53: =C53-D53 -> 4000
A54: Kelso/Beaver | B54: Port Westward II | C54: 44000 | D54: 32426 | E54: 11574
A55: Kelso/Beaver | B55: N. Mist Storage | C55: 61000 | D55: 0 | E55: 61000
A56: Kelso/Beaver | B56: Beaver Unit 8 | C56: 7326 | D56: 0 | E56: 7326
A57: Kelso/Beaver | B57: Beaver 1 - 6 | C57: 152400 | D57: 40000 | E57: 112400
A58: Mist Port Westward | B58: Port Westward | C58: 70000 | D58: 0 | E58: 70000
A59: Mist Port Westward II | B59: Port Westward II | C59: 70000 | D59: 0 | E59: 70000
A60: Mist Beaver | B60: Beaver | C60: 70000 | D60: 0 | E60: =C60-D60 -> 70000
A61: Gas Day: | E61: 2021-07-25
A62: Receipt Point | B62: Delivery Point | C62: Operating Capacity (DTHS) | D62: Schedule Volume (DTHS) | E62: Estimated Available Capacity
A63: Kelso/Beaver | B63: Port Westward | C63: 64000 | D63: 60000 | E63: =C63-D63 -> 4000
A64: Kelso/Beaver | B64: Port Westward II | C64: 44000 | D64: 32426 | E64: 11574
A65: Kelso/Beaver | B65: N. Mist Storage | C65: 61000 | D65: 0 | E65: 61000
A66: Kelso/Beaver | B66: Beaver Unit 8 | C66: 7326 | D66: 0 | E66: 7326
A67: Kelso/Beaver | B67: Beaver 1 - 6 | C67: 152400 | D67: 40000 | E67: 112400
A68: Mist Port Westward | B68: Port Westward | C68: 70000 | D68: 0 | E68: 70000
A69: Mist Port Westward II | B69: Port Westward II | C69: 70000 | D69: 0 | E69: 70000
A70: Mist Beaver | B70: Beaver | C70: 70000 | D70: 0 | E70: =C70-D70 -> 70000
A71: Gas Day: | E71: 2021-07-24
A72: Receipt Point | B72: Delivery Point | C72: Operating Capacity (DTHS) | D72: Schedule Volume (DTHS) | E72: Estimated Available Capacity
A73: Kelso/Beaver | B73: Port Westward | C73: 64000 | D73: 60000 | E73: =C73-D73 -> 4000
A74: Kelso/Beaver | B74: Port Westward II | C74: 44000 | D74: 32426 | E74: 11574
A75: Kelso/Beaver | B75: N. Mist Storage | C75: 61000 | D75: 0 | E75: 61000
A76: Kelso/Beaver | B76: Beaver Unit 8 | C76: 7326 | D76: 0 | E76: 7326
A77: Kelso/Beaver | B77: Beaver 1 - 6 | C77: 152400 | D77: 40000 | E77: 112400
A78: Mist Port Westward | B78: Port Westward | C78: 70000 | D78: 0 | E78: 70000
A79: Mist Port Westward II | B79: Port Westward II | C79: 70000 | D79: 0 | E79: 70000
A80: Mist Beaver | B80: Beaver | C80: 70000 | D80: 0 | E80: =C80-D80 -> 70000
A81: Gas Day: | E81: 2021-07-23
A82: Receipt Point | B82: Delivery Point | C82: Operating Capacity (DTHS) | D82: Schedule Volume (DTHS) | E82: Estimated Available Capacity
A83: Kelso/Beaver | B83: Port Westward | C83: 64000 | D83: 60000 | E83: =C83-D83 -> 4000
A84: Kelso/Beaver | B84: Port Westward II | C84: 44000 | D84: 32426 | E84: 11574
A85: Kelso/Beaver | B85: N. Mist Storage | C85: 61000 | D85: 0 | E85: 61000
A86: Kelso/Beaver | B86: Beaver Unit 8 | C86: 7326 | D86: 0 | E86: 7326
A87: Kelso/Beaver | B87: Beaver 1 - 6 | C87: 152400 | D87: 40000 | E87: 112400
A88: Mist Port Westward | B88: Port Westward | C88: 70000 | D88: 0 | E88: 70000
A89: Mist Port Westward II | B89: Port Westward II | C89: 70000 | D89: 0 | E89: 70000
A90: Mist Beaver | B90: Beaver | C90: 70000 | D90: 0 | E90: =C90-D90 -> 70000
A91: Gas Day: | E91: 2021-07-22
A92: Receipt Point | B92: Delivery Point | C92: Operating Capacity (DTHS) | D92: Schedule Volume (DTHS) | E92: Estimated Available Capacity
A93: Kelso/Beaver | B93: Port Westward | C93: 64000 | D93: 64000 | E93: =C93-D93 -> 0
A94: Kelso/Beaver | B94: Port Westward II | C94: 44000 | D94: 18347 | E94: 25653
A95: Kelso/Beaver | B95: N. Mist Storage | C95: 61000 | D95: 0 | E95: 61000
A96: Kelso/Beaver | B96: Beaver Unit 8 | C96: 7326 | D96: 0 | E96: 7326
A97: Kelso/Beaver | B97: Beaver 1 - 6 | C97: 152400 | D97: 50000 | E97: 102400
A98: Mist Port Westward | B98: Port Westward | C98: 70000 | D98: 0 | E98: 70000
A99: Mist Port Westward II | B99: Port Westward II | C99: 70000 | D99: 0 | E99: 70000
A100: Mist Beaver | B100: Beaver | C100: 70000 | D100: 0 | E100: =C100-D100 -> 70000
A101: Gas Day: | E101: 2021-07-21
A102: Receipt Point | B102: Delivery Point | C102: Operating Capacity (DTHS) | D102: Schedule Volume (DTHS) | E102: Estimated Available Capacity
A103: Kelso/Beaver | B103: Port Westward | C103: 64000 | D103: 64000 | E103: =C103-D103 -> 0
A104: Kelso/Beaver | B104: Port Westward II | C104: 44000 | D104: 18240 | E104: 25760
A105: Kelso/Beaver | B105: N. Mist Storage | C105: 61000 | D105: 30000 | E105: 31000
A106: Kelso/Beaver | B106: Beaver Unit 8 | C106: 7326 | D106: 0 | E106: 7326
A107: Kelso/Beaver | B107: Beaver 1 - 6 | C107: 152400 | D107: 20000 | E107: 132400
A108: Mist Port Westward | B108: Port Westward | C108: 70000 | D108: 0 | E108: 70000
A109: Mist Port Westward II | B109: Port Westward II | C109: 70000 | D109: 0 | E109: 70000
A110: Mist Beaver | B110: Beaver | C110: 70000 | D110: 0 | E110: =C110-D110 -> 70000
A111: Gas Day: | E111: 2021-07-20
A112: Receipt Point | B112: Delivery Point | C112: Operating Capacity (DTHS) | D112: Schedule Volume (DTHS) | E112: Estimated Available Capacity
A113: Kelso/Beaver | B113: Port Westward | C113: 64000 | D113: 64000 | E113: =C113-D113 -> 0
A114: Kelso/Beaver | B114: Port Westward II | C114: 44000 | D114: 30809 | E114: 13191
A115: Kelso/Beaver | B115: N. Mist Storage | C115: 61000 | D115: 0 | E115: 61000
A116: Kelso/Beaver | B116: Beaver Unit 8 | C116: 7326 | D116: 0 | E116: 7326
A117: Kelso/Beaver | B117: Beaver 1 - 6 | C117: 152400 | D117: 55000 | E117: 97400
A118: Mist Port Westward | B118: Port Westward | C118: 70000 | D118: 0 | E118: 70000
A119: Mist Port Westward II | B119: Port Westward II | C119: 70000 | D119: 0 | E119: 70000
A120: Mist Beaver | B120: Beaver | C120: 70000 | D120: 0 | E120: =C120-D120 -> 70000
A121: Gas Day: | E121: 2021-07-19
A122: Receipt Point | B122: Delivery Point | C122: Operating Capacity (DTHS) | D122: Schedule Volume (DTHS) | E122: Estimated Available Capacity
A123: Kelso/Beaver | B123: Port Westward | C123: 64000 | D123: 64000 | E123: =C123-D123 -> 0
A124: Kelso/Beaver | B124: Port Westward II | C124: 44000 | D124: 23355 | E124: 20645
A125: Kelso/Beaver | B125: N. Mist Storage | C125: 61000 | D125: 0 | E125: 61000
A126: Kelso/Beaver | B126: Beaver Unit 8 | C126: 7326 | D126: 0 | E126: 7326
A127: Kelso/Beaver | B127: Beaver 1 - 6 | C127: 152400 | D127: 60000 | E127: 92400
A128: Mist Port Westward | B128: Port Westward | C128: 70000 | D128: 0 | E128: 70000
A129: Mist Port Westward II | B129: Port Westward II | C129: 70000 | D129: 0 | E129: 70000
A130: Mist Beaver | B130: Beaver | C130: 70000 | D130: 0 | E130: =C130-D130 -> 70000
A131: Gas Day: | E131: 2021-07-18
A132: Receipt Point | B132: Delivery Point | C132: Operating Capacity (DTHS) | D132: Schedule Volume (DTHS) | E132: Estimated Available Capacity
A133: Kelso/Beaver | B133: Port Westward | C133: 64000 | D133: 64000 | E133: =C133-D133 -> 0
A134: Kelso/Beaver | B134: Port Westward II | C134: 44000 | D134: 13355 | E134: 30645
A135: Kelso/Beaver | B135: N. Mist Storage | C135: 61000 | D135: 30000 | E135: 31000
A136: Kelso/Beaver | B136: Beaver Unit 8 | C136: 7326 | D136: 0 | E136: 7326
A137: Kelso/Beaver | B137: Beaver 1 - 6 | C137: 152400 | D137: 40000 | E137: 112400
A138: Mist Port Westward | B138: Port Westward | C138: 70000 | D138: 0 | E138: 70000
A139: Mist Port Westward II | B139: Port Westward II | C139: 70000 | D139: 0 | E139: 70000
A140: Mist Beaver | B140: Beaver | C140: 70000 | D140: 0 | E140: =C140-D140 -> 70000
A141: Gas Day: | E141: 2021-07-17
A142: Receipt Point | B142: Delivery Point | C142: Operating Capacity (DTHS) | D142: Schedule Volume (DTHS) | E142: Estimated Available Capacity
A143: Kelso/Beaver | B143: Port Westward | C143: 64000 | D143: 64000 | E143: =C143-D143 -> 0
A144: Kelso/Beaver | B144: Port Westward II | C144: 44000 | D144: 13355 | E144: 30645
A145: Kelso/Beaver | B145: N. Mist Storage | C145: 61000 | D145: 30000 | E145: 31000
A146: Kelso/Beaver | B146: Beaver Unit 8 | C146: 7326 | D146: 0 | E146: 7326
A147: Kelso/Beaver | B147: Beaver 1 - 6 | C147: 152400 | D147: 40000 | E147: 112400
A148: Mist Port Westward | B148: Port Westward | C148: 70000 | D148: 0 | E148: 70000
A149: Mist Port Westward II | B149: Port Westward II | C149: 70000 | D149: 0 | E149: 70000
A150: Mist Beaver | B150: Beaver | C150: 70000 | D150: 0 | E150: =C150-D150 -> 70000
A151: Gas Day: | E151: 2021-07-16
A152: Receipt Point | B152: Delivery Point | C152: Operating Capacity (DTHS) | D152: Schedule Volume (DTHS) | E152: Estimated Available Capacity
A153: Kelso/Beaver | B153: Port Westward | C153: 64000 | D153: 60000 | E153: =C153-D153 -> 4000
A154: Kelso/Beaver | B154: Port Westward II | C154: 44000 | D154: 4431 | E154: 39569
A155: Kelso/Beaver | B155: N. Mist Storage | C155: 61000 | D155: 50000 | E155: 11000
A156: Kelso/Beaver | B156: Beaver Unit 8 | C156: 7326 | D156: 0 | E156: 7326
A157: Kelso/Beaver | B157: Beaver 1 - 6 | C157: 152400 | D157: 0 | E157: 152400
A158: Mist Port Westward | B158: Port Westward | C158: 70000 | D158: 0 | E158: 70000
A159: Mist Port Westward II | B159: Port Westward II | C159: 70000 | D159: 0 | E159: 70000
A160: Mist Beaver | B160: Beaver | C160: 70000 | D160: 0 | E160: =C160-D160 -> 70000
A161: Gas Day: | E161: 2021-07-15
A162: Receipt Point | B162: Delivery Point | C162: Operating Capacity (DTHS) | D162: Schedule Volume (DTHS) | E162: Estimated Available Capacity
A163: Kelso/Beaver | B163: Port Westward | C163: 64000 | D163: 60000 | E163: =C163-D163 -> 4000
A164: Kelso/Beaver | B164: Port Westward II | C164: 44000 | D164: 4514 | E164: 39486
A165: Kelso/Beaver | B165: N. Mist Storage | C165: 61000 | D165: 50000 | E165: 11000
A166: Kelso/Beaver | B166: Beaver Unit 8 | C166: 7326 | D166: 0 | E166: 7326
A167: Kelso/Beaver | B167: Beaver 1 - 6 | C167: 152400 | D167: 0 | E167: 152400
A168: Mist Port Westward | B168: Port Westward | C168: 70000 | D168: 0 | E168: 70000
A169: Mist Port Westward II | B169: Port Westward II | C169: 70000 | D169: 0 | E169: 70000
A170: Mist Beaver | B170: Beaver | C170: 70000 | D170: 0 | E170: =C170-D170 -> 70000
A171: Gas Day: | E171: 2021-07-14
A172: Receipt Point | B172: Delivery Point | C172: Operating Capacity (DTHS) | D172: Schedule Volume (DTHS) | E172: Estimated Available Capacity
A173: Kelso/Beaver | B173: Port Westward | C173: 64000 | D173: 60000 | E173: =C173-D173 -> 4000
A174: Kelso/Beaver | B174: Port Westward II | C174: 44000 | D174: 27369 | E174: 16631
A175: Kelso/Beaver | B175: N. Mist Storage | C175: 61000 | D175: 45000 | E175: 16000
A176: Kelso/Beaver | B176: Beaver Unit 8 | C176: 7326 | D176: 0 | E176: 7326
A177: Kelso/Beaver | B177: Beaver 1 - 6 | C177: 152400 | D177: 0 | E177: 152400
A178: Mist Port Westward | B178: Port Westward | C178: 70000 | D178: 0 | E178: 70000
A179: Mist Port Westward II | B179: Port Westward II | C179: 70000 | D179: 0 | E179: 70000
A180: Mist Beaver | B180: Beaver | C180: 70000 | D180: 0 | E180: =C180-D180 -> 70000
A181: Gas Day: | E181: 2021-07-13
A182: Receipt Point | B182: Delivery Point | C182: Operating Capacity (DTHS) | D182: Schedule Volume (DTHS) | E182: Estimated Available Capacity
A183: Kelso/Beaver | B183: Port Westward | C183: 64000 | D183: 60000 | E183: =C183-D183 -> 4000
A184: Kelso/Beaver | B184: Port Westward II | C184: 44000 | D184: 27330 | E184: 16670
A185: Kelso/Beaver | B185: N. Mist Storage | C185: 61000 | D185: 0 | E185: 61000
A186: Kelso/Beaver | B186: Beaver Unit 8 | C186: 7326 | D186: 0 | E186: 7326
A187: Kelso/Beaver | B187: Beaver 1 - 6 | C187: 152400 | D187: 45000 | E187: 107400
A188: Mist Port Westward | B188: Port Westward | C188: 70000 | D188: 0 | E188: 70000
A189: Mist Port Westward II | B189: Port Westward II | C189: 70000 | D189: 0 | E189: 70000
A190: Mist Beaver | B190: Beaver | C190: 70000 | D190: 0 | E190: =C190-D190 -> 70000
A191: Gas Day: | E191: 2021-07-12
A192: Receipt Point | B192: Delivery Point | C192: Operating Capacity (DTHS) | D192: Schedule Volume (DTHS) | E192: Estimated Available Capacity
A193: Kelso/Beaver | B193: Port Westward | C193: 64000 | D193: 64000 | E193: =C193-D193 -> 0
A194: Kelso/Beaver | B194: Port Westward II | C194: 44000 | D194: 30943 | E194: 13057
A195: Kelso/Beaver | B195: N. Mist Storage | C195: 61000 | D195: 0 | E195: 61000
A196: Kelso/Beaver | B196: Beaver Unit 8 | C196: 7326 | D196: 0 | E196: 7326
A197: Kelso/Beaver | B197: Beaver 1 - 6 | C197: 152400 | D197: 55000 | E197: 97400
A198: Mist Port Westward | B198: Port Westward | C198: 70000 | D198: 0 | E198: 70000
A199: Mist Port Westward II | B199: Port Westward II | C199: 70000 | D199: 0 | E199: 70000
A200: Mist Beaver | B200: Beaver | C200: 70000 | D200: 0 | E200: =C200-D200 -> 70000
... 110 more rows

Sheet August
A1: Gas Day: | E1: 2021-08-31
A2: Receipt Point | B2: Delivery Point | C2: Operating Capacity (DTHS) | D2: Schedule Volume (DTHS) | E2: Estimated Available Capacity
A3: Kelso/Beaver | B3: Port Westward | C3: 64000 | D3: 60000 | E3: =C3-D3 -> 4000
A4: Kelso/Beaver | B4: Port Westward II | C4: 44000 | D4: 13843 | E4: 30157
A5: Kelso/Beaver | B5: N. Mist Storage | C5: 61000 | D5: 0 | E5: 61000
A6: Kelso/Beaver | B6: Beaver Unit 8 | C6: 7326 | D6: 0 | E6: 7326
A7: Kelso/Beaver | B7: Beaver 1 - 6 | C7: 152400 | D7: 0 | E7: 152400
A8: Mist Port Westward | B8: Port Westward | C8: 70000 | D8: 0 | E8: 70000
A9: Mist Port Westward II | B9: Port Westward II | C9: 70000 | D9: 0 | E9: 70000
A10: Mist Beaver | B10: Beaver | C10: 70000 | D10: 0 | E10: =C10-D10 -> 70000
A11: Gas Day: | E11: 2021-08-30
A12: Receipt Point | B12: Delivery Point | C12: Operating Capacity (DTHS) | D12: Schedule Volume (DTHS) | E12: Estimated Available Capacity
A13: Kelso/Beaver | B13: Port Westward | C13: 64000 | D13: 60000 | E13: =C13-D13 -> 4000
A14: Kelso/Beaver | B14: Port Westward II | C14: 44000 | D14: 33670 | E14: 10330
A15: Kelso/Beaver | B15: N. Mist Storage | C15: 61000 | D15: 0 | E15: 61000
A16: Kelso/Beaver | B16: Beaver Unit 8 | C16: 7326 | D16: 0 | E16: 7326
A17: Kelso/Beaver | B17: Beaver 1 - 6 | C17: 152400 | D17: 0 | E17: 152400
A18: Mist Port Westward | B18: Port Westward | C18: 70000 | D18: 0 | E18: 70000
A19: Mist Port Westward II | B19: Port Westward II | C19: 70000 | D19: 0 | E19: 70000
A20: Mist Beaver | B20: Beaver | C20: 70000 | D20: 0 | E20: =C20-D20 -> 70000
A21: Gas Day: | E21: 2021-08-29
A22: Receipt Point | B22: Delivery Point | C22: Operating Capacity (DTHS) | D22: Schedule Volume (DTHS) | E22: Estimated Available Capacity
A23: Kelso/Beaver | B23: Port Westward | C23: 64000 | D23: 60000 | E23: =C23-D23 -> 4000
A24: Kelso/Beaver | B24: Port Westward II | C24: 44000 | D24: 33670 | E24: 10330
A25: Kelso/Beaver | B25: N. Mist Storage | C25: 61000 | D25: 0 | E25: 61000
A26: Kelso/Beaver | B26: Beaver Unit 8 | C26: 7326 | D26: 0 | E26: 7326
A27: Kelso/Beaver | B27: Beaver 1 - 6 | C27: 152400 | D27: 0 | E27: 152400
A28: Mist Port Westward | B28: Port Westward | C28: 70000 | D28: 0 | E28: 70000
A29: Mist Port Westward II | B29: Port Westward II | C29: 70000 | D29: 0 | E29: 70000
A30: Mist Beaver | B30: Beaver | C30: 70000 | D30: 0 | E30: =C30-D30 -> 70000
A31: Gas Day: | E31: 2021-08-28
A32: Receipt Point | B32: Delivery Point | C32: Operating Capacity (DTHS) | D32: Schedule Volume (DTHS) | E32: Estimated Available Capacity
A33: Kelso/Beaver | B33: Port Westward | C33: 64000 | D33: 60000 | E33: =C33-D33 -> 4000
A34: Kelso/Beaver | B34: Port Westward II | C34: 44000 | D34: 33670 | E34: 10330
A35: Kelso/Beaver | B35: N. Mist Storage | C35: 61000 | D35: 0 | E35: 61000
A36: Kelso/Beaver | B36: Beaver Unit 8 | C36: 7326 | D36: 0 | E36: 7326
A37: Kelso/Beaver | B37: Beaver 1 - 6 | C37: 152400 | D37: 0 | E37: 152400
A38: Mist Port Westward | B38: Port Westward | C38: 70000 | D38: 0 | E38: 70000
A39: Mist Port Westward II | B39: Port Westward II | C39: 70000 | D39: 0 | E39: 70000
A40: Mist Beaver | B40: Beaver | C40: 70000 | D40: 0 | E40: =C40-D40 -> 70000
A41: Gas Day: | E41: 2021-08-27
A42: Receipt Point | B42: Delivery Point | C42: Operating Capacity (DTHS) | D42: Schedule Volume (DTHS) | E42: Estimated Available Capacity
A43: Kelso/Beaver | B43: Port Westward | C43: 64000 | D43: 60000 | E43: =C43-D43 -> 4000
A44: Kelso/Beaver | B44: Port Westward II | C44: 44000 | D44: 5419 | E44: 38581
A45: Kelso/Beaver | B45: N. Mist Storage | C45: 61000 | D45: 0 | E45: 61000
A46: Kelso/Beaver | B46: Beaver Unit 8 | C46: 7326 | D46: 0 | E46: 7326
A47: Kelso/Beaver | B47: Beaver 1 - 6 | C47: 152400 | D47: 0 | E47: 152400
A48: Mist Port Westward | B48: Port Westward | C48: 70000 | D48: 0 | E48: 70000
A49: Mist Port Westward II | B49: Port Westward II | C49: 70000 | D49: 0 | E49: 70000
A50: Mist Beaver | B50: Beaver | C50: 70000 | D50: 0 | E50: =C50-D50 -> 70000
A51: Gas Day: | E51: 2021-08-26
A52: Receipt Point | B52: Delivery Point | C52: Operating Capacity (DTHS) | D52: Schedule Volume (DTHS) | E52: Estimated Available Capacity
A53: Kelso/Beaver | B53: Port Westward | C53: 64000 | D53: 64000 | E53: =C53-D53 -> 0
A54: Kelso/Beaver | B54: Port Westward II | C54: 44000 | D54: 18359 | E54: 25641
A55: Kelso/Beaver | B55: N. Mist Storage | C55: 61000 | D55: 0 | E55: 61000
A56: Kelso/Beaver | B56: Beaver Unit 8 | C56: 7326 | D56: 0 | E56: 7326
A57: Kelso/Beaver | B57: Beaver 1 - 6 | C57: 152400 | D57: 0 | E57: 152400
A58: Mist Port Westward | B58: Port Westward | C58: 70000 | D58: 0 | E58: 70000
A59: Mist Port Westward II | B59: Port Westward II | C59: 70000 | D59: 0 | E59: 70000
A60: Mist Beaver | B60: Beaver | C60: 70000 | D60: 0 | E60: =C60-D60 -> 70000
A61: Gas Day: | E61: 2021-08-25
A62: Receipt Point | B62: Delivery Point | C62: Operating Capacity (DTHS) | D62: Schedule Volume (DTHS) | E62: Estimated Available Capacity
A63: Kelso/Beaver | B63: Port Westward | C63: 64000 | D63: 64000 | E63: =C63-D63 -> 0
A64: Kelso/Beaver | B64: Port Westward II | C64: 44000 | D64: 23418 | E64: 20582
A65: Kelso/Beaver | B65: N. Mist Storage | C65: 61000 | D65: 0 | E65: 61000
A66: Kelso/Beaver | B66: Beaver Unit 8 | C66: 7326 | D66: 0 | E66: 7326
A67: Kelso/Beaver | B67: Beaver 1 - 6 | C67: 152400 | D67: 45000 | E67: 107400
A68: Mist Port Westward | B68: Port Westward | C68: 70000 | D68: 0 | E68: 70000
A69: Mist Port Westward II | B69: Port Westward II | C69: 70000 | D69: 0 | E69: 70000
A70: Mist Beaver | B70: Beaver | C70: 70000 | D70: 0 | E70: =C70-D70 -> 70000
A71: Gas Day: | E71: 2021-08-24
A72: Receipt Point | B72: Delivery Point | C72: Operating Capacity (DTHS) | D72: Schedule Volume (DTHS) | E72: Estimated Available Capacity
A73: Kelso/Beaver | B73: Port Westward | C73: 64000 | D73: 64000 | E73: =C73-D73 -> 0
A74: Kelso/Beaver | B74: Port Westward II | C74: 44000 | D74: 25791 | E74: 18209
A75: Kelso/Beaver | B75: N. Mist Storage | C75: 61000 | D75: 0 | E75: 61000
A76: Kelso/Beaver | B76: Beaver Unit 8 | C76: 7326 | D76: 0 | E76: 7326
A77: Kelso/Beaver | B77: Beaver 1 - 6 | C77: 152400 | D77: 0 | E77: 152400
A78: Mist Port Westward | B78: Port Westward | C78: 70000 | D78: 0 | E78: 70000
A79: Mist Port Westward II | B79: Port Westward II | C79: 70000 | D79: 0 | E79: 70000
A80: Mist Beaver | B80: Beaver | C80: 70000 | D80: 0 | E80: =C80-D80 -> 70000
A81: Gas Day: | E81: 2021-08-23
A82: Receipt Point | B82: Delivery Point | C82: Operating Capacity (DTHS) | D82: Schedule Volume (DTHS) | E82: Estimated Available Capacity
A83: Kelso/Beaver | B83: Port Westward | C83: 64000 | D83: 64000 | E83: =C83-D83 -> 0
A84: Kelso/Beaver | B84: Port Westward II | C84: 44000 | D84: 16375 | E84: 27625
A85: Kelso/Beaver | B85: N. Mist Storage | C85: 61000 | D85: 0 | E85: 61000
A86: Kelso/Beaver | B86: Beaver Unit 8 | C86: 7326 | D86: 0 | E86: 7326
A87: Kelso/Beaver | B87: Beaver 1 - 6 | C87: 152400 | D87: 0 | E87: 152400
A88: Mist Port Westward | B88: Port Westward | C88: 70000 | D88: 0 | E88: 70000
A89: Mist Port Westward II | B89: Port Westward II | C89: 70000 | D89: 0 | E89: 70000
A90: Mist Beaver | B90: Beaver | C90: 70000 | D90: 0 | E90: =C90-D90 -> 70000
A91: Gas Day: | E91: 2021-08-22
A92: Receipt Point | B92: Delivery Point | C92: Operating Capacity (DTHS) | D92: Schedule Volume (DTHS) | E92: Estimated Available Capacity
A93: Kelso/Beaver | B93: Port Westward | C93: 64000 | D93: 64000 | E93: =C93-D93 -> 0
A94: Kelso/Beaver | B94: Port Westward II | C94: 44000 | D94: 16375 | E94: 27625
A95: Kelso/Beaver | B95: N. Mist Storage | C95: 61000 | D95: 0 | E95: 61000
A96: Kelso/Beaver | B96: Beaver Unit 8 | C96: 7326 | D96: 0 | E96: 7326
A97: Kelso/Beaver | B97: Beaver 1 - 6 | C97: 152400 | D97: 0 | E97: 152400
A98: Mist Port Westward | B98: Port Westward | C98: 70000 | D98: 0 | E98: 70000
A99: Mist Port Westward II | B99: Port Westward II | C99: 70000 | D99: 0 | E99: 70000
A100: Mist Beaver | B100: Beaver | C100: 70000 | D100: 0 | E100: =C100-D100 -> 70000
A101: Gas Day: | E101: 2021-08-21
A102: Receipt Point | B102: Delivery Point | C102: Operating Capacity (DTHS) | D102: Schedule Volume (DTHS) | E102: Estimated Available Capacity
A103: Kelso/Beaver | B103: Port Westward | C103: 64000 | D103: 64000 | E103: =C103-D103 -> 0
A104: Kelso/Beaver | B104: Port Westward II | C104: 44000 | D104: 16375 | E104: 27625
A105: Kelso/Beaver | B105: N. Mist Storage | C105: 61000 | D105: 0 | E105: 61000
A106: Kelso/Beaver | B106: Beaver Unit 8 | C106: 7326 | D106: 0 | E106: 7326
A107: Kelso/Beaver | B107: Beaver 1 - 6 | C107: 152400 | D107: 0 | E107: 152400
A108: Mist Port Westward | B108: Port Westward | C108: 70000 | D108: 0 | E108: 70000
A109: Mist Port Westward II | B109: Port Westward II | C109: 70000 | D109: 0 | E109: 70000
A110: Mist Beaver | B110: Beaver | C110: 70000 | D110: 0 | E110: =C110-D110 -> 70000
A111: Gas Day: | E111: 2021-08-20
A112: Receipt Point | B112: Delivery Point | C112: Operating Capacity (DTHS) | D112: Schedule Volume (DTHS) | E112: Estimated Available Capacity
A113: Kelso/Beaver | B113: Port Westward | C113: 64000 | D113: 64000 | E113: =C113-D113 -> 0
A114: Kelso/Beaver | B114: Port Westward II | C114: 44000 | D114: 5476 | E114: 38524
A115: Kelso/Beaver | B115: N. Mist Storage | C115: 61000 | D115: 12000 | E115: 49000
A116: Kelso/Beaver | B116: Beaver Unit 8 | C116: 7326 | D116: 0 | E116: 7326
A117: Kelso/Beaver | B117: Beaver 1 - 6 | C117: 152400 | D117: 0 | E117: 152400
A118: Mist Port Westward | B118: Port Westward | C118: 70000 | D118: 0 | E118: 70000
A119: Mist Port Westward II | B119: Port Westward II | C119: 70000 | D119: 0 | E119: 70000
A120: Mist Beaver | B120: Beaver | C120: 70000 | D120: 0 | E120: =C120-D120 -> 70000
A121: Gas Day: | E121: 2021-08-19
A122: Receipt Point | B122: Delivery Point | C122: Operating Capacity (DTHS) | D122: Schedule Volume (DTHS) | E122: Estimated Available Capacity
A123: Kelso/Beaver | B123: Port Westward | C123: 64000 | D123: 64000 | E123: =C123-D123 -> 0
A124: Kelso/Beaver | B124: Port Westward II | C124: 44000 | D124: 20619 | E124: 23381
A125: Kelso/Beaver | B125: N. Mist Storage | C125: 61000 | D125: 0 | E125: 61000
A126: Kelso/Beaver | B126: Beaver Unit 8 | C126: 7326 | D126: 0 | E126: 7326
A127: Kelso/Beaver | B127: Beaver 1 - 6 | C127: 152400 | D127: 25000 | E127: 127400
A128: Mist Port Westward | B128: Port Westward | C128: 70000 | D128: 0 | E128: 70000
A129: Mist Port Westward II | B129: Port Westward II | C129: 70000 | D129: 0 | E129: 70000
A130: Mist Beaver | B130: Beaver | C130: 70000 | D130: 0 | E130: =C130-D130 -> 70000
A131: Gas Day: | E131: 2021-08-18
A132: Receipt Point | B132: Delivery Point | C132: Operating Capacity (DTHS) | D132: Schedule Volume (DTHS) | E132: Estimated Available Capacity
A133: Kelso/Beaver | B133: Port Westward | C133: 64000 | D133: 64000 | E133: =C133-D133 -> 0
A134: Kelso/Beaver | B134: Port Westward II | C134: 44000 | D134: 23419 | E134: 20581
A135: Kelso/Beaver | B135: N. Mist Storage | C135: 61000 | D135: 0 | E135: 61000
A136: Kelso/Beaver | B136: Beaver Unit 8 | C136: 7326 | D136: 0 | E136: 7326
A137: Kelso/Beaver | B137: Beaver 1 - 6 | C137: 152400 | D137: 45000 | E137: 107400
A138: Mist Port Westward | B138: Port Westward | C138: 70000 | D138: 0 | E138: 70000
A139: Mist Port Westward II | B139: Port Westward II | C139: 70000 | D139: 0 | E139: 70000
A140: Mist Beaver | B140: Beaver | C140: 70000 | D140: 0 | E140: =C140-D140 -> 70000
A141: Gas Day: | E141: 2021-08-17
A142: Receipt Point | B142: Delivery Point | C142: Operating Capacity (DTHS) | D142: Schedule Volume (DTHS) | E142: Estimated Available Capacity
A143: Kelso/Beaver | B143: Port Westward | C143: 64000 | D143: 64000 | E143: =C143-D143 -> 0
A144: Kelso/Beaver | B144: Port Westward II | C144: 44000 | D144: 23418 | E144: 20582
A145: Kelso/Beaver | B145: N. Mist Storage | C145: 61000 | D145: 0 | E145: 61000
A146: Kelso/Beaver | B146: Beaver Unit 8 | C146: 7326 | D146: 0 | E146: 7326
A147: Kelso/Beaver | B147: Beaver 1 - 6 | C147: 152400 | D147: 45000 | E147: 107400
A148: Mist Port Westward | B148: Port Westward | C148: 70000 | D148: 0 | E148: 70000
A149: Mist Port Westward II | B149: Port Westward II | C149: 70000 | D149: 0 | E149: 70000
A150: Mist Beaver | B150: Beaver | C150: 70000 | D150: 0 | E150: =C150-D150 -> 70000
A151: Gas Day: | E151: 2021-08-16
A152: Receipt Point | B152: Delivery Point | C152: Operating Capacity (DTHS) | D152: Schedule Volume (DTHS) | E152: Estimated Available Capacity
A153: Kelso/Beaver | B153: Port Westward | C153: 64000 | D153: 64000 | E153: =C153-D153 -> 0
A154: Kelso/Beaver | B154: Port Westward II | C154: 44000 | D154: 20000 | E154: 24000
A155: Kelso/Beaver | B155: N. Mist Storage | C155: 61000 | D155: 0 | E155: 61000
A156: Kelso/Beaver | B156: Beaver Unit 8 | C156: 7326 | D156: 0 | E156: 7326
A157: Kelso/Beaver | B157: Beaver 1 - 6 | C157: 152400 | D157: 48418 | E157: 103982
A158: Mist Port Westward | B158: Port Westward | C158: 70000 | D158: 0 | E158: 70000
A159: Mist Port Westward II | B159: Port Westward II | C159: 70000 | D159: 0 | E159: 70000
A160: Mist Beaver | B160: Beaver | C160: 70000 | D160: 0 | E160: =C160-D160 -> 70000
A161: Gas Day: | E161: 2021-08-15
A162: Receipt Point | B162: Delivery Point | C162: Operating Capacity (DTHS) | D162: Schedule Volume (DTHS) | E162: Estimated Available Capacity
A163: Kelso/Beaver | B163: Port Westward | C163: 64000 | D163: 64000 | E163: =C163-D163 -> 0
A164: Kelso/Beaver | B164: Port Westward II | C164: 44000 | D164: 20000 | E164: 24000
A165: Kelso/Beaver | B165: N. Mist Storage | C165: 61000 | D165: 0 | E165: 61000
A166: Kelso/Beaver | B166: Beaver Unit 8 | C166: 7326 | D166: 0 | E166: 7326
A167: Kelso/Beaver | B167: Beaver 1 - 6 | C167: 152400 | D167: 48418 | E167: 103982
A168: Mist Port Westward | B168: Port Westward | C168: 70000 | D168: 0 | E168: 70000
A169: Mist Port Westward II | B169: Port Westward II | C169: 70000 | D169: 0 | E169: 70000
A170: Mist Beaver | B170: Beaver | C170: 70000 | D170: 0 | E170: =C170-D170 -> 70000
A171: Gas Day: | E171: 2021-08-14
A172: Receipt Point | B172: Delivery Point | C172: Operating Capacity (DTHS) | D172: Schedule Volume (DTHS) | E172: Estimated Available Capacity
A173: Kelso/Beaver | B173: Port Westward | C173: 64000 | D173: 64000 | E173: =C173-D173 -> 0
A174: Kelso/Beaver | B174: Port Westward II | C174: 44000 | D174: 20000 | E174: 24000
A175: Kelso/Beaver | B175: N. Mist Storage | C175: 61000 | D175: 0 | E175: 61000
A176: Kelso/Beaver | B176: Beaver Unit 8 | C176: 7326 | D176: 0 | E176: 7326
A177: Kelso/Beaver | B177: Beaver 1 - 6 | C177: 152400 | D177: 48418 | E177: 103982
A178: Mist Port Westward | B178: Port Westward | C178: 70000 | D178: 0 | E178: 70000
A179: Mist Port Westward II | B179: Port Westward II | C179: 70000 | D179: 0 | E179: 70000
A180: Mist Beaver | B180: Beaver | C180: 70000 | D180: 0 | E180: =C180-D180 -> 70000
A181: Gas Day: | E181: 2021-08-13
A182: Receipt Point | B182: Delivery Point | C182: Operating Capacity (DTHS) | D182: Schedule Volume (DTHS) | E182: Estimated Available Capacity
A183: Kelso/Beaver | B183: Port Westward | C183: 64000 | D183: 0 | E183: =C183-D183 -> 64000
A184: Kelso/Beaver | B184: Port Westward II | C184: 44000 | D184: 32418 | E184: 11582
A185: Kelso/Beaver | B185: N. Mist Storage | C185: 61000 | D185: 0 | E185: 61000
A186: Kelso/Beaver | B186: Beaver Unit 8 | C186: 7326 | D186: 0 | E186: 7326
A187: Kelso/Beaver | B187: Beaver 1 - 6 | C187: 152400 | D187: 100000 | E187: 52400
A188: Mist Port Westward | B188: Port Westward | C188: 70000 | D188: 0 | E188: 70000
A189: Mist Port Westward II | B189: Port Westward II | C189: 70000 | D189: 0 | E189: 70000
A190: Mist Beaver | B190: Beaver | C190: 70000 | D190: 0 | E190: =C190-D190 -> 70000
A191: Gas Day: | E191: 2021-08-12
A192: Receipt Point | B192: Delivery Point | C192: Operating Capacity (DTHS) | D192: Schedule Volume (DTHS) | E192: Estimated Available Capacity
A193: Kelso/Beaver | B193: Port Westward | C193: 64000 | D193: 0 | E193: =C193-D193 -> 64000
A194: Kelso/Beaver | B194: Port Westward II | C194: 44000 | D194: 32418 | E194: 11582
A195: Kelso/Beaver | B195: N. Mist Storage | C195: 61000 | D195: 0 | E195: 61000
A196: Kelso/Beaver | B196: Beaver Unit 8 | C196: 7326 | D196: 0 | E196: 7326
A197: Kelso/Beaver | B197: Beaver 1 - 6 | C197: 152400 | D197: 100000 | E197: 52400
A198: Mist Port Westward | B198: Port Westward | C198: 70000 | D198: 0 | E198: 70000
A199: Mist Port Westward II | B199: Port Westward II | C199: 70000 | D199: 0 | E199: 70000
A200: Mist Beaver | B200: Beaver | C200: 70000 | D200: 0 | E200: =C200-D200 -> 70000
... 110 more rows

Sheet September
A1: Gas Day: | E1: 2021-09-30
A2: Receipt Point | B2: Delivery Point | C2: Operating Capacity (DTHS) | D2: Schedule Volume (DTHS) | E2: Estimated Available Capacity
A3: Kelso/Beaver | B3: Port Westward | C3: 64000 | D3: 64000 | E3: =C3-D3 -> 0
A4: Kelso/Beaver | B4: Port Westward II | C4: 44000 | D4: 38603 | E4: 5397
A5: Kelso/Beaver | B5: N. Mist Storage | C5: 61000 | D5: 0 | E5: 61000
A6: Kelso/Beaver | B6: Beaver Unit 8 | C6: 7326 | D6: 0 | E6: 7326
A7: Kelso/Beaver | B7: Beaver 1 - 6 | C7: 152400 | D7: 0 | E7: 152400
A8: Mist Port Westward | B8: Port Westward | C8: 70000 | D8: 0 | E8: 70000
A9: Mist Port Westward II | B9: Port Westward II | C9: 70000 | D9: 0 | E9: 70000
A10: Mist Beaver | B10: Beaver | C10: 70000 | D10: 0 | E10: =C10-D10 -> 70000
A11: Gas Day: | E11: 2021-09-29
A12: Receipt Point | B12: Delivery Point | C12: Operating Capacity (DTHS) | D12: Schedule Volume (DTHS) | E12: Estimated Available Capacity
A13: Kelso/Beaver | B13: Port Westward | C13: 64000 | D13: 64000 | E13: =C13-D13 -> 0
A14: Kelso/Beaver | B14: Port Westward II | C14: 44000 | D14: 0 | E14: 44000
A15: Kelso/Beaver | B15: N. Mist Storage | C15: 61000 | D15: 0 | E15: 61000
A16: Kelso/Beaver | B16: Beaver Unit 8 | C16: 7326 | D16: 0 | E16: 7326
A17: Kelso/Beaver | B17: Beaver 1 - 6 | C17: 152400 | D17: 38601 | E17: 113799
A18: Mist Port Westward | B18: Port Westward | C18: 70000 | D18: 0 | E18: 70000
A19: Mist Port Westward II | B19: Port Westward II | C19: 70000 | D19: 0 | E19: 70000
A20: Mist Beaver | B20: Beaver | C20: 70000 | D20: 0 | E20: =C20-D20 -> 70000
A21: Gas Day: | E21: 2021-09-28
A22: Receipt Point | B22: Delivery Point | C22: Operating Capacity (DTHS) | D22: Schedule Volume (DTHS) | E22: Estimated Available Capacity
A23: Kelso/Beaver | B23: Port Westward | C23: 64000 | D23: 64000 | E23: =C23-D23 -> 0
A24: Kelso/Beaver | B24: Port Westward II | C24: 44000 | D24: 18601 | E24: 25399
A25: Kelso/Beaver | B25: N. Mist Storage | C25: 61000 | D25: 20000 | E25: 41000
A26: Kelso/Beaver | B26: Beaver Unit 8 | C26: 7326 | D26: 0 | E26: 7326
A27: Kelso/Beaver | B27: Beaver 1 - 6 | C27: 152400 | D27: 0 | E27: 152400
A28: Mist Port Westward | B28: Port Westward | C28: 70000 | D28: 0 | E28: 70000
A29: Mist Port Westward II | B29: Port Westward II | C29: 70000 | D29: 0 | E29: 70000
A30: Mist Beaver | B30: Beaver | C30: 70000 | D30: 0 | E30: =C30-D30 -> 70000
A31: Gas Day: | E31: 2021-09-27
A32: Receipt Point | B32: Delivery Point | C32: Operating Capacity (DTHS) | D32: Schedule Volume (DTHS) | E32: Estimated Available Capacity
A33: Kelso/Beaver | B33: Port Westward | C33: 64000 | D33: 64000 | E33: =C33-D33 -> 0
A34: Kelso/Beaver | B34: Port Westward II | C34: 44000 | D34: 15000 | E34: 29000
A35: Kelso/Beaver | B35: N. Mist Storage | C35: 61000 | D35: 43000 | E35: 18000
A36: Kelso/Beaver | B36: Beaver Unit 8 | C36: 7326 | D36: 0 | E36: 7326
A37: Kelso/Beaver | B37: Beaver 1 - 6 | C37: 152400 | D37: 0 | E37: 152400
A38: Mist Port Westward | B38: Port Westward | C38: 70000 | D38: 0 | E38: 70000
A39: Mist Port Westward II | B39: Port Westward II | C39: 70000 | D39: 0 | E39: 70000
A40: Mist Beaver | B40: Beaver | C40: 70000 | D40: 0 | E40: =C40-D40 -> 70000
A41: Gas Day: | E41: 2021-09-26
A42: Receipt Point | B42: Delivery Point | C42: Operating Capacity (DTHS) | D42: Schedule Volume (DTHS) | E42: Estimated Available Capacity
A43: Kelso/Beaver | B43: Port Westward | C43: 64000 | D43: 64000 | E43: =C43-D43 -> 0
A44: Kelso/Beaver | B44: Port Westward II | C44: 44000 | D44: 15000 | E44: 29000
A45: Kelso/Beaver | B45: N. Mist Storage | C45: 61000 | D45: 43000 | E45: 18000
A46: Kelso/Beaver | B46: Beaver Unit 8 | C46: 7326 | D46: 0 | E46: 7326
A47: Kelso/Beaver | B47: Beaver 1 - 6 | C47: 152400 | D47: 0 | E47: 152400
A48: Mist Port Westward | B48: Port Westward | C48: 70000 | D48: 0 | E48: 70000
A49: Mist Port Westward II | B49: Port Westward II | C49: 70000 | D49: 0 | E49: 70000
A50: Mist Beaver | B50: Beaver | C50: 70000 | D50: 0 | E50: =C50-D50 -> 70000
A51: Gas Day: | E51: 2021-09-25
A52: Receipt Point | B52: Delivery Point | C52: Operating Capacity (DTHS) | D52: Schedule Volume (DTHS) | E52: Estimated Available Capacity
A53: Kelso/Beaver | B53: Port Westward | C53: 64000 | D53: 64000 | E53: =C53-D53 -> 0
A54: Kelso/Beaver | B54: Port Westward II | C54: 44000 | D54: 15000 | E54: 29000
A55: Kelso/Beaver | B55: N. Mist Storage | C55: 61000 | D55: 43000 | E55: 18000
A56: Kelso/Beaver | B56: Beaver Unit 8 | C56: 7326 | D56: 0 | E56: 7326
A57: Kelso/Beaver | B57: Beaver 1 - 6 | C57: 152400 | D57: 0 | E57: 152400
A58: Mist Port Westward | B58: Port Westward | C58: 70000 | D58: 0 | E58: 70000
A59: Mist Port Westward II | B59: Port Westward II | C59: 70000 | D59: 0 | E59: 70000
A60: Mist Beaver | B60: Beaver | C60: 70000 | D60: 0 | E60: =C60-D60 -> 70000
A61: Gas Day: | E61: 2021-09-24
A62: Receipt Point | B62: Delivery Point | C62: Operating Capacity (DTHS) | D62: Schedule Volume (DTHS) | E62: Estimated Available Capacity
A63: Kelso/Beaver | B63: Port Westward | C63: 64000 | D63: 64000 | E63: =C63-D63 -> 0
A64: Kelso/Beaver | B64: Port Westward II | C64: 44000 | D64: 17602 | E64: 26398
A65: Kelso/Beaver | B65: N. Mist Storage | C65: 61000 | D65: 0 | E65: 61000
A66: Kelso/Beaver | B66: Beaver Unit 8 | C66: 7326 | D66: 0 | E66: 7326
A67: Kelso/Beaver | B67: Beaver 1 - 6 | C67: 152400 | D67: 21000 | E67: 131400
A68: Mist Port Westward | B68: Port Westward | C68: 70000 | D68: 0 | E68: 70000
A69: Mist Port Westward II | B69: Port Westward II | C69: 70000 | D69: 0 | E69: 70000
A70: Mist Beaver | B70: Beaver | C70: 70000 | D70: 0 | E70: =C70-D70 -> 70000
A71: Gas Day: | E71: 2021-09-23
A72: Receipt Point | B72: Delivery Point | C72: Operating Capacity (DTHS) | D72: Schedule Volume (DTHS) | E72: Estimated Available Capacity
A73: Kelso/Beaver | B73: Port Westward | C73: 64000 | D73: 64000 | E73: =C73-D73 -> 0
A74: Kelso/Beaver | B74: Port Westward II | C74: 44000 | D74: 17602 | E74: 26398
A75: Kelso/Beaver | B75: N. Mist Storage | C75: 61000 | D75: 0 | E75: 61000
A76: Kelso/Beaver | B76: Beaver Unit 8 | C76: 7326 | D76: 0 | E76: 7326
A77: Kelso/Beaver | B77: Beaver 1 - 6 | C77: 152400 | D77: 21000 | E77: 131400
A78: Mist Port Westward | B78: Port Westward | C78: 70000 | D78: 0 | E78: 70000
A79: Mist Port Westward II | B79: Port Westward II | C79: 70000 | D79: 0 | E79: 70000
A80: Mist Beaver | B80: Beaver | C80: 70000 | D80: 0 | E80: =C80-D80 -> 70000
A81: Gas Day: | E81: 2021-09-22
A82: Receipt Point | B82: Delivery Point | C82: Operating Capacity (DTHS) | D82: Schedule Volume (DTHS) | E82: Estimated Available Capacity
A83: Kelso/Beaver | B83: Port Westward | C83: 64000 | D83: 64000 | E83: =C83-D83 -> 0
A84: Kelso/Beaver | B84: Port Westward II | C84: 44000 | D84: 28664 | E84: 15336
A85: Kelso/Beaver | B85: N. Mist Storage | C85: 61000 | D85: 30000 | E85: 31000
A86: Kelso/Beaver | B86: Beaver Unit 8 | C86: 7326 | D86: 0 | E86: 7326
A87: Kelso/Beaver | B87: Beaver 1 - 6 | C87: 152400 | D87: 0 | E87: 152400
A88: Mist Port Westward | B88: Port Westward | C88: 70000 | D88: 0 | E88: 70000
A89: Mist Port Westward II | B89: Port Westward II | C89: 70000 | D89: 0 | E89: 70000
A90: Mist Beaver | B90: Beaver | C90: 70000 | D90: 0 | E90: =C90-D90 -> 70000
A91: Gas Day: | E91: 2021-09-21
A92: Receipt Point | B92: Delivery Point | C92: Operating Capacity (DTHS) | D92: Schedule Volume (DTHS) | E92: Estimated Available Capacity
A93: Kelso/Beaver | B93: Port Westward | C93: 64000 | D93: 0 | E93: =C93-D93 -> 64000
A94: Kelso/Beaver | B94: Port Westward II | C94: 44000 | D94: 38665 | E94: 5335
A95: Kelso/Beaver | B95: N. Mist Storage | C95: 61000 | D95: 0 | E95: 61000
A96: Kelso/Beaver | B96: Beaver Unit 8 | C96: 7326 | D96: 0 | E96: 7326
A97: Kelso/Beaver | B97: Beaver 1 - 6 | C97: 152400 | D97: 64000 | E97: 88400
A98: Mist Port Westward | B98: Port Westward | C98: 70000 | D98: 0 | E98: 70000
A99: Mist Port Westward II | B99: Port Westward II | C99: 70000 | D99: 0 | E99: 70000
A100: Mist Beaver | B100: Beaver | C100: 70000 | D100: 0 | E100: =C100-D100 -> 70000
A101: Gas Day: | E101: 2021-09-20
A102: Receipt Point | B102: Delivery Point | C102: Operating Capacity (DTHS) | D102: Schedule Volume (DTHS) | E102: Estimated Available Capacity
A103: Kelso/Beaver | B103: Port Westward | C103: 64000 | D103: 64000 | E103: =C103-D103 -> 0
A104: Kelso/Beaver | B104: Port Westward II | C104: 44000 | D104: 38898 | E104: 5102
A105: Kelso/Beaver | B105: N. Mist Storage | C105: 61000 | D105: 0 | E105: 61000
A106: Kelso/Beaver | B106: Beaver Unit 8 | C106: 7326 | D106: 0 | E106: 7326
A107: Kelso/Beaver | B107: Beaver 1 - 6 | C107: 152400 | D107: 0 | E107: 152400
A108: Mist Port Westward | B108: Port Westward | C108: 70000 | D108: 0 | E108: 70000
A109: Mist Port Westward II | B109: Port Westward II | C109: 70000 | D109: 0 | E109: 70000
A110: Mist Beaver | B110: Beaver | C110: 70000 | D110: 0 | E110: =C110-D110 -> 70000
A111: Gas Day: | E111: 2021-09-19
A112: Receipt Point | B112: Delivery Point | C112: Operating Capacity (DTHS) | D112: Schedule Volume (DTHS) | E112: Estimated Available Capacity
A113: Kelso/Beaver | B113: Port Westward | C113: 64000 | D113: 64000 | E113: =C113-D113 -> 0
A114: Kelso/Beaver | B114: Port Westward II | C114: 44000 | D114: 38898 | E114: 5102
A115: Kelso/Beaver | B115: N. Mist Storage | C115: 61000 | D115: 0 | E115: 61000
A116: Kelso/Beaver | B116: Beaver Unit 8 | C116: 7326 | D116: 0 | E116: 7326
A117: Kelso/Beaver | B117: Beaver 1 - 6 | C117: 152400 | D117: 0 | E117: 152400
A118: Mist Port Westward | B118: Port Westward | C118: 70000 | D118: 0 | E118: 70000
A119: Mist Port Westward II | B119: Port Westward II | C119: 70000 | D119: 0 | E119: 70000
A120: Mist Beaver | B120: Beaver | C120: 70000 | D120: 0 | E120: =C120-D120 -> 70000
A121: Gas Day: | E121: 2021-09-18
A122: Receipt Point | B122: Delivery Point | C122: Operating Capacity (DTHS) | D122: Schedule Volume (DTHS) | E122: Estimated Available Capacity
A123: Kelso/Beaver | B123: Port Westward | C123: 64000 | D123: 64000 | E123: =C123-D123 -> 0
A124: Kelso/Beaver | B124: Port Westward II | C124: 44000 | D124: 38898 | E124: 5102
A125: Kelso/Beaver | B125: N. Mist Storage | C125: 61000 | D125: 0 | E125: 61000
A126: Kelso/Beaver | B126: Beaver Unit 8 | C126: 7326 | D126: 0 | E126: 7326
A127: Kelso/Beaver | B127: Beaver 1 - 6 | C127: 152400 | D127: 0 | E127: 152400
A128: Mist Port Westward | B128: Port Westward | C128: 70000 | D128: 0 | E128: 70000
A129: Mist Port Westward II | B129: Port Westward II | C129: 70000 | D129: 0 | E129: 70000
A130: Mist Beaver | B130: Beaver | C130: 70000 | D130: 0 | E130: =C130-D130 -> 70000
A131: Gas Day: | E131: 2021-09-17
A132: Receipt Point | B132: Delivery Point | C132: Operating Capacity (DTHS) | D132: Schedule Volume (DTHS) | E132: Estimated Available Capacity
A133: Kelso/Beaver | B133: Port Westward | C133: 64000 | D133: 64000 | E133: =C133-D133 -> 0
A134: Kelso/Beaver | B134: Port Westward II | C134: 44000 | D134: 38601 | E134: 5399
A135: Kelso/Beaver | B135: N. Mist Storage | C135: 61000 | D135: 0 | E135: 61000
A136: Kelso/Beaver | B136: Beaver Unit 8 | C136: 7326 | D136: 0 | E136: 7326
A137: Kelso/Beaver | B137: Beaver 1 - 6 | C137: 152400 | D137: 0 | E137: 152400
A138: Mist Port Westward | B138: Port Westward | C138: 70000 | D138: 0 | E138: 70000
A139: Mist Port Westward II | B139: Port Westward II | C139: 70000 | D139: 0 | E139: 70000
A140: Mist Beaver | B140: Beaver | C140: 70000 | D140: 0 | E140: =C140-D140 -> 70000
A141: Gas Day: | E141: 2021-09-16
A142: Receipt Point | B142: Delivery Point | C142: Operating Capacity (DTHS) | D142: Schedule Volume (DTHS) | E142: Estimated Available Capacity
A143: Kelso/Beaver | B143: Port Westward | C143: 64000 | D143: 64000 | E143: =C143-D143 -> 0
A144: Kelso/Beaver | B144: Port Westward II | C144: 44000 | D144: 38603 | E144: 5397
A145: Kelso/Beaver | B145: N. Mist Storage | C145: 61000 | D145: 0 | E145: 61000
A146: Kelso/Beaver | B146: Beaver Unit 8 | C146: 7326 | D146: 0 | E146: 7326
A147: Kelso/Beaver | B147: Beaver 1 - 6 | C147: 152400 | D147: 0 | E147: 152400
A148: Mist Port Westward | B148: Port Westward | C148: 70000 | D148: 0 | E148: 70000
A149: Mist Port Westward II | B149: Port Westward II | C149: 70000 | D149: 0 | E149: 70000
A150: Mist Beaver | B150: Beaver | C150: 70000 | D150: 0 | E150: =C150-D150 -> 70000
A151: Gas Day: | E151: 2021-09-15
A152: Receipt Point | B152: Delivery Point | C152: Operating Capacity (DTHS) | D152: Schedule Volume (DTHS) | E152: Estimated Available Capacity
A153: Kelso/Beaver | B153: Port Westward | C153: 64000 | D153: 0 | E153: =C153-D153 -> 64000
A154: Kelso/Beaver | B154: Port Westward II | C154: 44000 | D154: 28637 | E154: 15363
A155: Kelso/Beaver | B155: N. Mist Storage | C155: 61000 | D155: 40000 | E155: 21000
A156: Kelso/Beaver | B156: Beaver Unit 8 | C156: 7326 | D156: 0 | E156: 7326
A157: Kelso/Beaver | B157: Beaver 1 - 6 | C157: 152400 | D157: 34000 | E157: 118400
A158: Mist Port Westward | B158: Port Westward | C158: 70000 | D158: 0 | E158: 70000
A159: Mist Port Westward II | B159: Port Westward II | C159: 70000 | D159: 0 | E159: 70000
A160: Mist Beaver | B160: Beaver | C160: 70000 | D160: 0 | E160: =C160-D160 -> 70000
A161: Gas Day: | E161: 2021-09-14
A162: Receipt Point | B162: Delivery Point | C162: Operating Capacity (DTHS) | D162: Schedule Volume (DTHS) | E162: Estimated Available Capacity
A163: Kelso/Beaver | B163: Port Westward | C163: 64000 | D163: 0 | E163: =C163-D163 -> 64000
A164: Kelso/Beaver | B164: Port Westward II | C164: 44000 | D164: 38637 | E164: 5363
A165: Kelso/Beaver | B165: N. Mist Storage | C165: 61000 | D165: 0 | E165: 61000
A166: Kelso/Beaver | B166: Beaver Unit 8 | C166: 7326 | D166: 0 | E166: 7326
A167: Kelso/Beaver | B167: Beaver 1 - 6 | C167: 152400 | D167: 64000 | E167: 88400
A168: Mist Port Westward | B168: Port Westward | C168: 70000 | D168: 0 | E168: 70000
A169: Mist Port Westward II | B169: Port Westward II | C169: 70000 | D169: 0 | E169: 70000
A170: Mist Beaver | B170: Beaver | C170: 70000 | D170: 0 | E170: =C170-D170 -> 70000
A171: Gas Day: | E171: 2021-09-13
A172: Receipt Point | B172: Delivery Point | C172: Operating Capacity (DTHS) | D172: Schedule Volume (DTHS) | E172: Estimated Available Capacity
A173: Kelso/Beaver | B173: Port Westward | C173: 64000 | D173: 64000 | E173: =C173-D173 -> 0
A174: Kelso/Beaver | B174: Port Westward II | C174: 44000 | D174: 38663 | E174: 5337
A175: Kelso/Beaver | B175: N. Mist Storage | C175: 61000 | D175: 0 | E175: 61000
A176: Kelso/Beaver | B176: Beaver Unit 8 | C176: 7326 | D176: 0 | E176: 7326
A177: Kelso/Beaver | B177: Beaver 1 - 6 | C177: 152400 | D177: 0 | E177: 152400
A178: Mist Port Westward | B178: Port Westward | C178: 70000 | D178: 0 | E178: 70000
A179: Mist Port Westward II | B179: Port Westward II | C179: 70000 | D179: 0 | E179: 70000
A180: Mist Beaver | B180: Beaver | C180: 70000 | D180: 0 | E180: =C180-D180 -> 70000
A181: Gas Day: | E181: 2021-09-12
A182: Receipt Point | B182: Delivery Point | C182: Operating Capacity (DTHS) | D182: Schedule Volume (DTHS) | E182: Estimated Available Capacity
A183: Kelso/Beaver | B183: Port Westward | C183: 64000 | D183: 64000 | E183: =C183-D183 -> 0
A184: Kelso/Beaver | B184: Port Westward II | C184: 44000 | D184: 38663 | E184: 5337
A185: Kelso/Beaver | B185: N. Mist Storage | C185: 61000 | D185: 0 | E185: 61000
A186: Kelso/Beaver | B186: Beaver Unit 8 | C186: 7326 | D186: 0 | E186: 7326
A187: Kelso/Beaver | B187: Beaver 1 - 6 | C187: 152400 | D187: 0 | E187: 152400
A188: Mist Port Westward | B188: Port Westward | C188: 70000 | D188: 0 | E188: 70000
A189: Mist Port Westward II | B189: Port Westward II | C189: 70000 | D189: 0 | E189: 70000
A190: Mist Beaver | B190: Beaver | C190: 70000 | D190: 0 | E190: =C190-D190 -> 70000
A191: Gas Day: | E191: 2021-09-11
A192: Receipt Point | B192: Delivery Point | C192: Operating Capacity (DTHS) | D192: Schedule Volume (DTHS) | E192: Estimated Available Capacity
A193: Kelso/Beaver | B193: Port Westward | C193: 64000 | D193: 64000 | E193: =C193-D193 -> 0
A194: Kelso/Beaver | B194: Port Westward II | C194: 44000 | D194: 38663 | E194: 5337
A195: Kelso/Beaver | B195: N. Mist Storage | C195: 61000 | D195: 0 | E195: 61000
A196: Kelso/Beaver | B196: Beaver Unit 8 | C196: 7326 | D196: 0 | E196: 7326
A197: Kelso/Beaver | B197: Beaver 1 - 6 | C197: 152400 | D197: 0 | E197: 152400
A198: Mist Port Westward | B198: Port Westward | C198: 70000 | D198: 0 | E198: 70000
A199: Mist Port Westward II | B199: Port Westward II | C199: 70000 | D199: 0 | E199: 70000
A200: Mist Beaver | B200: Beaver | C200: 70000 | D200: 0 | E200: =C200-D200 -> 70000
... 100 more rows

Sheet October
A1: Gas Day: | E1: 2021-10-31
A2: Receipt Point | B2: Delivery Point | C2: Operating Capacity (DTHS) | D2: Schedule Volume (DTHS) | E2: Estimated Available Capacity
A3: Kelso/Beaver | B3: Port Westward | C3: 64000 | D3: 64000 | E3: =C3-D3 -> 0
A4: Kelso/Beaver | B4: Port Westward II | C4: 44000 | D4: 17679 | E4: 26321
A5: Kelso/Beaver | B5: N. Mist Storage | C5: 61000 | D5: 50000 | E5: 11000
A6: Kelso/Beaver | B6: Beaver Unit 8 | C6: 7326 | D6: 0 | E6: 7326
A7: Kelso/Beaver | B7: Beaver 1 - 6 | C7: 152400 | D7: 0 | E7: 152400
A8: Mist Port Westward | B8: Port Westward | C8: 70000 | D8: 0 | E8: 70000
A9: Mist Port Westward II | B9: Port Westward II | C9: 70000 | D9: 0 | E9: 70000
A10: Mist Beaver | B10: Beaver | C10: 70000 | D10: 0 | E10: =C10-D10 -> 70000
A11: Gas Day: | E11: 2021-10-30
A12: Receipt Point | B12: Delivery Point | C12: Operating Capacity (DTHS) | D12: Schedule Volume (DTHS) | E12: Estimated Available Capacity
A13: Kelso/Beaver | B13: Port Westward | C13: 64000 | D13: 64000 | E13: =C13-D13 -> 0
A14: Kelso/Beaver | B14: Port Westward II | C14: 44000 | D14: 17679 | E14: 26321
A15: Kelso/Beaver | B15: N. Mist Storage | C15: 61000 | D15: 50000 | E15: 11000
A16: Kelso/Beaver | B16: Beaver Unit 8 | C16: 7326 | D16: 0 | E16: 7326
A17: Kelso/Beaver | B17: Beaver 1 - 6 | C17: 152400 | D17: 0 | E17: 152400
A18: Mist Port Westward | B18: Port Westward | C18: 70000 | D18: 0 | E18: 70000
A19: Mist Port Westward II | B19: Port Westward II | C19: 70000 | D19: 0 | E19: 70000
A20: Mist Beaver | B20: Beaver | C20: 70000 | D20: 0 | E20: =C20-D20 -> 70000
A21: Gas Day: | E21: 2021-10-29
A22: Receipt Point | B22: Delivery Point | C22: Operating Capacity (DTHS) | D22: Schedule Volume (DTHS) | E22: Estimated Available Capacity
A23: Kelso/Beaver | B23: Port Westward | C23: 64000 | D23: 64000 | E23: =C23-D23 -> 0
A24: Kelso/Beaver | B24: Port Westward II | C24: 44000 | D24: 27679 | E24: 16321
A25: Kelso/Beaver | B25: N. Mist Storage | C25: 61000 | D25: 0 | E25: 61000
A26: Kelso/Beaver | B26: Beaver Unit 8 | C26: 7326 | D26: 0 | E26: 7326
A27: Kelso/Beaver | B27: Beaver 1 - 6 | C27: 152400 | D27: 40000 | E27: 112400
A28: Mist Port Westward | B28: Port Westward | C28: 70000 | D28: 0 | E28: 70000
A29: Mist Port Westward II | B29: Port Westward II | C29: 70000 | D29: 0 | E29: 70000
A30: Mist Beaver | B30: Beaver | C30: 70000 | D30: 0 | E30: =C30-D30 -> 70000
A31: Gas Day: | E31: 2021-10-28
A32: Receipt Point | B32: Delivery Point | C32: Operating Capacity (DTHS) | D32: Schedule Volume (DTHS) | E32: Estimated Available Capacity
A33: Kelso/Beaver | B33: Port Westward | C33: 64000 | D33: 64000 | E33: =C33-D33 -> 0
A34: Kelso/Beaver | B34: Port Westward II | C34: 44000 | D34: 20157 | E34: 23843
A35: Kelso/Beaver | B35: N. Mist Storage | C35: 61000 | D35: 0 | E35: 61000
A36: Kelso/Beaver | B36: Beaver Unit 8 | C36: 7326 | D36: 0 | E36: 7326
A37: Kelso/Beaver | B37: Beaver 1 - 6 | C37: 152400 | D37: 30000 | E37: 122400
A38: Mist Port Westward | B38: Port Westward | C38: 70000 | D38: 0 | E38: 70000
A39: Mist Port Westward II | B39: Port Westward II | C39: 70000 | D39: 0 | E39: 70000
A40: Mist Beaver | B40: Beaver | C40: 70000 | D40: 0 | E40: =C40-D40 -> 70000
A41: Gas Day: | E41: 2021-10-27
A42: Receipt Point | B42: Delivery Point | C42: Operating Capacity (DTHS) | D42: Schedule Volume (DTHS) | E42: Estimated Available Capacity
A43: Kelso/Beaver | B43: Port Westward | C43: 64000 | D43: 64000 | E43: =C43-D43 -> 0
A44: Kelso/Beaver | B44: Port Westward II | C44: 44000 | D44: 27885 | E44: 16115
A45: Kelso/Beaver | B45: N. Mist Storage | C45: 61000 | D45: 0 | E45: 61000
A46: Kelso/Beaver | B46: Beaver Unit 8 | C46: 7326 | D46: 0 | E46: 7326
A47: Kelso/Beaver | B47: Beaver 1 - 6 | C47: 152400 | D47: 50000 | E47: 102400
A48: Mist Port Westward | B48: Port Westward | C48: 70000 | D48: 0 | E48: 70000
A49: Mist Port Westward II | B49: Port Westward II | C49: 70000 | D49: 0 | E49: 70000
A50: Mist Beaver | B50: Beaver | C50: 70000 | D50: 0 | E50: =C50-D50 -> 70000
A51: Gas Day: | E51: 2021-10-26
A52: Receipt Point | B52: Delivery Point | C52: Operating Capacity (DTHS) | D52: Schedule Volume (DTHS) | E52: Estimated Available Capacity
A53: Kelso/Beaver | B53: Port Westward | C53: 64000 | D53: 62500 | E53: =C53-D53 -> 1500
A54: Kelso/Beaver | B54: Port Westward II | C54: 44000 | D54: 14385 | E54: 29615
A55: Kelso/Beaver | B55: N. Mist Storage | C55: 61000 | D55: 55000 | E55: 6000
A56: Kelso/Beaver | B56: Beaver Unit 8 | C56: 7326 | D56: 0 | E56: 7326
A57: Kelso/Beaver | B57: Beaver 1 - 6 | C57: 152400 | D57: 0 | E57: 152400
A58: Mist Port Westward | B58: Port Westward | C58: 70000 | D58: 0 | E58: 70000
A59: Mist Port Westward II | B59: Port Westward II | C59: 70000 | D59: 0 | E59: 70000
A60: Mist Beaver | B60: Beaver | C60: 70000 | D60: 0 | E60: =C60-D60 -> 70000
A61: Gas Day: | E61: 2021-10-25
A62: Receipt Point | B62: Delivery Point | C62: Operating Capacity (DTHS) | D62: Schedule Volume (DTHS) | E62: Estimated Available Capacity
A63: Kelso/Beaver | B63: Port Westward | C63: 64000 | D63: 62500 | E63: =C63-D63 -> 1500
A64: Kelso/Beaver | B64: Port Westward II | C64: 44000 | D64: 35530 | E64: 8470
A65: Kelso/Beaver | B65: N. Mist Storage | C65: 61000 | D65: 60000 | E65: 1000
A66: Kelso/Beaver | B66: Beaver Unit 8 | C66: 7326 | D66: 0 | E66: 7326
A67: Kelso/Beaver | B67: Beaver 1 - 6 | C67: 152400 | D67: 0 | E67: 152400
A68: Mist Port Westward | B68: Port Westward | C68: 70000 | D68: 0 | E68: 70000
A69: Mist Port Westward II | B69: Port Westward II | C69: 70000 | D69: 0 | E69: 70000
A70: Mist Beaver | B70: Beaver | C70: 70000 | D70: 0 | E70: =C70-D70 -> 70000
A71: Gas Day: | E71: 2021-10-24
A72: Receipt Point | B72: Delivery Point | C72: Operating Capacity (DTHS) | D72: Schedule Volume (DTHS) | E72: Estimated Available Capacity
A73: Kelso/Beaver | B73: Port Westward | C73: 64000 | D73: 62500 | E73: =C73-D73 -> 1500
A74: Kelso/Beaver | B74: Port Westward II | C74: 44000 | D74: 35530 | E74: 8470
A75: Kelso/Beaver | B75: N. Mist Storage | C75: 61000 | D75: 60000 | E75: 1000
A76: Kelso/Beaver | B76: Beaver Unit 8 | C76: 7326 | D76: 0 | E76: 7326
A77: Kelso/Beaver | B77: Beaver 1 - 6 | C77: 152400 | D77: 0 | E77: 152400
A78: Mist Port Westward | B78: Port Westward | C78: 70000 | D78: 0 | E78: 70000
A79: Mist Port Westward II | B79: Port Westward II | C79: 70000 | D79: 0 | E79: 70000
A80: Mist Beaver | B80: Beaver | C80: 70000 | D80: 0 | E80: =C80-D80 -> 70000
A81: Gas Day: | E81: 2021-10-23
A82: Receipt Point | B82: Delivery Point | C82: Operating Capacity (DTHS) | D82: Schedule Volume (DTHS) | E82: Estimated Available Capacity
A83: Kelso/Beaver | B83: Port Westward | C83: 64000 | D83: 62500 | E83: =C83-D83 -> 1500
A84: Kelso/Beaver | B84: Port Westward II | C84: 44000 | D84: 35530 | E84: 8470
A85: Kelso/Beaver | B85: N. Mist Storage | C85: 61000 | D85: 60000 | E85: 1000
A86: Kelso/Beaver | B86: Beaver Unit 8 | C86: 7326 | D86: 0 | E86: 7326
A87: Kelso/Beaver | B87: Beaver 1 - 6 | C87: 152400 | D87: 0 | E87: 152400
A88: Mist Port Westward | B88: Port Westward | C88: 70000 | D88: 0 | E88: 70000
A89: Mist Port Westward II | B89: Port Westward II | C89: 70000 | D89: 0 | E89: 70000
A90: Mist Beaver | B90: Beaver | C90: 70000 | D90: 0 | E90: =C90-D90 -> 70000
A91: Gas Day: | E91: 2021-10-22
A92: Receipt Point | B92: Delivery Point | C92: Operating Capacity (DTHS) | D92: Schedule Volume (DTHS) | E92: Estimated Available Capacity
A93: Kelso/Beaver | B93: Port Westward | C93: 64000 | D93: 0 | E93: =C93-D93 -> 64000
A94: Kelso/Beaver | B94: Port Westward II | C94: 44000 | D94: 31888 | E94: 12112
A95: Kelso/Beaver | B95: N. Mist Storage | C95: 61000 | D95: 60000 | E95: 1000
A96: Kelso/Beaver | B96: Beaver Unit 8 | C96: 7326 | D96: 0 | E96: 7326
A97: Kelso/Beaver | B97: Beaver 1 - 6 | C97: 152400 | D97: 50000 | E97: 102400
A98: Mist Port Westward | B98: Port Westward | C98: 70000 | D98: 0 | E98: 70000
A99: Mist Port Westward II | B99: Port Westward II | C99: 70000 | D99: 0 | E99: 70000
A100: Mist Beaver | B100: Beaver | C100: 70000 | D100: 0 | E100: =C100-D100 -> 70000
A101: Gas Day: | E101: 2021-10-21
A102: Receipt Point | B102: Delivery Point | C102: Operating Capacity (DTHS) | D102: Schedule Volume (DTHS) | E102: Estimated Available Capacity
A103: Kelso/Beaver | B103: Port Westward | C103: 64000 | D103: 0 | E103: =C103-D103 -> 64000
A104: Kelso/Beaver | B104: Port Westward II | C104: 44000 | D104: 26917 | E104: 17083
A105: Kelso/Beaver | B105: N. Mist Storage | C105: 61000 | D105: 60000 | E105: 1000
A106: Kelso/Beaver | B106: Beaver Unit 8 | C106: 7326 | D106: 0 | E106: 7326
A107: Kelso/Beaver | B107: Beaver 1 - 6 | C107: 152400 | D107: 40000 | E107: 112400
A108: Mist Port Westward | B108: Port Westward | C108: 70000 | D108: 0 | E108: 70000
A109: Mist Port Westward II | B109: Port Westward II | C109: 70000 | D109: 0 | E109: 70000
A110: Mist Beaver | B110: Beaver | C110: 70000 | D110: 0 | E110: =C110-D110 -> 70000
A111: Gas Day: | E111: 2021-10-20
A112: Receipt Point | B112: Delivery Point | C112: Operating Capacity (DTHS) | D112: Schedule Volume (DTHS) | E112: Estimated Available Capacity
A113: Kelso/Beaver | B113: Port Westward | C113: 64000 | D113: 0 | E113: =C113-D113 -> 64000
A114: Kelso/Beaver | B114: Port Westward II | C114: 44000 | D114: 17445 | E114: 26555
A115: Kelso/Beaver | B115: N. Mist Storage | C115: 61000 | D115: 60000 | E115: 1000
A116: Kelso/Beaver | B116: Beaver Unit 8 | C116: 7326 | D116: 0 | E116: 7326
A117: Kelso/Beaver | B117: Beaver 1 - 6 | C117: 152400 | D117: 25000 | E117: 127400
A118: Mist Port Westward | B118: Port Westward | C118: 70000 | D118: 0 | E118: 70000
A119: Mist Port Westward II | B119: Port Westward II | C119: 70000 | D119: 0 | E119: 70000
A120: Mist Beaver | B120: Beaver | C120: 70000 | D120: 0 | E120: =C120-D120 -> 70000
A121: Gas Day: | E121: 2021-10-19
A122: Receipt Point | B122: Delivery Point | C122: Operating Capacity (DTHS) | D122: Schedule Volume (DTHS) | E122: Estimated Available Capacity
A123: Kelso/Beaver | B123: Port Westward | C123: 64000 | D123: 62500 | E123: =C123-D123 -> 1500
A124: Kelso/Beaver | B124: Port Westward II | C124: 44000 | D124: 24385 | E124: 19615
A125: Kelso/Beaver | B125: N. Mist Storage | C125: 61000 | D125: 60000 | E125: 1000
A126: Kelso/Beaver | B126: Beaver Unit 8 | C126: 7326 | D126: 0 | E126: 7326
A127: Kelso/Beaver | B127: Beaver 1 - 6 | C127: 152400 | D127: 0 | E127: 152400
A128: Mist Port Westward | B128: Port Westward | C128: 70000 | D128: 0 | E128: 70000
A129: Mist Port Westward II | B129: Port Westward II | C129: 70000 | D129: 0 | E129: 70000
A130: Mist Beaver | B130: Beaver | C130: 70000 | D130: 0 | E130: =C130-D130 -> 70000
A131: Gas Day: | E131: 2021-10-18
A132: Receipt Point | B132: Delivery Point | C132: Operating Capacity (DTHS) | D132: Schedule Volume (DTHS) | E132: Estimated Available Capacity
A133: Kelso/Beaver | B133: Port Westward | C133: 64000 | D133: 64000 | E133: =C133-D133 -> 0
A134: Kelso/Beaver | B134: Port Westward II | C134: 44000 | D134: 17884 | E134: 26116
A135: Kelso/Beaver | B135: N. Mist Storage | C135: 61000 | D135: 50000 | E135: 11000
A136: Kelso/Beaver | B136: Beaver Unit 8 | C136: 7326 | D136: 0 | E136: 7326
A137: Kelso/Beaver | B137: Beaver 1 - 6 | C137: 152400 | D137: 0 | E137: 152400
A138: Mist Port Westward | B138: Port Westward | C138: 70000 | D138: 0 | E138: 70000
A139: Mist Port Westward II | B139: Port Westward II | C139: 70000 | D139: 0 | E139: 70000
A140: Mist Beaver | B140: Beaver | C140: 70000 | D140: 0 | E140: =C140-D140 -> 70000
A141: Gas Day: | E141: 2021-10-17
A142: Receipt Point | B142: Delivery Point | C142: Operating Capacity (DTHS) | D142: Schedule Volume (DTHS) | E142: Estimated Available Capacity
A143: Kelso/Beaver | B143: Port Westward | C143: 64000 | D143: 64000 | E143: =C143-D143 -> 0
A144: Kelso/Beaver | B144: Port Westward II | C144: 44000 | D144: 17884 | E144: 26116
A145: Kelso/Beaver | B145: N. Mist Storage | C145: 61000 | D145: 50000 | E145: 11000
A146: Kelso/Beaver | B146: Beaver Unit 8 | C146: 7326 | D146: 0 | E146: 7326
A147: Kelso/Beaver | B147: Beaver 1 - 6 | C147: 152400 | D147: 0 | E147: 152400
A148: Mist Port Westward | B148: Port Westward | C148: 70000 | D148: 0 | E148: 70000
A149: Mist Port Westward II | B149: Port Westward II | C149: 70000 | D149: 0 | E149: 70000
A150: Mist Beaver | B150: Beaver | C150: 70000 | D150: 0 | E150: =C150-D150 -> 70000
A151: Gas Day: | E151: 2021-10-16
A152: Receipt Point | B152: Delivery Point | C152: Operating Capacity (DTHS) | D152: Schedule Volume (DTHS) | E152: Estimated Available Capacity
A153: Kelso/Beaver | B153: Port Westward | C153: 64000 | D153: 64000 | E153: =C153-D153 -> 0
A154: Kelso/Beaver | B154: Port Westward II | C154: 44000 | D154: 17884 | E154: 26116
A155: Kelso/Beaver | B155: N. Mist Storage | C155: 61000 | D155: 50000 | E155: 11000
A156: Kelso/Beaver | B156: Beaver Unit 8 | C156: 7326 | D156: 0 | E156: 7326
A157: Kelso/Beaver | B157: Beaver 1 - 6 | C157: 152400 | D157: 0 | E157: 152400
A158: Mist Port Westward | B158: Port Westward | C158: 70000 | D158: 0 | E158: 70000
A159: Mist Port Westward II | B159: Port Westward II | C159: 70000 | D159: 0 | E159: 70000
A160: Mist Beaver | B160: Beaver | C160: 70000 | D160: 0 | E160: =C160-D160 -> 70000
A161: Gas Day: | E161: 2021-10-15
A162: Receipt Point | B162: Delivery Point | C162: Operating Capacity (DTHS) | D162: Schedule Volume (DTHS) | E162: Estimated Available Capacity
A163: Kelso/Beaver | B163: Port Westward | C163: 64000 | D163: 64000 | E163: =C163-D163 -> 0
A164: Kelso/Beaver | B164: Port Westward II | C164: 44000 | D164: 19053 | E164: 24947
A165: Kelso/Beaver | B165: N. Mist Storage | C165: 61000 | D165: 45000 | E165: 16000
A166: Kelso/Beaver | B166: Beaver Unit 8 | C166: 7326 | D166: 0 | E166: 7326
A167: Kelso/Beaver | B167: Beaver 1 - 6 | C167: 152400 | D167: 0 | E167: 152400
A168: Mist Port Westward | B168: Port Westward | C168: 70000 | D168: 0 | E168: 70000
A169: Mist Port Westward II | B169: Port Westward II | C169: 70000 | D169: 0 | E169: 70000
A170: Mist Beaver | B170: Beaver | C170: 70000 | D170: 0 | E170: =C170-D170 -> 70000
A171: Gas Day: | E171: 2021-10-14
A172: Receipt Point | B172: Delivery Point | C172: Operating Capacity (DTHS) | D172: Schedule Volume (DTHS) | E172: Estimated Available Capacity
A173: Kelso/Beaver | B173: Port Westward | C173: 64000 | D173: 64000 | E173: =C173-D173 -> 0
A174: Kelso/Beaver | B174: Port Westward II | C174: 44000 | D174: 22911 | E174: 21089
A175: Kelso/Beaver | B175: N. Mist Storage | C175: 61000 | D175: 45000 | E175: 16000
A176: Kelso/Beaver | B176: Beaver Unit 8 | C176: 7326 | D176: 0 | E176: 7326
A177: Kelso/Beaver | B177: Beaver 1 - 6 | C177: 152400 | D177: 0 | E177: 152400
A178: Mist Port Westward | B178: Port Westward | C178: 70000 | D178: 0 | E178: 70000
A179: Mist Port Westward II | B179: Port Westward II | C179: 70000 | D179: 0 | E179: 70000
A180: Mist Beaver | B180: Beaver | C180: 70000 | D180: 0 | E180: =C180-D180 -> 70000
A181: Gas Day: | E181: 2021-10-13
A182: Receipt Point | B182: Delivery Point | C182: Operating Capacity (DTHS) | D182: Schedule Volume (DTHS) | E182: Estimated Available Capacity
A183: Kelso/Beaver | B183: Port Westward | C183: 64000 | D183: 64000 | E183: =C183-D183 -> 0
A184: Kelso/Beaver | B184: Port Westward II | C184: 44000 | D184: 17921 | E184: 26079
A185: Kelso/Beaver | B185: N. Mist Storage | C185: 61000 | D185: 50000 | E185: 11000
A186: Kelso/Beaver | B186: Beaver Unit 8 | C186: 7326 | D186: 0 | E186: 7326
A187: Kelso/Beaver | B187: Beaver 1 - 6 | C187: 152400 | D187: 0 | E187: 152400
A188: Mist Port Westward | B188: Port Westward | C188: 70000 | D188: 0 | E188: 70000
A189: Mist Port Westward II | B189: Port Westward II | C189: 70000 | D189: 0 | E189: 70000
A190: Mist Beaver | B190: Beaver | C190: 70000 | D190: 0 | E190: =C190-D190 -> 70000
A191: Gas Day: | E191: 2021-10-12
A192: Receipt Point | B192: Delivery Point | C192: Operating Capacity (DTHS) | D192: Schedule Volume (DTHS) | E192: Estimated Available Capacity
A193: Kelso/Beaver | B193: Port Westward | C193: 64000 | D193: 64000 | E193: =C193-D193 -> 0
A194: Kelso/Beaver | B194: Port Westward II | C194: 44000 | D194: 17850 | E194: 26150
A195: Kelso/Beaver | B195: N. Mist Storage | C195: 61000 | D195: 50000 | E195: 11000
A196: Kelso/Beaver | B196: Beaver Unit 8 | C196: 7326 | D196: 0 | E196: 7326
A197: Kelso/Beaver | B197: Beaver 1 - 6 | C197: 152400 | D197: 0 | E197: 152400
A198: Mist Port Westward | B198: Port Westward | C198: 70000 | D198: 0 | E198: 70000
A199: Mist Port Westward II | B199: Port Westward II | C199: 70000 | D199: 0 | E199: 70000
A200: Mist Beaver | B200: Beaver | C200: 70000 | D200: 0 | E200: =C200-D200 -> 70000
... 110 more rows

Sheet November
A1: Gas Day: | E1: 2021-11-30
A2: Receipt Point | B2: Delivery Point | C2: Operating Capacity (DTHS) | D2: Schedule Volume (DTHS) | E2: Estimated Available Capacity
A3: Kelso/Beaver | B3: Port Westward | C3: 64000 | D3: 50160 | E3: =C3-D3 -> 13840
A4: Kelso/Beaver | B4: Port Westward II | C4: 44000 | D4: 0 | E4: 44000
A5: Kelso/Beaver | B5: N. Mist Storage | C5: 61000 | D5: 0 | E5: 61000
A6: Kelso/Beaver | B6: Beaver Unit 8 | C6: 7326 | D6: 0 | E6: 7326
A7: Kelso/Beaver | B7: Beaver 1 - 6 | C7: 152400 | D7: 0 | E7: 152400
A8: Mist Port Westward | B8: Port Westward | C8: 70000 | D8: 0 | E8: 70000
A9: Mist Port Westward II | B9: Port Westward II | C9: 70000 | D9: 0 | E9: 70000
A10: Mist Beaver | B10: Beaver | C10: 70000 | D10: 0 | E10: =C10-D10 -> 70000
A11: Gas Day: | E11: 2021-11-29
A12: Receipt Point | B12: Delivery Point | C12: Operating Capacity (DTHS) | D12: Schedule Volume (DTHS) | E12: Estimated Available Capacity
A13: Kelso/Beaver | B13: Port Westward | C13: 64000 | D13: 62000 | E13: =C13-D13 -> 2000
A14: Kelso/Beaver | B14: Port Westward II | C14: 44000 | D14: 5506 | E14: 38494
A15: Kelso/Beaver | B15: N. Mist Storage | C15: 61000 | D15: 0 | E15: 61000
A16: Kelso/Beaver | B16: Beaver Unit 8 | C16: 7326 | D16: 0 | E16: 7326
A17: Kelso/Beaver | B17: Beaver 1 - 6 | C17: 152400 | D17: 0 | E17: 152400
A18: Mist Port Westward | B18: Port Westward | C18: 70000 | D18: 0 | E18: 70000
A19: Mist Port Westward II | B19: Port Westward II | C19: 70000 | D19: 0 | E19: 70000
A20: Mist Beaver | B20: Beaver | C20: 70000 | D20: 0 | E20: =C20-D20 -> 70000
A21: Gas Day: | E21: 2021-11-28
A22: Receipt Point | B22: Delivery Point | C22: Operating Capacity (DTHS) | D22: Schedule Volume (DTHS) | E22: Estimated Available Capacity
A23: Kelso/Beaver | B23: Port Westward | C23: 64000 | D23: 62000 | E23: =C23-D23 -> 2000
A24: Kelso/Beaver | B24: Port Westward II | C24: 44000 | D24: 5506 | E24: 38494
A25: Kelso/Beaver | B25: N. Mist Storage | C25: 61000 | D25: 0 | E25: 61000
A26: Kelso/Beaver | B26: Beaver Unit 8 | C26: 7326 | D26: 0 | E26: 7326
A27: Kelso/Beaver | B27: Beaver 1 - 6 | C27: 152400 | D27: 0 | E27: 152400
A28: Mist Port Westward | B28: Port Westward | C28: 70000 | D28: 0 | E28: 70000
A29: Mist Port Westward II | B29: Port Westward II | C29: 70000 | D29: 0 | E29: 70000
A30: Mist Beaver | B30: Beaver | C30: 70000 | D30: 0 | E30: =C30-D30 -> 70000
A31: Gas Day: | E31: 2021-11-27
A32: Receipt Point | B32: Delivery Point | C32: Operating Capacity (DTHS) | D32: Schedule Volume (DTHS) | E32: Estimated Available Capacity
A33: Kelso/Beaver | B33: Port Westward | C33: 64000 | D33: 62000 | E33: =C33-D33 -> 2000
A34: Kelso/Beaver | B34: Port Westward II | C34: 44000 | D34: 5506 | E34: 38494
A35: Kelso/Beaver | B35: N. Mist Storage | C35: 61000 | D35: 0 | E35: 61000
A36: Kelso/Beaver | B36: Beaver Unit 8 | C36: 7326 | D36: 0 | E36: 7326
A37: Kelso/Beaver | B37: Beaver 1 - 6 | C37: 152400 | D37: 0 | E37: 152400
A38: Mist Port Westward | B38: Port Westward | C38: 70000 | D38: 0 | E38: 70000
A39: Mist Port Westward II | B39: Port Westward II | C39: 70000 | D39: 0 | E39: 70000
A40: Mist Beaver | B40: Beaver | C40: 70000 | D40: 0 | E40: =C40-D40 -> 70000
A41: Gas Day: | E41: 2021-11-26
A42: Receipt Point | B42: Delivery Point | C42: Operating Capacity (DTHS) | D42: Schedule Volume (DTHS) | E42: Estimated Available Capacity
A43: Kelso/Beaver | B43: Port Westward | C43: 64000 | D43: 62000 | E43: =C43-D43 -> 2000
A44: Kelso/Beaver | B44: Port Westward II | C44: 44000 | D44: 5506 | E44: 38494
A45: Kelso/Beaver | B45: N. Mist Storage | C45: 61000 | D45: 0 | E45: 61000
A46: Kelso/Beaver | B46: Beaver Unit 8 | C46: 7326 | D46: 0 | E46: 7326
A47: Kelso/Beaver | B47: Beaver 1 - 6 | C47: 152400 | D47: 0 | E47: 152400
A48: Mist Port Westward | B48: Port Westward | C48: 70000 | D48: 0 | E48: 70000
A49: Mist Port Westward II | B49: Port Westward II | C49: 70000 | D49: 0 | E49: 70000
A50: Mist Beaver | B50: Beaver | C50: 70000 | D50: 0 | E50: =C50-D50 -> 70000
A51: Gas Day: | E51: 2021-11-25
A52: Receipt Point | B52: Delivery Point | C52: Operating Capacity (DTHS) | D52: Schedule Volume (DTHS) | E52: Estimated Available Capacity
A53: Kelso/Beaver | B53: Port Westward | C53: 64000 | D53: 62000 | E53: =C53-D53 -> 2000
A54: Kelso/Beaver | B54: Port Westward II | C54: 44000 | D54: 5506 | E54: 38494
A55: Kelso/Beaver | B55: N. Mist Storage | C55: 61000 | D55: 0 | E55: 61000
A56: Kelso/Beaver | B56: Beaver Unit 8 | C56: 7326 | D56: 0 | E56: 7326
A57: Kelso/Beaver | B57: Beaver 1 - 6 | C57: 152400 | D57: 0 | E57: 152400
A58: Mist Port Westward | B58: Port Westward | C58: 70000 | D58: 0 | E58: 70000
A59: Mist Port Westward II | B59: Port Westward II | C59: 70000 | D59: 0 | E59: 70000
A60: Mist Beaver | B60: Beaver | C60: 70000 | D60: 0 | E60: =C60-D60 -> 70000
A61: Gas Day: | E61: 2021-11-24
A62: Receipt Point | B62: Delivery Point | C62: Operating Capacity (DTHS) | D62: Schedule Volume (DTHS) | E62: Estimated Available Capacity
A63: Kelso/Beaver | B63: Port Westward | C63: 64000 | D63: 62000 | E63: =C63-D63 -> 2000
A64: Kelso/Beaver | B64: Port Westward II | C64: 44000 | D64: 3126 | E64: 40874
A65: Kelso/Beaver | B65: N. Mist Storage | C65: 61000 | D65: 0 | E65: 61000
A66: Kelso/Beaver | B66: Beaver Unit 8 | C66: 7326 | D66: 0 | E66: 7326
A67: Kelso/Beaver | B67: Beaver 1 - 6 | C67: 152400 | D67: 0 | E67: 152400
A68: Mist Port Westward | B68: Port Westward | C68: 70000 | D68: 0 | E68: 70000
A69: Mist Port Westward II | B69: Port Westward II | C69: 70000 | D69: 0 | E69: 70000
A70: Mist Beaver | B70: Beaver | C70: 70000 | D70: 0 | E70: =C70-D70 -> 70000
A71: Gas Day: | E71: 2021-11-23
A72: Receipt Point | B72: Delivery Point | C72: Operating Capacity (DTHS) | D72: Schedule Volume (DTHS) | E72: Estimated Available Capacity
A73: Kelso/Beaver | B73: Port Westward | C73: 64000 | D73: 63000 | E73: =C73-D73 -> 1000
A74: Kelso/Beaver | B74: Port Westward II | C74: 44000 | D74: 2015 | E74: 41985
A75: Kelso/Beaver | B75: N. Mist Storage | C75: 61000 | D75: 0 | E75: 61000
A76: Kelso/Beaver | B76: Beaver Unit 8 | C76: 7326 | D76: 0 | E76: 7326
A77: Kelso/Beaver | B77: Beaver 1 - 6 | C77: 152400 | D77: 0 | E77: 152400
A78: Mist Port Westward | B78: Port Westward | C78: 70000 | D78: 0 | E78: 70000
A79: Mist Port Westward II | B79: Port Westward II | C79: 70000 | D79: 0 | E79: 70000
A80: Mist Beaver | B80: Beaver | C80: 70000 | D80: 0 | E80: =C80-D80 -> 70000
A81: Gas Day: | E81: 2021-11-22
A82: Receipt Point | B82: Delivery Point | C82: Operating Capacity (DTHS) | D82: Schedule Volume (DTHS) | E82: Estimated Available Capacity
A83: Kelso/Beaver | B83: Port Westward | C83: 64000 | D83: 60000 | E83: =C83-D83 -> 4000
A84: Kelso/Beaver | B84: Port Westward II | C84: 44000 | D84: 16846 | E84: 27154
A85: Kelso/Beaver | B85: N. Mist Storage | C85: 61000 | D85: 0 | E85: 61000
A86: Kelso/Beaver | B86: Beaver Unit 8 | C86: 7326 | D86: 0 | E86: 7326
A87: Kelso/Beaver | B87: Beaver 1 - 6 | C87: 152400 | D87: 0 | E87: 152400
A88: Mist Port Westward | B88: Port Westward | C88: 70000 | D88: 0 | E88: 70000
A89: Mist Port Westward II | B89: Port Westward II | C89: 70000 | D89: 0 | E89: 70000
A90: Mist Beaver | B90: Beaver | C90: 70000 | D90: 0 | E90: =C90-D90 -> 70000
A91: Gas Day: | E91: 2021-11-21
A92: Receipt Point | B92: Delivery Point | C92: Operating Capacity (DTHS) | D92: Schedule Volume (DTHS) | E92: Estimated Available Capacity
A93: Kelso/Beaver | B93: Port Westward | C93: 64000 | D93: 60000 | E93: =C93-D93 -> 4000
A94: Kelso/Beaver | B94: Port Westward II | C94: 44000 | D94: 16846 | E94: 27154
A95: Kelso/Beaver | B95: N. Mist Storage | C95: 61000 | D95: 0 | E95: 61000
A96: Kelso/Beaver | B96: Beaver Unit 8 | C96: 7326 | D96: 0 | E96: 7326
A97: Kelso/Beaver | B97: Beaver 1 - 6 | C97: 152400 | D97: 0 | E97: 152400
A98: Mist Port Westward | B98: Port Westward | C98: 70000 | D98: 0 | E98: 70000
A99: Mist Port Westward II | B99: Port Westward II | C99: 70000 | D99: 0 | E99: 70000
A100: Mist Beaver | B100: Beaver | C100: 70000 | D100: 0 | E100: =C100-D100 -> 70000
A101: Gas Day: | E101: 2021-11-20
A102: Receipt Point | B102: Delivery Point | C102: Operating Capacity (DTHS) | D102: Schedule Volume (DTHS) | E102: Estimated Available Capacity
A103: Kelso/Beaver | B103: Port Westward | C103: 64000 | D103: 63000 | E103: =C103-D103 -> 1000
A104: Kelso/Beaver | B104: Port Westward II | C104: 44000 | D104: 1846 | E104: 42154
A105: Kelso/Beaver | B105: N. Mist Storage | C105: 61000 | D105: 15000 | E105: 46000
A106: Kelso/Beaver | B106: Beaver Unit 8 | C106: 7326 | D106: 0 | E106: 7326
A107: Kelso/Beaver | B107: Beaver 1 - 6 | C107: 152400 | D107: 0 | E107: 152400
A108: Mist Port Westward | B108: Port Westward | C108: 70000 | D108: 0 | E108: 70000
A109: Mist Port Westward II | B109: Port Westward II | C109: 70000 | D109: 0 | E109: 70000
A110: Mist Beaver | B110: Beaver | C110: 70000 | D110: 0 | E110: =C110-D110 -> 70000
A111: Gas Day: | E111: 2021-11-19
A112: Receipt Point | B112: Delivery Point | C112: Operating Capacity (DTHS) | D112: Schedule Volume (DTHS) | E112: Estimated Available Capacity
A113: Kelso/Beaver | B113: Port Westward | C113: 64000 | D113: 60000 | E113: =C113-D113 -> 4000
A114: Kelso/Beaver | B114: Port Westward II | C114: 44000 | D114: 4865 | E114: 39135
A115: Kelso/Beaver | B115: N. Mist Storage | C115: 61000 | D115: 0 | E115: 61000
A116: Kelso/Beaver | B116: Beaver Unit 8 | C116: 7326 | D116: 0 | E116: 7326
A117: Kelso/Beaver | B117: Beaver 1 - 6 | C117: 152400 | D117: 0 | E117: 152400
A118: Mist Port Westward | B118: Port Westward | C118: 70000 | D118: 0 | E118: 70000
A119: Mist Port Westward II | B119: Port Westward II | C119: 70000 | D119: 0 | E119: 70000
A120: Mist Beaver | B120: Beaver | C120: 70000 | D120: 0 | E120: =C120-D120 -> 70000
A121: Gas Day: | E121: 2021-11-18
A122: Receipt Point | B122: Delivery Point | C122: Operating Capacity (DTHS) | D122: Schedule Volume (DTHS) | E122: Estimated Available Capacity
A123: Kelso/Beaver | B123: Port Westward | C123: 64000 | D123: 64000 | E123: =C123-D123 -> 0
A124: Kelso/Beaver | B124: Port Westward II | C124: 44000 | D124: 15802 | E124: 28198
A125: Kelso/Beaver | B125: N. Mist Storage | C125: 61000 | D125: 0 | E125: 61000
A126: Kelso/Beaver | B126: Beaver Unit 8 | C126: 7326 | D126: 0 | E126: 7326
A127: Kelso/Beaver | B127: Beaver 1 - 6 | C127: 152400 | D127: 0 | E127: 152400
A128: Mist Port Westward | B128: Port Westward | C128: 70000 | D128: 0 | E128: 70000
A129: Mist Port Westward II | B129: Port Westward II | C129: 70000 | D129: 0 | E129: 70000
A130: Mist Beaver | B130: Beaver | C130: 70000 | D130: 0 | E130: =C130-D130 -> 70000
A131: Gas Day: | E131: 2021-11-17
A132: Receipt Point | B132: Delivery Point | C132: Operating Capacity (DTHS) | D132: Schedule Volume (DTHS) | E132: Estimated Available Capacity
A133: Kelso/Beaver | B133: Port Westward | C133: 64000 | D133: 64000 | E133: =C133-D133 -> 0
A134: Kelso/Beaver | B134: Port Westward II | C134: 44000 | D134: 5898 | E134: 38102
A135: Kelso/Beaver | B135: N. Mist Storage | C135: 61000 | D135: 0 | E135: 61000
A136: Kelso/Beaver | B136: Beaver Unit 8 | C136: 7326 | D136: 0 | E136: 7326
A137: Kelso/Beaver | B137: Beaver 1 - 6 | C137: 152400 | D137: 0 | E137: 152400
A138: Mist Port Westward | B138: Port Westward | C138: 70000 | D138: 0 | E138: 70000
A139: Mist Port Westward II | B139: Port Westward II | C139: 70000 | D139: 0 | E139: 70000
A140: Mist Beaver | B140: Beaver | C140: 70000 | D140: 0 | E140: =C140-D140 -> 70000
A141: Gas Day: | E141: 2021-11-16
A142: Receipt Point | B142: Delivery Point | C142: Operating Capacity (DTHS) | D142: Schedule Volume (DTHS) | E142: Estimated Available Capacity
A143: Kelso/Beaver | B143: Port Westward | C143: 64000 | D143: 64000 | E143: =C143-D143 -> 0
A144: Kelso/Beaver | B144: Port Westward II | C144: 44000 | D144: 15856 | E144: 28144
A145: Kelso/Beaver | B145: N. Mist Storage | C145: 61000 | D145: 0 | E145: 61000
A146: Kelso/Beaver | B146: Beaver Unit 8 | C146: 7326 | D146: 0 | E146: 7326
A147: Kelso/Beaver | B147: Beaver 1 - 6 | C147: 152400 | D147: 0 | E147: 152400
A148: Mist Port Westward | B148: Port Westward | C148: 70000 | D148: 0 | E148: 70000
A149: Mist Port Westward II | B149: Port Westward II | C149: 70000 | D149: 0 | E149: 70000
A150: Mist Beaver | B150: Beaver | C150: 70000 | D150: 0 | E150: =C150-D150 -> 70000
A151: Gas Day: | E151: 2021-11-15
A152: Receipt Point | B152: Delivery Point | C152: Operating Capacity (DTHS) | D152: Schedule Volume (DTHS) | E152: Estimated Available Capacity
A153: Kelso/Beaver | B153: Port Westward | C153: 64000 | D153: 64000 | E153: =C153-D153 -> 0
A154: Kelso/Beaver | B154: Port Westward II | C154: 44000 | D154: 5944 | E154: 38056
A155: Kelso/Beaver | B155: N. Mist Storage | C155: 61000 | D155: 0 | E155: 61000
A156: Kelso/Beaver | B156: Beaver Unit 8 | C156: 7326 | D156: 0 | E156: 7326
A157: Kelso/Beaver | B157: Beaver 1 - 6 | C157: 152400 | D157: 0 | E157: 152400
A158: Mist Port Westward | B158: Port Westward | C158: 70000 | D158: 0 | E158: 70000
A159: Mist Port Westward II | B159: Port Westward II | C159: 70000 | D159: 0 | E159: 70000
A160: Mist Beaver | B160: Beaver | C160: 70000 | D160: 0 | E160: =C160-D160 -> 70000
A161: Gas Day: | E161: 2021-11-14
A162: Receipt Point | B162: Delivery Point | C162: Operating Capacity (DTHS) | D162: Schedule Volume (DTHS) | E162: Estimated Available Capacity
A163: Kelso/Beaver | B163: Port Westward | C163: 64000 | D163: 64000 | E163: =C163-D163 -> 0
A164: Kelso/Beaver | B164: Port Westward II | C164: 44000 | D164: 5944 | E164: 38056
A165: Kelso/Beaver | B165: N. Mist Storage | C165: 61000 | D165: 0 | E165: 61000
A166: Kelso/Beaver | B166: Beaver Unit 8 | C166: 7326 | D166: 0 | E166: 7326
A167: Kelso/Beaver | B167: Beaver 1 - 6 | C167: 152400 | D167: 2 | E167: 152398
A168: Mist Port Westward | B168: Port Westward | C168: 70000 | D168: 0 | E168: 70000
A169: Mist Port Westward II | B169: Port Westward II | C169: 70000 | D169: 0 | E169: 70000
A170: Mist Beaver | B170: Beaver | C170: 70000 | D170: 0 | E170: =C170-D170 -> 70000
A171: Gas Day: | E171: 2021-11-13
A172: Receipt Point | B172: Delivery Point | C172: Operating Capacity (DTHS) | D172: Schedule Volume (DTHS) | E172: Estimated Available Capacity
A173: Kelso/Beaver | B173: Port Westward | C173: 64000 | D173: 64000 | E173: =C173-D173 -> 0
A174: Kelso/Beaver | B174: Port Westward II | C174: 44000 | D174: 5944 | E174: 38056
A175: Kelso/Beaver | B175: N. Mist Storage | C175: 61000 | D175: 0 | E175: 61000
A176: Kelso/Beaver | B176: Beaver Unit 8 | C176: 7326 | D176: 0 | E176: 7326
A177: Kelso/Beaver | B177: Beaver 1 - 6 | C177: 152400 | D177: 0 | E177: 152400
A178: Mist Port Westward | B178: Port Westward | C178: 70000 | D178: 0 | E178: 70000
A179: Mist Port Westward II | B179: Port Westward II | C179: 70000 | D179: 0 | E179: 70000
A180: Mist Beaver | B180: Beaver | C180: 70000 | D180: 0 | E180: =C180-D180 -> 70000
A181: Gas Day: | E181: 2021-11-12
A182: Receipt Point | B182: Delivery Point | C182: Operating Capacity (DTHS) | D182: Schedule Volume (DTHS) | E182: Estimated Available Capacity
A183: Kelso/Beaver | B183: Port Westward | C183: 64000 | D183: 64000 | E183: =C183-D183 -> 0
A184: Kelso/Beaver | B184: Port Westward II | C184: 44000 | D184: 22030 | E184: 21970
A185: Kelso/Beaver | B185: N. Mist Storage | C185: 61000 | D185: 0 | E185: 61000
A186: Kelso/Beaver | B186: Beaver Unit 8 | C186: 7326 | D186: 0 | E186: 7326
A187: Kelso/Beaver | B187: Beaver 1 - 6 | C187: 152400 | D187: 20000 | E187: 132400
A188: Mist Port Westward | B188: Port Westward | C188: 70000 | D188: 0 | E188: 70000
A189: Mist Port Westward II | B189: Port Westward II | C189: 70000 | D189: 0 | E189: 70000
A190: Mist Beaver | B190: Beaver | C190: 70000 | D190: 0 | E190: =C190-D190 -> 70000
A191: Gas Day: | E191: 2021-11-11
A192: Receipt Point | B192: Delivery Point | C192: Operating Capacity (DTHS) | D192: Schedule Volume (DTHS) | E192: Estimated Available Capacity
A193: Kelso/Beaver | B193: Port Westward | C193: 64000 | D193: 64000 | E193: =C193-D193 -> 0
A194: Kelso/Beaver | B194: Port Westward II | C194: 44000 | D194: 12327 | E194: 31673
A195: Kelso/Beaver | B195: N. Mist Storage | C195: 61000 | D195: 0 | E195: 61000
A196: Kelso/Beaver | B196: Beaver Unit 8 | C196: 7326 | D196: 0 | E196: 7326
A197: Kelso/Beaver | B197: Beaver 1 - 6 | C197: 152400 | D197: 30000 | E197: 122400
A198: Mist Port Westward | B198: Port Westward | C198: 70000 | D198: 0 | E198: 70000
A199: Mist Port Westward II | B199: Port Westward II | C199: 70000 | D199: 0 | E199: 70000
A200: Mist Beaver | B200: Beaver | C200: 70000 | D200: 0 | E200: =C200-D200 -> 70000
... 100 more rows

Sheet December
A1: Gas Day: | E1: 2021-12-31
A2: Receipt Point | B2: Delivery Point | C2: Operating Capacity (DTHS) | D2: Schedule Volume (DTHS) | E2: Estimated Available Capacity
A3: Kelso/Beaver | B3: Port Westward | C3: 64000 | D3: 0 | E3: =C3-D3 -> 64000
A4: Kelso/Beaver | B4: Port Westward II | C4: 44000 | D4: 32557 | E4: 11443
A5: Kelso/Beaver | B5: N. Mist Storage | C5: 61000 | D5: 0 | E5: 61000
A6: Kelso/Beaver | B6: Beaver Unit 8 | C6: 7326 | D6: 0 | E6: 7326
A7: Kelso/Beaver | B7: Beaver 1 - 6 | C7: 152400 | D7: 20000 | E7: 132400
A8: Mist Port Westward | B8: Port Westward | C8: 70000 | D8: 0 | E8: 70000
A9: Mist Port Westward II | B9: Port Westward II | C9: 70000 | D9: 0 | E9: 70000
A10: Mist Beaver | B10: Beaver | C10: 70000 | D10: 0 | E10: =C10-D10 -> 70000
A11: Gas Day: | E11: 2021-12-30
A12: Receipt Point | B12: Delivery Point | C12: Operating Capacity (DTHS) | D12: Schedule Volume (DTHS) | E12: Estimated Available Capacity
A13: Kelso/Beaver | B13: Port Westward | C13: 64000 | D13: 0 | E13: =C13-D13 -> 64000
A14: Kelso/Beaver | B14: Port Westward II | C14: 44000 | D14: 32557 | E14: 11443
A15: Kelso/Beaver | B15: N. Mist Storage | C15: 61000 | D15: 0 | E15: 61000
A16: Kelso/Beaver | B16: Beaver Unit 8 | C16: 7326 | D16: 0 | E16: 7326
A17: Kelso/Beaver | B17: Beaver 1 - 6 | C17: 152400 | D17: 20000 | E17: 132400
A18: Mist Port Westward | B18: Port Westward | C18: 70000 | D18: 0 | E18: 70000
A19: Mist Port Westward II | B19: Port Westward II | C19: 70000 | D19: 0 | E19: 70000
A20: Mist Beaver | B20: Beaver | C20: 70000 | D20: 0 | E20: =C20-D20 -> 70000
A21: Gas Day: | E21: 2021-12-29
A22: Receipt Point | B22: Delivery Point | C22: Operating Capacity (DTHS) | D22: Schedule Volume (DTHS) | E22: Estimated Available Capacity
A23: Kelso/Beaver | B23: Port Westward | C23: 64000 | D23: 0 | E23: =C23-D23 -> 64000
A24: Kelso/Beaver | B24: Port Westward II | C24: 44000 | D24: 40000 | E24: 4000
A25: Kelso/Beaver | B25: N. Mist Storage | C25: 61000 | D25: 0 | E25: 61000
A26: Kelso/Beaver | B26: Beaver Unit 8 | C26: 7326 | D26: 0 | E26: 7326
A27: Kelso/Beaver | B27: Beaver 1 - 6 | C27: 152400 | D27: 10119 | E27: 142281
A28: Mist Port Westward | B28: Port Westward | C28: 70000 | D28: 0 | E28: 70000
A29: Mist Port Westward II | B29: Port Westward II | C29: 70000 | D29: 0 | E29: 70000
A30: Mist Beaver | B30: Beaver | C30: 70000 | D30: 0 | E30: =C30-D30 -> 70000
A31: Gas Day: | E31: 2021-12-28
A32: Receipt Point | B32: Delivery Point | C32: Operating Capacity (DTHS) | D32: Schedule Volume (DTHS) | E32: Estimated Available Capacity
A33: Kelso/Beaver | B33: Port Westward | C33: 64000 | D33: 17056 | E33: =C33-D33 -> 46944
A34: Kelso/Beaver | B34: Port Westward II | C34: 44000 | D34: 40000 | E34: 4000
A35: Kelso/Beaver | B35: N. Mist Storage | C35: 61000 | D35: 0 | E35: 61000
A36: Kelso/Beaver | B36: Beaver Unit 8 | C36: 7326 | D36: 0 | E36: 7326
A37: Kelso/Beaver | B37: Beaver 1 - 6 | C37: 152400 | D37: 0 | E37: 152400
A38: Mist Port Westward | B38: Port Westward | C38: 70000 | D38: 0 | E38: 70000
A39: Mist Port Westward II | B39: Port Westward II | C39: 70000 | D39: 0 | E39: 70000
A40: Mist Beaver | B40: Beaver | C40: 70000 | D40: 0 | E40: =C40-D40 -> 70000
A41: Gas Day: | E41: 2021-12-27
A42: Receipt Point | B42: Delivery Point | C42: Operating Capacity (DTHS) | D42: Schedule Volume (DTHS) | E42: Estimated Available Capacity
A43: Kelso/Beaver | B43: Port Westward | C43: 64000 | D43: 0 | E43: =C43-D43 -> 64000
A44: Kelso/Beaver | B44: Port Westward II | C44: 44000 | D44: 1033 | E44: 42967
A45: Kelso/Beaver | B45: N. Mist Storage | C45: 61000 | D45: 0 | E45: 61000
A46: Kelso/Beaver | B46: Beaver Unit 8 | C46: 7326 | D46: 0 | E46: 7326
A47: Kelso/Beaver | B47: Beaver 1 - 6 | C47: 152400 | D47: 70000 | E47: 82400
A48: Mist Port Westward | B48: Port Westward | C48: 70000 | D48: 0 | E48: 70000
A49: Mist Port Westward II | B49: Port Westward II | C49: 70000 | D49: 0 | E49: 70000
A50: Mist Beaver | B50: Beaver | C50: 70000 | D50: 0 | E50: =C50-D50 -> 70000
A51: Gas Day: | E51: 2021-12-26
A52: Receipt Point | B52: Delivery Point | C52: Operating Capacity (DTHS) | D52: Schedule Volume (DTHS) | E52: Estimated Available Capacity
A53: Kelso/Beaver | B53: Port Westward | C53: 64000 | D53: 64000 | E53: =C53-D53 -> 0
A54: Kelso/Beaver | B54: Port Westward II | C54: 44000 | D54: 7033 | E54: 36967
A55: Kelso/Beaver | B55: N. Mist Storage | C55: 61000 | D55: 0 | E55: 61000
A56: Kelso/Beaver | B56: Beaver Unit 8 | C56: 7326 | D56: 0 | E56: 7326
A57: Kelso/Beaver | B57: Beaver 1 - 6 | C57: 152400 | D57: 0 | E57: 152400
A58: Mist Port Westward | B58: Port Westward | C58: 70000 | D58: 0 | E58: 70000
A59: Mist Port Westward II | B59: Port Westward II | C59: 70000 | D59: 0 | E59: 70000
A60: Mist Beaver | B60: Beaver | C60: 70000 | D60: 0 | E60: =C60-D60 -> 70000
A61: Gas Day: | E61: 2021-12-25
A62: Receipt Point | B62: Delivery Point | C62: Operating Capacity (DTHS) | D62: Schedule Volume (DTHS) | E62: Estimated Available Capacity
A63: Kelso/Beaver | B63: Port Westward | C63: 64000 | D63: 64000 | E63: =C63-D63 -> 0
A64: Kelso/Beaver | B64: Port Westward II | C64: 44000 | D64: 7033 | E64: 36967
A65: Kelso/Beaver | B65: N. Mist Storage | C65: 61000 | D65: 0 | E65: 61000
A66: Kelso/Beaver | B66: Beaver Unit 8 | C66: 7326 | D66: 0 | E66: 7326
A67: Kelso/Beaver | B67: Beaver 1 - 6 | C67: 152400 | D67: 0 | E67: 152400
A68: Mist Port Westward | B68: Port Westward | C68: 70000 | D68: 0 | E68: 70000
A69: Mist Port Westward II | B69: Port Westward II | C69: 70000 | D69: 0 | E69: 70000
A70: Mist Beaver | B70: Beaver | C70: 70000 | D70: 0 | E70: =C70-D70 -> 70000
A71: Gas Day: | E71: 2021-12-24
A72: Receipt Point | B72: Delivery Point | C72: Operating Capacity (DTHS) | D72: Schedule Volume (DTHS) | E72: Estimated Available Capacity
A73: Kelso/Beaver | B73: Port Westward | C73: 64000 | D73: 64000 | E73: =C73-D73 -> 0
A74: Kelso/Beaver | B74: Port Westward II | C74: 44000 | D74: 7033 | E74: 36967
A75: Kelso/Beaver | B75: N. Mist Storage | C75: 61000 | D75: 0 | E75: 61000
A76: Kelso/Beaver | B76: Beaver Unit 8 | C76: 7326 | D76: 0 | E76: 7326
A77: Kelso/Beaver | B77: Beaver 1 - 6 | C77: 152400 | D77: 0 | E77: 152400
A78: Mist Port Westward | B78: Port Westward | C78: 70000 | D78: 0 | E78: 70000
A79: Mist Port Westward II | B79: Port Westward II | C79: 70000 | D79: 0 | E79: 70000
A80: Mist Beaver | B80: Beaver | C80: 70000 | D80: 0 | E80: =C80-D80 -> 70000
A81: Gas Day: | E81: 2021-12-23
A82: Receipt Point | B82: Delivery Point | C82: Operating Capacity (DTHS) | D82: Schedule Volume (DTHS) | E82: Estimated Available Capacity
A83: Kelso/Beaver | B83: Port Westward | C83: 64000 | D83: 62507 | E83: =C83-D83 -> 1493
A84: Kelso/Beaver | B84: Port Westward II | C84: 44000 | D84: 0 | E84: 44000
A85: Kelso/Beaver | B85: N. Mist Storage | C85: 61000 | D85: 0 | E85: 61000
A86: Kelso/Beaver | B86: Beaver Unit 8 | C86: 7326 | D86: 0 | E86: 7326
A87: Kelso/Beaver | B87: Beaver 1 - 6 | C87: 152400 | D87: 0 | E87: 152400
A88: Mist Port Westward | B88: Port Westward | C88: 70000 | D88: 0 | E88: 70000
A89: Mist Port Westward II | B89: Port Westward II | C89: 70000 | D89: 0 | E89: 70000
A90: Mist Beaver | B90: Beaver | C90: 70000 | D90: 0 | E90: =C90-D90 -> 70000
A91: Gas Day: | E91: 2021-12-22
A92: Receipt Point | B92: Delivery Point | C92: Operating Capacity (DTHS) | D92: Schedule Volume (DTHS) | E92: Estimated Available Capacity
A93: Kelso/Beaver | B93: Port Westward | C93: 64000 | D93: 64000 | E93: =C93-D93 -> 0
A94: Kelso/Beaver | B94: Port Westward II | C94: 44000 | D94: 18334 | E94: 25666
A95: Kelso/Beaver | B95: N. Mist Storage | C95: 61000 | D95: 0 | E95: 61000
A96: Kelso/Beaver | B96: Beaver Unit 8 | C96: 7326 | D96: 0 | E96: 7326
A97: Kelso/Beaver | B97: Beaver 1 - 6 | C97: 152400 | D97: 0 | E97: 152400
A98: Mist Port Westward | B98: Port Westward | C98: 70000 | D98: 0 | E98: 70000
A99: Mist Port Westward II | B99: Port Westward II | C99: 70000 | D99: 0 | E99: 70000
A100: Mist Beaver | B100: Beaver | C100: 70000 | D100: 0 | E100: =C100-D100 -> 70000
A101: Gas Day: | E101: 2021-12-21
A102: Receipt Point | B102: Delivery Point | C102: Operating Capacity (DTHS) | D102: Schedule Volume (DTHS) | E102: Estimated Available Capacity
A103: Kelso/Beaver | B103: Port Westward | C103: 64000 | D103: 62000 | E103: =C103-D103 -> 2000
A104: Kelso/Beaver | B104: Port Westward II | C104: 44000 | D104: 20374 | E104: 23626
A105: Kelso/Beaver | B105: N. Mist Storage | C105: 61000 | D105: 0 | E105: 61000
A106: Kelso/Beaver | B106: Beaver Unit 8 | C106: 7326 | D106: 0 | E106: 7326
A107: Kelso/Beaver | B107: Beaver 1 - 6 | C107: 152400 | D107: 0 | E107: 152400
A108: Mist Port Westward | B108: Port Westward | C108: 70000 | D108: 0 | E108: 70000
A109: Mist Port Westward II | B109: Port Westward II | C109: 70000 | D109: 0 | E109: 70000
A110: Mist Beaver | B110: Beaver | C110: 70000 | D110: 0 | E110: =C110-D110 -> 70000
A111: Gas Day: | E111: 2021-12-20
A112: Receipt Point | B112: Delivery Point | C112: Operating Capacity (DTHS) | D112: Schedule Volume (DTHS) | E112: Estimated Available Capacity
A113: Kelso/Beaver | B113: Port Westward | C113: 64000 | D113: 60000 | E113: =C113-D113 -> 4000
A114: Kelso/Beaver | B114: Port Westward II | C114: 44000 | D114: 20391 | E114: 23609
A115: Kelso/Beaver | B115: N. Mist Storage | C115: 61000 | D115: 0 | E115: 61000
A116: Kelso/Beaver | B116: Beaver Unit 8 | C116: 7326 | D116: 0 | E116: 7326
A117: Kelso/Beaver | B117: Beaver 1 - 6 | C117: 152400 | D117: 0 | E117: 152400
A118: Mist Port Westward | B118: Port Westward | C118: 70000 | D118: 0 | E118: 70000
A119: Mist Port Westward II | B119: Port Westward II | C119: 70000 | D119: 0 | E119: 70000
A120: Mist Beaver | B120: Beaver | C120: 70000 | D120: 0 | E120: =C120-D120 -> 70000
A121: Gas Day: | E121: 2021-12-19
A122: Receipt Point | B122: Delivery Point | C122: Operating Capacity (DTHS) | D122: Schedule Volume (DTHS) | E122: Estimated Available Capacity
A123: Kelso/Beaver | B123: Port Westward | C123: 64000 | D123: 60000 | E123: =C123-D123 -> 4000
A124: Kelso/Beaver | B124: Port Westward II | C124: 44000 | D124: 20391 | E124: 23609
A125: Kelso/Beaver | B125: N. Mist Storage | C125: 61000 | D125: 0 | E125: 61000
A126: Kelso/Beaver | B126: Beaver Unit 8 | C126: 7326 | D126: 0 | E126: 7326
A127: Kelso/Beaver | B127: Beaver 1 - 6 | C127: 152400 | D127: 0 | E127: 152400
A128: Mist Port Westward | B128: Port Westward | C128: 70000 | D128: 0 | E128: 70000
A129: Mist Port Westward II | B129: Port Westward II | C129: 70000 | D129: 0 | E129: 70000
A130: Mist Beaver | B130: Beaver | C130: 70000 | D130: 0 | E130: =C130-D130 -> 70000
A131: Gas Day: | E131: 2021-12-18
A132: Receipt Point | B132: Delivery Point | C132: Operating Capacity (DTHS) | D132: Schedule Volume (DTHS) | E132: Estimated Available Capacity
A133: Kelso/Beaver | B133: Port Westward | C133: 64000 | D133: 60000 | E133: =C133-D133 -> 4000
A134: Kelso/Beaver | B134: Port Westward II | C134: 44000 | D134: 20391 | E134: 23609
A135: Kelso/Beaver | B135: N. Mist Storage | C135: 61000 | D135: 0 | E135: 61000
A136: Kelso/Beaver | B136: Beaver Unit 8 | C136: 7326 | D136: 0 | E136: 7326
A137: Kelso/Beaver | B137: Beaver 1 - 6 | C137: 152400 | D137: 0 | E137: 152400
A138: Mist Port Westward | B138: Port Westward | C138: 70000 | D138: 0 | E138: 70000
A139: Mist Port Westward II | B139: Port Westward II | C139: 70000 | D139: 0 | E139: 70000
A140: Mist Beaver | B140: Beaver | C140: 70000 | D140: 0 | E140: =C140-D140 -> 70000
A141: Gas Day: | E141: 2021-12-17
A142: Receipt Point | B142: Delivery Point | C142: Operating Capacity (DTHS) | D142: Schedule Volume (DTHS) | E142: Estimated Available Capacity
A143: Kelso/Beaver | B143: Port Westward | C143: 64000 | D143: 62000 | E143: =C143-D143 -> 2000
A144: Kelso/Beaver | B144: Port Westward II | C144: 44000 | D144: 20374 | E144: 23626
A145: Kelso/Beaver | B145: N. Mist Storage | C145: 61000 | D145: 0 | E145: 61000
A146: Kelso/Beaver | B146: Beaver Unit 8 | C146: 7326 | D146: 0 | E146: 7326
A147: Kelso/Beaver | B147: Beaver 1 - 6 | C147: 152400 | D147: 0 | E147: 152400
A148: Mist Port Westward | B148: Port Westward | C148: 70000 | D148: 0 | E148: 70000
A149: Mist Port Westward II | B149: Port Westward II | C149: 70000 | D149: 0 | E149: 70000
A150: Mist Beaver | B150: Beaver | C150: 70000 | D150: 0 | E150: =C150-D150 -> 70000
A151: Gas Day: | E151: 2021-12-16
A152: Receipt Point | B152: Delivery Point | C152: Operating Capacity (DTHS) | D152: Schedule Volume (DTHS) | E152: Estimated Available Capacity
A153: Kelso/Beaver | B153: Port Westward | C153: 64000 | D153: 0 | E153: =C153-D153 -> 64000
A154: Kelso/Beaver | B154: Port Westward II | C154: 44000 | D154: 16771 | E154: 27229
A155: Kelso/Beaver | B155: N. Mist Storage | C155: 61000 | D155: 0 | E155: 61000
A156: Kelso/Beaver | B156: Beaver Unit 8 | C156: 7326 | D156: 0 | E156: 7326
A157: Kelso/Beaver | B157: Beaver 1 - 6 | C157: 152400 | D157: 20000 | E157: 132400
A158: Mist Port Westward | B158: Port Westward | C158: 70000 | D158: 0 | E158: 70000
A159: Mist Port Westward II | B159: Port Westward II | C159: 70000 | D159: 0 | E159: 70000
A160: Mist Beaver | B160: Beaver | C160: 70000 | D160: 0 | E160: =C160-D160 -> 70000
A161: Gas Day: | E161: 2021-12-15
A162: Receipt Point | B162: Delivery Point | C162: Operating Capacity (DTHS) | D162: Schedule Volume (DTHS) | E162: Estimated Available Capacity
A163: Kelso/Beaver | B163: Port Westward | C163: 64000 | D163: 0 | E163: =C163-D163 -> 64000
A164: Kelso/Beaver | B164: Port Westward II | C164: 44000 | D164: 21728 | E164: 22272
A165: Kelso/Beaver | B165: N. Mist Storage | C165: 61000 | D165: 0 | E165: 61000
A166: Kelso/Beaver | B166: Beaver Unit 8 | C166: 7326 | D166: 0 | E166: 7326
A167: Kelso/Beaver | B167: Beaver 1 - 6 | C167: 152400 | D167: 20000 | E167: 132400
A168: Mist Port Westward | B168: Port Westward | C168: 70000 | D168: 0 | E168: 70000
A169: Mist Port Westward II | B169: Port Westward II | C169: 70000 | D169: 0 | E169: 70000
A170: Mist Beaver | B170: Beaver | C170: 70000 | D170: 0 | E170: =C170-D170 -> 70000
A171: Gas Day: | E171: 2021-12-14
A172: Receipt Point | B172: Delivery Point | C172: Operating Capacity (DTHS) | D172: Schedule Volume (DTHS) | E172: Estimated Available Capacity
A173: Kelso/Beaver | B173: Port Westward | C173: 64000 | D173: 0 | E173: =C173-D173 -> 64000
A174: Kelso/Beaver | B174: Port Westward II | C174: 44000 | D174: 21728 | E174: 22272
A175: Kelso/Beaver | B175: N. Mist Storage | C175: 61000 | D175: 0 | E175: 61000
A176: Kelso/Beaver | B176: Beaver Unit 8 | C176: 7326 | D176: 0 | E176: 7326
A177: Kelso/Beaver | B177: Beaver 1 - 6 | C177: 152400 | D177: 20000 | E177: 132400
A178: Mist Port Westward | B178: Port Westward | C178: 70000 | D178: 0 | E178: 70000
A179: Mist Port Westward II | B179: Port Westward II | C179: 70000 | D179: 0 | E179: 70000
A180: Mist Beaver | B180: Beaver | C180: 70000 | D180: 0 | E180: =C180-D180 -> 70000
A181: Gas Day: | E181: 2021-12-13
A182: Receipt Point | B182: Delivery Point | C182: Operating Capacity (DTHS) | D182: Schedule Volume (DTHS) | E182: Estimated Available Capacity
A183: Kelso/Beaver | B183: Port Westward | C183: 64000 | D183: 0 | E183: =C183-D183 -> 64000
A184: Kelso/Beaver | B184: Port Westward II | C184: 44000 | D184: 16771 | E184: 27229
A185: Kelso/Beaver | B185: N. Mist Storage | C185: 61000 | D185: 0 | E185: 61000
A186: Kelso/Beaver | B186: Beaver Unit 8 | C186: 7326 | D186: 0 | E186: 7326
A187: Kelso/Beaver | B187: Beaver 1 - 6 | C187: 152400 | D187: 20000 | E187: 132400
A188: Mist Port Westward | B188: Port Westward | C188: 70000 | D188: 0 | E188: 70000
A189: Mist Port Westward II | B189: Port Westward II | C189: 70000 | D189: 0 | E189: 70000
A190: Mist Beaver | B190: Beaver | C190: 70000 | D190: 0 | E190: =C190-D190 -> 70000
A191: Gas Day: | E191: 2021-12-12
A192: Receipt Point | B192: Delivery Point | C192: Operating Capacity (DTHS) | D192: Schedule Volume (DTHS) | E192: Estimated Available Capacity
A193: Kelso/Beaver | B193: Port Westward | C193: 64000 | D193: 0 | E193: =C193-D193 -> 64000
A194: Kelso/Beaver | B194: Port Westward II | C194: 44000 | D194: 16771 | E194: 27229
A195: Kelso/Beaver | B195: N. Mist Storage | C195: 61000 | D195: 0 | E195: 61000
A196: Kelso/Beaver | B196: Beaver Unit 8 | C196: 7326 | D196: 0 | E196: 7326
A197: Kelso/Beaver | B197: Beaver 1 - 6 | C197: 152400 | D197: 20000 | E197: 132400
A198: Mist Port Westward | B198: Port Westward | C198: 70000 | D198: 0 | E198: 70000
A199: Mist Port Westward II | B199: Port Westward II | C199: 70000 | D199: 0 | E199: 70000
A200: Mist Beaver | B200: Beaver | C200: 70000 | D200: 0 | E200: =C200-D200 -> 70000
... 110 more rows
